Body Name,Body,Service Area Catergorisation,Service Division Catergorisation,Responsible Unit,Expenses Type,Detailed Expenses Type,Expenses Code,Date,Transaction Number,Amount,Capital / Revenue,Supplier Name,Supplier ID
NORTH EAST LINCOLNSHIRE COUNCIL,http://statistics.data.gov.uk/id/local-authority/00FC,Cap Dep Chief Exec,Ad Childrens Services,Capital Fund - For Two Yr Olds,Cap Grants To O/Side Sources,Cap Grants To O/Side Sources,YJ101,01/07/2015,325452,745,CAPITAL,NEWBY LEISURE LTD,101227
NORTH EAST LINCOLNSHIRE COUNCIL,http://statistics.data.gov.uk/id/local-authority/00FC,Cap Dep Chief Exec,Ad Adult Serv-Hlth Improvement,Doughty Cent Annex Asc,Cap Land/Build-Prof Fees,Cap Land/Build-Prof Fees,YA103,1/27/2015,330024,1235,CAPITAL,COFELY WORKPLACE LIMITED,123983
NORTH EAST LINCOLNSHIRE COUNCIL,http://statistics.data.gov.uk/id/local-authority/00FC,Cap Dep Chief Exec,Ad Environment,Cremator Replacement,Cap Land/Build-Build Enh Wrk,Cap Land/Build-Build Enh Wrk,YA102,01/06/2015,326079,693.61,CAPITAL,EXCELL ELECTRICAL CONTRACTORS,100601
NORTH EAST LINCOLNSHIRE COUNCIL,http://statistics.data.gov.uk/id/local-authority/00FC,Cap Dep Chief Exec,Ad Environment,Fleet Replacement Programme,Cap Veh Plt Eqp-Purchase,Cap Veh Plt Eqp-Purchase,YB101,1/29/2015,330009,280,CAPITAL,IMPERIAL COMMERCIALS LTD,101709
NORTH EAST LINCOLNSHIRE COUNCIL,http://statistics.data.gov.uk/id/local-authority/00FC,Cap Dep Chief Exec,Ad Environment,Fleet Replacement Programme,Cap Veh Plt Eqp-Purchase,Cap Veh Plt Eqp-Purchase,YB101,1/29/2015,330009,17779,CAPITAL,IMPERIAL COMMERCIALS LTD,101709
NORTH EAST LINCOLNSHIRE COUNCIL,http://statistics.data.gov.uk/id/local-authority/00FC,Chief Executive,Director Of Finance,Backlog Maintenance,Cap Land/Build-Build Enh Wrk,Cap Land/Build-Build Enh Wrk,YA102,01/08/2015,326365,10270,CAPITAL,ETON-LINCS LIMITED,101510
NORTH EAST LINCOLNSHIRE COUNCIL,http://statistics.data.gov.uk/id/local-authority/00FC,Chief Executive,Director Of Finance,Backlog Maintenance,Cap Land/Build-Build Enh Wrk,Cap Land/Build-Build Enh Wrk,YA102,01/08/2015,326340,10670,CAPITAL,ETON-LINCS LIMITED,101510
NORTH EAST LINCOLNSHIRE COUNCIL,http://statistics.data.gov.uk/id/local-authority/00FC,Chief Executive,Director Of Finance,Backlog Maintenance,Cap Land/Build-Build Enh Wrk,Cap Land/Build-Build Enh Wrk,YA102,01/08/2015,326349,6895,CAPITAL,ETON-LINCS LIMITED,101510
NORTH EAST LINCOLNSHIRE COUNCIL,http://statistics.data.gov.uk/id/local-authority/00FC,Chief Executive,Director Of Finance,Backlog Maintenance,Cap Land/Build-Build Enh Wrk,Cap Land/Build-Build Enh Wrk,YA102,01/07/2015,326465,26884.64,CAPITAL,F PARKINSON LTD,123944
NORTH EAST LINCOLNSHIRE COUNCIL,http://statistics.data.gov.uk/id/local-authority/00FC,Chief Executive,Director Of Finance,Backlog Maintenance,Cap Land/Build-Build Enh Wrk,Cap Land/Build-Build Enh Wrk,YA102,01/08/2015,326343,3790,CAPITAL,ETON-LINCS LIMITED,101510
NORTH EAST LINCOLNSHIRE COUNCIL,http://statistics.data.gov.uk/id/local-authority/00FC,Chief Executive,Director Of Finance,Backlog Maintenance,Cap Land/Build-Prof Fees,Cap Land/Build-Prof Fees,YA103,1/27/2015,330022,2000,CAPITAL,COFELY WORKPLACE LIMITED,123983
NORTH EAST LINCOLNSHIRE COUNCIL,http://statistics.data.gov.uk/id/local-authority/00FC,Chief Executive,Director Of Finance,Property Rationalisation Prog,Cap Land/Build-Build Enh Wrk,Cap Land/Build-Build Enh Wrk,YA102,01/08/2015,326463,36889.64,CAPITAL,MANTA BRC LTD,102230
NORTH EAST LINCOLNSHIRE COUNCIL,http://statistics.data.gov.uk/id/local-authority/00FC,Chief Executive,Director Of Finance,Property Rationalisation Prog,Cap Infrastr-Purchase,Cap Infrastr-Purchase,YC101,1/29/2015,330199,1377.03,CAPITAL,VIRGIN MEDIA LTD,101831
NORTH EAST LINCOLNSHIRE COUNCIL,http://statistics.data.gov.uk/id/local-authority/00FC,Chief Executive,Director Of Finance,Property Rationalisation Prog,Cap Land/Build-Build Enh Wrk,Cap Land/Build-Build Enh Wrk,YA102,1/22/2015,328549,8995.34,CAPITAL,E S RUDKIN LTD,100632
NORTH EAST LINCOLNSHIRE COUNCIL,http://statistics.data.gov.uk/id/local-authority/00FC,Chief Executive,Director Of Finance,Property Rationalisation Prog,Cap Land/Build-Build Enh Wrk,Cap Land/Build-Build Enh Wrk,YA102,01/08/2015,326374,3355.11,CAPITAL,NRA ROOFING & FLOORING SERVICES,101810
NORTH EAST LINCOLNSHIRE COUNCIL,http://statistics.data.gov.uk/id/local-authority/00FC,Chief Executive,Director Of Finance,Property Rationalisation Prog,Cap Infrastr-Build Enh Wrk,Cap Infrastr-Build Enh Wrk,YC102,1/20/2015,328012,586.5,CAPITAL,COFELY WORKPLACE LIMITED,123983
NORTH EAST LINCOLNSHIRE COUNCIL,http://statistics.data.gov.uk/id/local-authority/00FC,Chief Executive,Director Of Finance,Property Rationalisation Prog,Cap Land/Build-Build Enh Wrk,Cap Land/Build-Build Enh Wrk,YA102,01/08/2015,326342,2645,CAPITAL,CONSTRUCTION SERVICES DIRECT LTD,124419
NORTH EAST LINCOLNSHIRE COUNCIL,http://statistics.data.gov.uk/id/local-authority/00FC,Chief Executive,Ad Joint Delivery,New Ict Framework,Cap Intangible Assets,Cap Intangible Assets,YH101,01/07/2015,325435,850,CAPITAL,VISIONWARE LTD,103028
NORTH EAST LINCOLNSHIRE COUNCIL,http://statistics.data.gov.uk/id/local-authority/00FC,Chief Executive,Ad Joint Delivery,New Leisure Centre At Grimsby,Cap Land/Build-Build Enh Wrk,Cap Land/Build-Build Enh Wrk,YA102,1/29/2015,329860,406342.87,CAPITAL,INTERSERVE CONSTRUCTION,128140
NORTH EAST LINCOLNSHIRE COUNCIL,http://statistics.data.gov.uk/id/local-authority/00FC,Chief Executive,Ad Joint Delivery,Cleethorpes Leis Cent Refurb,Cap Land/Build-Prof Fees,Cap Land/Build-Prof Fees,YA103,01/07/2015,325666,5000,CAPITAL,COFELY WORKPLACE LIMITED,123983
NORTH EAST LINCOLNSHIRE COUNCIL,http://statistics.data.gov.uk/id/local-authority/00FC,Chief Executive,Ad Joint Delivery,Cleethorpes Leis Cent Refurb,Cap Infrastr-Build Enh Wrk,Cap Infrastr-Build Enh Wrk,YC102,1/29/2015,329859,176943.69,CAPITAL,THE GELDER GROUP,103601
NORTH EAST LINCOLNSHIRE COUNCIL,http://statistics.data.gov.uk/id/local-authority/00FC,Chief Executive,Ad Joint Delivery,Cleethorpes Leis Cent Refurb,Cap Infrastr-Build Enh Wrk,Cap Infrastr-Build Enh Wrk,YC102,1/15/2015,326791,2125,CAPITAL,REDHILL ANALYSTS LTD,109169
NORTH EAST LINCOLNSHIRE COUNCIL,http://statistics.data.gov.uk/id/local-authority/00FC,Chief Executive,Ad Joint Delivery,Immingham Pool,Cap Land/Build-Build Enh Wrk,Cap Land/Build-Build Enh Wrk,YA102,1/27/2015,329861,56559.76,CAPITAL,F PARKINSON LTD,123944
NORTH EAST LINCOLNSHIRE COUNCIL,http://statistics.data.gov.uk/id/local-authority/00FC,Chief Executive,Ad Joint Delivery,Immingham Pool,Cap Land/Build-Prof Fees,Cap Land/Build-Prof Fees,YA103,01/07/2015,325665,10000,CAPITAL,COFELY WORKPLACE LIMITED,123983
NORTH EAST LINCOLNSHIRE COUNCIL,http://statistics.data.gov.uk/id/local-authority/00FC,Chief Executive,Ad Joint Delivery,Immingham Pool,Cap Land/Build-Prof Fees,Cap Land/Build-Prof Fees,YA103,01/07/2015,325667,2200,CAPITAL,COFELY WORKPLACE LIMITED,123983
NORTH EAST LINCOLNSHIRE COUNCIL,http://statistics.data.gov.uk/id/local-authority/00FC,Chief Executive,Director Of Economy & Growth,Hps-Disabled Fac. Grants,Cap Grants To O/Side Sources,Cap Grants To O/Side Sources,YJ101,01/07/2015,325929,4939.07,CAPITAL,F R TOWNSEND & CO LTD,104217
NORTH EAST LINCOLNSHIRE COUNCIL,http://statistics.data.gov.uk/id/local-authority/00FC,Chief Executive,Director Of Economy & Growth,Hps-Disabled Fac. Grants,Cap Grants To O/Side Sources,Cap Grants To O/Side Sources,YJ101,1/26/2015,329331,7548,CAPITAL,VIC HANSEN BUILDING & JOINERY LTD,103981
NORTH EAST LINCOLNSHIRE COUNCIL,http://statistics.data.gov.uk/id/local-authority/00FC,Chief Executive,Director Of Economy & Growth,Hps-Disabled Fac. Grants,Cap Grants To O/Side Sources,Cap Grants To O/Side Sources,YJ101,1/26/2015,328703,2978.25,CAPITAL,E S RUDKIN LTD,100632
NORTH EAST LINCOLNSHIRE COUNCIL,http://statistics.data.gov.uk/id/local-authority/00FC,Chief Executive,Director Of Economy & Growth,Hps-Disabled Fac. Grants,Cap Grants To O/Side Sources,Cap Grants To O/Side Sources,YJ101,1/15/2015,327517,4423.02,CAPITAL,MEARS LTD,102433
NORTH EAST LINCOLNSHIRE COUNCIL,http://statistics.data.gov.uk/id/local-authority/00FC,Chief Executive,Director Of Economy & Growth,Hps-Disabled Fac. Grants,Cap Grants To O/Side Sources,Cap Grants To O/Side Sources,YJ101,1/15/2015,327480,1781.4,CAPITAL,CLEVELAND JOINERY,102580
NORTH EAST LINCOLNSHIRE COUNCIL,http://statistics.data.gov.uk/id/local-authority/00FC,Chief Executive,Director Of Economy & Growth,Hps-Disabled Fac. Grants,Cap Grants To O/Side Sources,Cap Grants To O/Side Sources,YJ101,1/16/2015,327504,6602,CAPITAL,P G INGOLDBY & SONS LTD,100591
NORTH EAST LINCOLNSHIRE COUNCIL,http://statistics.data.gov.uk/id/local-authority/00FC,Chief Executive,Director Of Economy & Growth,Hps-Disabled Fac. Grants,Cap Grants To O/Side Sources,Cap Grants To O/Side Sources,YJ101,1/15/2015,327476,4527,CAPITAL,STANNAH LIFT SERVICES LTD,100622
NORTH EAST LINCOLNSHIRE COUNCIL,http://statistics.data.gov.uk/id/local-authority/00FC,Chief Executive,Director Of Economy & Growth,Hps-Disabled Fac. Grants,Cap Grants To O/Side Sources,Cap Grants To O/Side Sources,YJ101,1/15/2015,327492,5232,CAPITAL,STANNAH LIFT SERVICES LTD,100622
NORTH EAST LINCOLNSHIRE COUNCIL,http://statistics.data.gov.uk/id/local-authority/00FC,Chief Executive,Director Of Economy & Growth,Hps-Disabled Fac. Grants,Cap Grants To O/Side Sources,Cap Grants To O/Side Sources,YJ101,1/15/2015,327483,5430.98,CAPITAL,TOPCON CONSTRUCTION LTD,108462
NORTH EAST LINCOLNSHIRE COUNCIL,http://statistics.data.gov.uk/id/local-authority/00FC,Chief Executive,Director Of Economy & Growth,Hps-Disabled Fac. Grants,Cap Grants To O/Side Sources,Cap Grants To O/Side Sources,YJ101,1/29/2015,329804,8700.4,CAPITAL,MARK BENNETT,101838
NORTH EAST LINCOLNSHIRE COUNCIL,http://statistics.data.gov.uk/id/local-authority/00FC,Chief Executive,Director Of Economy & Growth,Hps-Disabled Fac. Grants,Cap Grants To O/Side Sources,Cap Grants To O/Side Sources,YJ101,1/15/2015,327484,2931.02,CAPITAL,OBAM LIFT SERVICES LTD,112666
NORTH EAST LINCOLNSHIRE COUNCIL,http://statistics.data.gov.uk/id/local-authority/00FC,Chief Executive,Director Of Economy & Growth,Hps-Disabled Fac. Grants,Cap Grants To O/Side Sources,Cap Grants To O/Side Sources,YJ101,1/21/2015,327920,2177,CAPITAL,STANNAH LIFT SERVICES LTD,100622
NORTH EAST LINCOLNSHIRE COUNCIL,http://statistics.data.gov.uk/id/local-authority/00FC,Chief Executive,Director Of Economy & Growth,Hps-Disabled Fac. Grants,Cap Grants To O/Side Sources,Cap Grants To O/Side Sources,YJ101,1/15/2015,327490,2537,CAPITAL,STANNAH LIFT SERVICES LTD,100622
NORTH EAST LINCOLNSHIRE COUNCIL,http://statistics.data.gov.uk/id/local-authority/00FC,Chief Executive,Director Of Economy & Growth,Hps-Disabled Fac. Grants,Cap Grants To O/Side Sources,Cap Grants To O/Side Sources,YJ101,1/22/2015,327876,6102.6,CAPITAL,MEARS LTD,102433
NORTH EAST LINCOLNSHIRE COUNCIL,http://statistics.data.gov.uk/id/local-authority/00FC,Chief Executive,Director Of Economy & Growth,Hps-Disabled Fac. Grants,Cap Grants To O/Side Sources,Cap Grants To O/Side Sources,YJ101,1/26/2015,328702,2793.49,CAPITAL,PRISM MEDICAL UK,119507
NORTH EAST LINCOLNSHIRE COUNCIL,http://statistics.data.gov.uk/id/local-authority/00FC,Chief Executive,Director Of Economy & Growth,Hps-Disabled Fac. Grants,Cap Grants To O/Side Sources,Cap Grants To O/Side Sources,YJ101,1/21/2015,327918,3082,CAPITAL,STANNAH LIFT SERVICES LTD,100622
NORTH EAST LINCOLNSHIRE COUNCIL,http://statistics.data.gov.uk/id/local-authority/00FC,Chief Executive,Director Of Economy & Growth,Hps-Disabled Fac. Grants,Cap Grants To O/Side Sources,Cap Grants To O/Side Sources,YJ101,1/29/2015,330189,8054.4,CAPITAL,MARK BENNETT,101838
NORTH EAST LINCOLNSHIRE COUNCIL,http://statistics.data.gov.uk/id/local-authority/00FC,Chief Executive,Director Of Economy & Growth,Hps-Disabled Fac. Grants,Cap Grants To O/Side Sources,Cap Grants To O/Side Sources,YJ101,1/26/2015,328704,3856,CAPITAL,TOTAL HYGIENE LTD,100849
NORTH EAST LINCOLNSHIRE COUNCIL,http://statistics.data.gov.uk/id/local-authority/00FC,Chief Executive,Director Of Economy & Growth,Hps-Disabled Fac. Grants,Cap Grants To O/Side Sources,Cap Grants To O/Side Sources,YJ101,1/16/2015,328250,4720,CAPITAL,OBAM LIFT SERVICES LTD,112666
NORTH EAST LINCOLNSHIRE COUNCIL,http://statistics.data.gov.uk/id/local-authority/00FC,Chief Executive,Director Of Economy & Growth,Hps-Disabled Fac. Grants,Cap Grants To O/Side Sources,Cap Grants To O/Side Sources,YJ101,1/29/2015,329805,5706.89,CAPITAL,KES BUILDING MAINTENANCE LIMITED,100786
NORTH EAST LINCOLNSHIRE COUNCIL,http://statistics.data.gov.uk/id/local-authority/00FC,Chief Executive,Director Of Economy & Growth,Hps-Disabled Fac. Grants,Cap Grants To O/Side Sources,Cap Grants To O/Side Sources,YJ101,1/15/2015,327478,7351.82,CAPITAL,TOPCON CONSTRUCTION LTD,108462
NORTH EAST LINCOLNSHIRE COUNCIL,http://statistics.data.gov.uk/id/local-authority/00FC,Chief Executive,Director Of Economy & Growth,Local Transport Plan Schemes,Cap Infrastr-Build Enh Wrk,Cap Infrastr-Build Enh Wrk,YC102,01/12/2015,325766,5435.52,CAPITAL,MACS AUTOMATED BOLLARD SYSTEMS LTD,118897
NORTH EAST LINCOLNSHIRE COUNCIL,http://statistics.data.gov.uk/id/local-authority/00FC,Chief Executive,Director Of Economy & Growth,Local Transport Plan Schemes,Cap Infrastr-Build Enh Wrk,Cap Infrastr-Build Enh Wrk,YC102,01/12/2015,326304,10579.98,CAPITAL,J MCCANN & CO LTD,100841
NORTH EAST LINCOLNSHIRE COUNCIL,http://statistics.data.gov.uk/id/local-authority/00FC,Chief Executive,Director Of Economy & Growth,Local Transport Plan Schemes,Cap Infrastr-Build Enh Wrk,Cap Infrastr-Build Enh Wrk,YC102,1/16/2015,328242,4987.4,CAPITAL,J MCCANN & CO LTD,100841
NORTH EAST LINCOLNSHIRE COUNCIL,http://statistics.data.gov.uk/id/local-authority/00FC,Chief Executive,Director Of Economy & Growth,Local Transport Plan Schemes,Cap Infrastr-Build Enh Wrk,Cap Infrastr-Build Enh Wrk,YC102,1/26/2015,328554,3279.77,CAPITAL,J MCCANN & CO LTD,100841
NORTH EAST LINCOLNSHIRE COUNCIL,http://statistics.data.gov.uk/id/local-authority/00FC,Chief Executive,Director Of Economy & Growth,Local Transport Plan Schemes,Cap Infrastr-Build Enh Wrk,Cap Infrastr-Build Enh Wrk,YC102,01/12/2015,325766,2974,CAPITAL,MACS AUTOMATED BOLLARD SYSTEMS LTD,118897
NORTH EAST LINCOLNSHIRE COUNCIL,http://statistics.data.gov.uk/id/local-authority/00FC,Chief Executive,Director Of Economy & Growth,Local Transport Plan Schemes,Cap Land/Build-Build Enh Wrk,Cap Land/Build-Build Enh Wrk,YA102,01/12/2015,326301,18985.63,CAPITAL,WRIGHT CIVIL ENGINEERING LTD,100624
NORTH EAST LINCOLNSHIRE COUNCIL,http://statistics.data.gov.uk/id/local-authority/00FC,Chief Executive,Director Of Economy & Growth,Local Transport Plan Schemes,Cap Land/Build-Build Enh Wrk,Cap Land/Build-Build Enh Wrk,YA102,1/26/2015,328814,57957.58,CAPITAL,WRIGHT CIVIL ENGINEERING LTD,100624
NORTH EAST LINCOLNSHIRE COUNCIL,http://statistics.data.gov.uk/id/local-authority/00FC,Chief Executive,Director Of Economy & Growth,Local Transport Plan Schemes,Cap Land/Build-Build Enh Wrk,Cap Land/Build-Build Enh Wrk,YA102,01/08/2015,326372,6761.66,CAPITAL,J MCCANN & CO LTD,100841
NORTH EAST LINCOLNSHIRE COUNCIL,http://statistics.data.gov.uk/id/local-authority/00FC,Chief Executive,Director Of Economy & Growth,Local Transport Plan Schemes,Cap Infrastr-Purchase,Cap Infrastr-Purchase,YC101,01/08/2015,326372,10639.86,CAPITAL,J MCCANN & CO LTD,100841
NORTH EAST LINCOLNSHIRE COUNCIL,http://statistics.data.gov.uk/id/local-authority/00FC,Chief Executive,Director Of Economy & Growth,Local Transport Plan Schemes,Cap Infrastr-Purchase,Cap Infrastr-Purchase,YC101,01/12/2015,326303,2995,CAPITAL,NEWBY LEISURE LTD,101227
NORTH EAST LINCOLNSHIRE COUNCIL,http://statistics.data.gov.uk/id/local-authority/00FC,Chief Executive,Director Of Economy & Growth,Local Transport Plan Schemes,Cap Land/Build-Build Enh Wrk,Cap Land/Build-Build Enh Wrk,YA102,1/30/2015,329264,728,CAPITAL,PELL FRISCHMANN CONSULTANTS,100880
NORTH EAST LINCOLNSHIRE COUNCIL,http://statistics.data.gov.uk/id/local-authority/00FC,Chief Executive,Director Of Economy & Growth,Local Transport Plan Schemes,Cap Land/Build-Build Enh Wrk,Cap Land/Build-Build Enh Wrk,YA102,01/07/2015,325514,1312.5,CAPITAL,PELL FRISCHMANN CONSULTANTS,100880
NORTH EAST LINCOLNSHIRE COUNCIL,http://statistics.data.gov.uk/id/local-authority/00FC,Chief Executive,Director Of Economy & Growth,Local Transport Plan Schemes,Cap Land/Build-Build Enh Wrk,Cap Land/Build-Build Enh Wrk,YA102,1/26/2015,329238,918.75,CAPITAL,PELL FRISCHMANN CONSULTANTS,100880
NORTH EAST LINCOLNSHIRE COUNCIL,http://statistics.data.gov.uk/id/local-authority/00FC,Chief Executive,Director Of Economy & Growth,Local Transport Plan Schemes,Cap Land/Build-Build Enh Wrk,Cap Land/Build-Build Enh Wrk,YA102,01/08/2015,326323,483.6,CAPITAL,NORTHERN POWERGRID (YORKSHIRE) PLC,108328
NORTH EAST LINCOLNSHIRE COUNCIL,http://statistics.data.gov.uk/id/local-authority/00FC,Chief Executive,Director Of Economy & Growth,Local Transport Plan Schemes,Cap Land/Build-Build Enh Wrk,Cap Land/Build-Build Enh Wrk,YA102,01/08/2015,326590,41920,CAPITAL,3M UNITED KINGDOM PLC,112724
NORTH EAST LINCOLNSHIRE COUNCIL,http://statistics.data.gov.uk/id/local-authority/00FC,Chief Executive,Director Of Economy & Growth,Local Transport Plan Schemes,Cap Infrastr-Prof Fees,Cap Infrastr-Prof Fees,YC103,1/21/2015,327910,4425,CAPITAL,SIAS LIMITED,102445
NORTH EAST LINCOLNSHIRE COUNCIL,http://statistics.data.gov.uk/id/local-authority/00FC,Chief Executive,Director Of Economy & Growth,Freeman Street Regeneration,Cap Invest Prop-Build Enh Wrk,Cap Invest Prop-Build Enh Wrk,YE102,01/05/2015,325846,5000,CAPITAL,REDACTED PERSONAL INFORMATION,REDACTED PERSONAL INFORMATION
NORTH EAST LINCOLNSHIRE COUNCIL,http://statistics.data.gov.uk/id/local-authority/00FC,Chief Executive,Director Of Economy & Growth,Freeman Street Regeneration,Cap Invest Prop-Build Enh Wrk,Cap Invest Prop-Build Enh Wrk,YE102,1/15/2015,327493,2500,CAPITAL,REDACTED PERSONAL INFORMATION,REDACTED PERSONAL INFORMATION
NORTH EAST LINCOLNSHIRE COUNCIL,http://statistics.data.gov.uk/id/local-authority/00FC,Chief Executive,Director Of Economy & Growth,Freeman Street Regeneration,Cap Grants To O/Side Sources,Cap Grants To O/Side Sources,YJ101,1/15/2015,327481,2500,CAPITAL,REDACTED PERSONAL INFORMATION,REDACTED PERSONAL INFORMATION
NORTH EAST LINCOLNSHIRE COUNCIL,http://statistics.data.gov.uk/id/local-authority/00FC,Chief Executive,Director Of Economy & Growth,Housing Assist Grants And Loan,Cap Grants To O/Side Sources,Cap Grants To O/Side Sources,YJ101,1/30/2015,329717,10933.33,CAPITAL,D THORPE PLUMBING & HEATING SERVICES,118800
NORTH EAST LINCOLNSHIRE COUNCIL,http://statistics.data.gov.uk/id/local-authority/00FC,Chief Executive,Director Of Economy & Growth,Housing Assist Grants And Loan,Cap Grants To O/Side Sources,Cap Grants To O/Side Sources,YJ101,1/16/2015,327507,3717.6,CAPITAL,DEAN WILLETT & SONS,101982
NORTH EAST LINCOLNSHIRE COUNCIL,http://statistics.data.gov.uk/id/local-authority/00FC,Chief Executive,Director Of Economy & Growth,Housing Assist Grants And Loan,Cap Grants To O/Side Sources,Cap Grants To O/Side Sources,YJ101,1/15/2015,327477,1974,CAPITAL,MAYNE GAS HEATING LTD,101861
NORTH EAST LINCOLNSHIRE COUNCIL,http://statistics.data.gov.uk/id/local-authority/00FC,Chief Executive,Director Of Economy & Growth,Street Light Low Energy Scheme,Cap Land/Build-Build Enh Wrk,Cap Land/Build-Build Enh Wrk,YA102,1/20/2015,328047,67746.88,CAPITAL,J MCCANN & CO LTD,100841
NORTH EAST LINCOLNSHIRE COUNCIL,http://statistics.data.gov.uk/id/local-authority/00FC,Chief Executive,Director Of Economy & Growth,Street Light Low Energy Scheme,Cap Land/Build-Build Enh Wrk,Cap Land/Build-Build Enh Wrk,YA102,1/20/2015,328048,24471.94,CAPITAL,J MCCANN & CO LTD,100841
NORTH EAST LINCOLNSHIRE COUNCIL,http://statistics.data.gov.uk/id/local-authority/00FC,Chief Executive,Director Of Economy & Growth,Street Light Low Energy Scheme,Cap Land/Build-Build Enh Wrk,Cap Land/Build-Build Enh Wrk,YA102,01/07/2015,325731,52319,CAPITAL,COFELY WORKPLACE LIMITED,123983
NORTH EAST LINCOLNSHIRE COUNCIL,http://statistics.data.gov.uk/id/local-authority/00FC,Chief Executive,Director Of Economy & Growth,Street Light Low Energy Scheme,Cap Land/Build-Build Enh Wrk,Cap Land/Build-Build Enh Wrk,YA102,01/08/2015,326372,1472.12,CAPITAL,J MCCANN & CO LTD,100841
NORTH EAST LINCOLNSHIRE COUNCIL,http://statistics.data.gov.uk/id/local-authority/00FC,Chief Executive,Director Of Economy & Growth,Street Light Low Energy Scheme,Cap Land/Build-Build Enh Wrk,Cap Land/Build-Build Enh Wrk,YA102,01/08/2015,326332,2860.78,CAPITAL,NORTHERN POWERGRID (YORKSHIRE) PLC,108328
NORTH EAST LINCOLNSHIRE COUNCIL,http://statistics.data.gov.uk/id/local-authority/00FC,Chief Executive,Director Of Economy & Growth,Street Light Low Energy Scheme,Cap Land/Build-Build Enh Wrk,Cap Land/Build-Build Enh Wrk,YA102,01/08/2015,326337,348.21,CAPITAL,NORTHERN POWERGRID (YORKSHIRE) PLC,108328
NORTH EAST LINCOLNSHIRE COUNCIL,http://statistics.data.gov.uk/id/local-authority/00FC,Chief Executive,Director Of Economy & Growth,Street Light Low Energy Scheme,Cap Land/Build-Build Enh Wrk,Cap Land/Build-Build Enh Wrk,YA102,01/08/2015,326335,1392.84,CAPITAL,NORTHERN POWERGRID (YORKSHIRE) PLC,108328
NORTH EAST LINCOLNSHIRE COUNCIL,http://statistics.data.gov.uk/id/local-authority/00FC,Chief Executive,Director Of Economy & Growth,Street Light Low Energy Scheme,Cap Land/Build-Build Enh Wrk,Cap Land/Build-Build Enh Wrk,YA102,01/08/2015,326338,1804.94,CAPITAL,NORTHERN POWERGRID (YORKSHIRE) PLC,108328
NORTH EAST LINCOLNSHIRE COUNCIL,http://statistics.data.gov.uk/id/local-authority/00FC,Chief Executive,Director Of Economy & Growth,Street Light Low Energy Scheme,Cap Land/Build-Build Enh Wrk,Cap Land/Build-Build Enh Wrk,YA102,01/08/2015,326329,456.84,CAPITAL,NORTHERN POWERGRID (YORKSHIRE) PLC,108328
NORTH EAST LINCOLNSHIRE COUNCIL,http://statistics.data.gov.uk/id/local-authority/00FC,Chief Executive,Director Of Economy & Growth,Street Light Low Energy Scheme,Cap Land/Build-Build Enh Wrk,Cap Land/Build-Build Enh Wrk,YA102,01/08/2015,326336,1392.84,CAPITAL,NORTHERN POWERGRID (YORKSHIRE) PLC,108328
NORTH EAST LINCOLNSHIRE COUNCIL,http://statistics.data.gov.uk/id/local-authority/00FC,Chief Executive,Director Of Economy & Growth,Street Light Low Energy Scheme,Cap Land/Build-Build Enh Wrk,Cap Land/Build-Build Enh Wrk,YA102,01/08/2015,326341,554.26,CAPITAL,NORTHERN POWERGRID (YORKSHIRE) PLC,108328
NORTH EAST LINCOLNSHIRE COUNCIL,http://statistics.data.gov.uk/id/local-authority/00FC,Chief Executive,Director Of Economy & Growth,Street Light Low Energy Scheme,Cap Land/Build-Build Enh Wrk,Cap Land/Build-Build Enh Wrk,YA102,01/08/2015,326333,696.42,CAPITAL,NORTHERN POWERGRID (YORKSHIRE) PLC,108328
NORTH EAST LINCOLNSHIRE COUNCIL,http://statistics.data.gov.uk/id/local-authority/00FC,Chief Executive,Director Of Economy & Growth,Street Light Low Energy Scheme,Cap Land/Build-Build Enh Wrk,Cap Land/Build-Build Enh Wrk,YA102,01/08/2015,326339,2153.15,CAPITAL,NORTHERN POWERGRID (YORKSHIRE) PLC,108328
NORTH EAST LINCOLNSHIRE COUNCIL,http://statistics.data.gov.uk/id/local-authority/00FC,Chief Executive,Director Of Economy & Growth,Street Light Low Energy Scheme,Cap Land/Build-Build Enh Wrk,Cap Land/Build-Build Enh Wrk,YA102,01/08/2015,326331,2894.31,CAPITAL,NORTHERN POWERGRID (YORKSHIRE) PLC,108328
NORTH EAST LINCOLNSHIRE COUNCIL,http://statistics.data.gov.uk/id/local-authority/00FC,Chief Executive,Director Of Economy & Growth,Cartergate Development,Cap Infrastr-Build Enh Wrk,Cap Infrastr-Build Enh Wrk,YC102,1/22/2015,328876,18301.62,CAPITAL,YORKSHIRE ELECTRICITY DISTRIBUTION PLC,100574
NORTH EAST LINCOLNSHIRE COUNCIL,http://statistics.data.gov.uk/id/local-authority/00FC,Chief Executive,Director Of Economy & Growth,Cartergate Development,Cap Infrastr-Build Enh Wrk,Cap Infrastr-Build Enh Wrk,YC102,1/15/2015,322856,1875,CAPITAL,NAL LTD,128552
NORTH EAST LINCOLNSHIRE COUNCIL,http://statistics.data.gov.uk/id/local-authority/00FC,Chief Executive,Director Of Economy & Growth,Cartergate Development,Cap Infrastr-Build Enh Wrk,Cap Infrastr-Build Enh Wrk,YC102,1/16/2015,328238,3700,CAPITAL,ADVANTAGE TSC & D LTD,109136
NORTH EAST LINCOLNSHIRE COUNCIL,http://statistics.data.gov.uk/id/local-authority/00FC,Chief Executive,Director Of Economy & Growth,Pinchpoint Scheme,Cap Land/Build-Build Enh Wrk,Cap Land/Build-Build Enh Wrk,YA102,01/12/2015,326302,5740,CAPITAL,P H CONSTRUCTION SERVICES LTD,102107
NORTH EAST LINCOLNSHIRE COUNCIL,http://statistics.data.gov.uk/id/local-authority/00FC,Chief Executive,Director Of Economy & Growth,Pinchpoint Scheme,Cap Land/Build-Prof Fees,Cap Land/Build-Prof Fees,YA103,1/29/2015,327989,43965.92,CAPITAL,PBS CONSTRUCTION (NORTH EAST) LTD,127459
NORTH EAST LINCOLNSHIRE COUNCIL,http://statistics.data.gov.uk/id/local-authority/00FC,Chief Executive,Director Of Finance,Accountancy,Direct Employee Expenses,Agency Staff,EA105,01/08/2015,326582,1666.5,REVENUE,BADENOCH & CLARK,101427
NORTH EAST LINCOLNSHIRE COUNCIL,http://statistics.data.gov.uk/id/local-authority/00FC,Chief Executive,Director Of Finance,Accountancy,Direct Employee Expenses,Agency Staff,EA105,01/08/2015,326585,1666.5,REVENUE,BADENOCH & CLARK,101427
NORTH EAST LINCOLNSHIRE COUNCIL,http://statistics.data.gov.uk/id/local-authority/00FC,Chief Executive,Director Of Finance,Accountancy,Direct Employee Expenses,Agency Staff,EA105,1/22/2015,326728,1666.5,REVENUE,BADENOCH & CLARK,101427
NORTH EAST LINCOLNSHIRE COUNCIL,http://statistics.data.gov.uk/id/local-authority/00FC,Chief Executive,Director Of Finance,Accountancy,Direct Employee Expenses,Agency Staff,EA105,1/22/2015,326729,999.9,REVENUE,BADENOCH & CLARK,101427
NORTH EAST LINCOLNSHIRE COUNCIL,http://statistics.data.gov.uk/id/local-authority/00FC,Chief Executive,Director Of Finance,Accountancy,Consultancy,Consultancy,PL101,01/07/2015,323104,3675.88,REVENUE,INSIGHT MSC LTD,125514
NORTH EAST LINCOLNSHIRE COUNCIL,http://statistics.data.gov.uk/id/local-authority/00FC,Chief Executive,Director Of Finance,Accountancy,Consultancy,Consultancy,PL101,1/28/2015,329262,3188.73,REVENUE,INSIGHT MSC LTD,125514
NORTH EAST LINCOLNSHIRE COUNCIL,http://statistics.data.gov.uk/id/local-authority/00FC,Chief Executive,Director Of Finance,Accountancy,Government Departments,Third Party Prov - Govt Depts,PE101,1/27/2015,329372,1900,REVENUE,KPMG FEES ACCOUNT,101071
NORTH EAST LINCOLNSHIRE COUNCIL,http://statistics.data.gov.uk/id/local-authority/00FC,Chief Executive,Director Of Finance,Chief Finance Officer,Equip / Furniture / Materials,Promotions,LA124,1/20/2015,328011,13170.81,REVENUE,GREEN FUTURES,102397
NORTH EAST LINCOLNSHIRE COUNCIL,http://statistics.data.gov.uk/id/local-authority/00FC,Chief Executive,Director Of Finance,Chief Exec & Support,Contributions To Provisions,Contributions - Communities,LK101,1/21/2015,327980,250,REVENUE,TRADITIONAL GATES,108564
NORTH EAST LINCOLNSHIRE COUNCIL,http://statistics.data.gov.uk/id/local-authority/00FC,Chief Executive,Director Of Finance,Chief Exec & Support,Contributions To Provisions,Contributions - Communities,LK101,1/21/2015,327979,760,REVENUE,TRADITIONAL GATES,108564
NORTH EAST LINCOLNSHIRE COUNCIL,http://statistics.data.gov.uk/id/local-authority/00FC,Chief Executive,Director Of Finance,Chief Exec & Support,Grants And Subscriptions,Subscriptions,LJ101,1/26/2015,328836,5000,REVENUE,BONDHOLDER SCHEME LTD,122925
NORTH EAST LINCOLNSHIRE COUNCIL,http://statistics.data.gov.uk/id/local-authority/00FC,Chief Executive,Director Of Finance,Chief Exec & Support,Consultancy,Consultancy,PL101,1/15/2015,327474,5220,REVENUE,GILLIAN CONNOLLY CONSULTING,111595
NORTH EAST LINCOLNSHIRE COUNCIL,http://statistics.data.gov.uk/id/local-authority/00FC,Chief Executive,Director Of Finance,Chief Exec & Support,Indirect Employee Expenses,Staff Training,EB122,01/12/2015,327130,1828,REVENUE,BOND DICKINSON LLP,121775
NORTH EAST LINCOLNSHIRE COUNCIL,http://statistics.data.gov.uk/id/local-authority/00FC,Chief Executive,Director Of Finance,Chief Exec & Support,Indirect Employee Expenses,Staff Training,EB122,01/08/2015,326846,-180,REVENUE,CHARTERED INSTITUTE OF,100641
NORTH EAST LINCOLNSHIRE COUNCIL,http://statistics.data.gov.uk/id/local-authority/00FC,Chief Executive,Director Of Finance,Chief Exec & Support,Indirect Employee Expenses,Staff Training,EB122,01/08/2015,324557,450,REVENUE,CHARTERED INSTITUTE OF,100641
NORTH EAST LINCOLNSHIRE COUNCIL,http://statistics.data.gov.uk/id/local-authority/00FC,Chief Executive,Director Of Finance,Chief Exec & Support,Indirect Employee Expenses,Staff Training,EB122,1/15/2015,326661,725,REVENUE,KAPLAN FINANCIAL LTD,102112
NORTH EAST LINCOLNSHIRE COUNCIL,http://statistics.data.gov.uk/id/local-authority/00FC,Chief Executive,Director Of Finance,Chief Exec & Support,Indirect Employee Expenses,Staff Training,EB122,1/21/2015,326762,1682.91,REVENUE,KAPLAN FINANCIAL LTD,102112
NORTH EAST LINCOLNSHIRE COUNCIL,http://statistics.data.gov.uk/id/local-authority/00FC,Chief Executive,Director Of Finance,Chief Exec & Support,Indirect Employee Expenses,Staff Training,EB122,1/15/2015,326660,425,REVENUE,KAPLAN FINANCIAL LTD,102112
NORTH EAST LINCOLNSHIRE COUNCIL,http://statistics.data.gov.uk/id/local-authority/00FC,Chief Executive,Director Of Finance,Chief Exec & Support,Public Transport,Public Transport - Employees,JD101,01/12/2015,327126,-7.5,REVENUE,CLICK TRAVEL,127476
NORTH EAST LINCOLNSHIRE COUNCIL,http://statistics.data.gov.uk/id/local-authority/00FC,Chief Executive,Director Of Finance,Cfs Assets & Pc Programme,Rep Alterations Maint Building,Buildings - Repairs And Maint,GA102,1/20/2015,327899,404.89,REVENUE,JOHN MOORE SECURITY LTD,100633
NORTH EAST LINCOLNSHIRE COUNCIL,http://statistics.data.gov.uk/id/local-authority/00FC,Chief Executive,Director Of Finance,Cfs Assets & Pc Programme,Rep Alterations Maint Building,Buildings - Repairs And Maint,GA102,1/15/2015,327013,260,REVENUE,ORCHARD FIRE & SECURITY LTD,100650
NORTH EAST LINCOLNSHIRE COUNCIL,http://statistics.data.gov.uk/id/local-authority/00FC,Chief Executive,Director Of Finance,Cfs Assets & Pc Programme,Print Stationery / Gen Off Exp,Advertising,LD104,1/22/2015,328935,910,REVENUE,SCOTTS PROPERTY LLP,103513
NORTH EAST LINCOLNSHIRE COUNCIL,http://statistics.data.gov.uk/id/local-authority/00FC,Chief Executive,Director Of Finance,Cfs Assets & Pc Programme,Print Stationery / Gen Off Exp,Advertising,LD104,01/12/2015,326738,1750,REVENUE,SCOTTS PROPERTY LLP,103513
NORTH EAST LINCOLNSHIRE COUNCIL,http://statistics.data.gov.uk/id/local-authority/00FC,Chief Executive,Director Of Finance,Cfs Assets & Pc Programme,Print Stationery / Gen Off Exp,Advertising,LD104,01/12/2015,326731,1750,REVENUE,SCOTTS PROPERTY LLP,103513
NORTH EAST LINCOLNSHIRE COUNCIL,http://statistics.data.gov.uk/id/local-authority/00FC,Chief Executive,Director Of Finance,Cfs Assets & Pc Programme,Communications And Computing,Computer H/Ware - Teaching,LF104,01/05/2015,325848,1300,REVENUE,SCOTTS PROPERTY LLP,103513
NORTH EAST LINCOLNSHIRE COUNCIL,http://statistics.data.gov.uk/id/local-authority/00FC,Chief Executive,Director Of Finance,Facilities Management,Cleaning And Domestic Supplies,Cleaning - Services,GH102,1/20/2015,327859,2088.86,REVENUE,OCS LIMITED,101291
NORTH EAST LINCOLNSHIRE COUNCIL,http://statistics.data.gov.uk/id/local-authority/00FC,Chief Executive,Director Of Finance,Facilities Management,Cleaning And Domestic Supplies,Cleaning - Services,GH102,1/20/2015,327860,168814.33,REVENUE,FUTURE CLEANING SERVICES LTD,102557
NORTH EAST LINCOLNSHIRE COUNCIL,http://statistics.data.gov.uk/id/local-authority/00FC,Chief Executive,Director Of Finance,Facilities Management,Cleaning And Domestic Supplies,Refuse Collection,GH104,01/05/2015,326181,13932.96,REVENUE,BELL WASTE CONTROL,101433
NORTH EAST LINCOLNSHIRE COUNCIL,http://statistics.data.gov.uk/id/local-authority/00FC,Chief Executive,Director Of Finance,Facilities Management,Rents,Rent,GC101,1/20/2015,327864,7412.5,REVENUE,CAPAX (C I ) LIMITED,101112
NORTH EAST LINCOLNSHIRE COUNCIL,http://statistics.data.gov.uk/id/local-authority/00FC,Chief Executive,Director Of Finance,Facilities Management,Rents,Service Charge,GC102,1/29/2015,329493,300,REVENUE,KESTONBOND PROPERTY MANAGEMENT LTD,108844
NORTH EAST LINCOLNSHIRE COUNCIL,http://statistics.data.gov.uk/id/local-authority/00FC,Chief Executive,Director Of Finance,Facilities Management,Grounds Maintenance Costs,Grounds Maintenance,GJ101,1/29/2015,329493,416.4,REVENUE,KESTONBOND PROPERTY MANAGEMENT LTD,108844
NORTH EAST LINCOLNSHIRE COUNCIL,http://statistics.data.gov.uk/id/local-authority/00FC,Chief Executive,Director Of Finance,Facilities Management,Water Services,Water,GE101,01/05/2015,325916,594.07,REVENUE,ANGLIAN WATER,100508
NORTH EAST LINCOLNSHIRE COUNCIL,http://statistics.data.gov.uk/id/local-authority/00FC,Chief Executive,Director Of Finance,Facilities Management,Water Services,Water,GE101,01/06/2015,325936,470.55,REVENUE,ANGLIAN WATER,100508
NORTH EAST LINCOLNSHIRE COUNCIL,http://statistics.data.gov.uk/id/local-authority/00FC,Chief Executive,Director Of Finance,Facilities Management,Rates,Rates,GD101,01/05/2015,326090,1089.32,REVENUE,NORTH EAST LINCOLNSHIRE COUNCIL,100894
NORTH EAST LINCOLNSHIRE COUNCIL,http://statistics.data.gov.uk/id/local-authority/00FC,Chief Executive,Director Of Finance,Facilities Management,Water Services,Water,GE101,1/22/2015,328871,1103.76,REVENUE,ANGLIAN WATER,100508
NORTH EAST LINCOLNSHIRE COUNCIL,http://statistics.data.gov.uk/id/local-authority/00FC,Chief Executive,Director Of Finance,Facilities Management,Water Services,Water,GE101,1/22/2015,328869,260.22,REVENUE,ANGLIAN WATER,100508
NORTH EAST LINCOLNSHIRE COUNCIL,http://statistics.data.gov.uk/id/local-authority/00FC,Chief Executive,Director Of Finance,Facilities Management,Energy Costs,Heating Fuel,GB103,01/12/2015,326222,1054.83,REVENUE,CERTAS ENERGY,124794
NORTH EAST LINCOLNSHIRE COUNCIL,http://statistics.data.gov.uk/id/local-authority/00FC,Chief Executive,Director Of Finance,Facilities Management,Energy Costs,Heating Fuel,GB103,01/12/2015,326225,739.35,REVENUE,CERTAS ENERGY,124794
NORTH EAST LINCOLNSHIRE COUNCIL,http://statistics.data.gov.uk/id/local-authority/00FC,Chief Executive,Director Of Finance,Facilities Management,Energy Costs,Heating Fuel,GB103,01/12/2015,327251,819.9,REVENUE,CERTAS ENERGY,124794
NORTH EAST LINCOLNSHIRE COUNCIL,http://statistics.data.gov.uk/id/local-authority/00FC,Chief Executive,Director Of Finance,Facilities Management,Grounds Maintenance Costs,Grounds Maintenance,GJ101,1/20/2015,327861,358.33,REVENUE,FUTURE CLEANING SERVICES LTD,102557
NORTH EAST LINCOLNSHIRE COUNCIL,http://statistics.data.gov.uk/id/local-authority/00FC,Chief Executive,Director Of Finance,Facilities Management,Grounds Maintenance Costs,Grounds Maintenance,GJ101,1/29/2015,329427,358.33,REVENUE,FUTURE CLEANING SERVICES LTD,102557
NORTH EAST LINCOLNSHIRE COUNCIL,http://statistics.data.gov.uk/id/local-authority/00FC,Chief Executive,Director Of Finance,Facilities Management,Water Services,Water,GE101,1/20/2015,327888,1351.69,REVENUE,ANGLIAN WATER,100508
NORTH EAST LINCOLNSHIRE COUNCIL,http://statistics.data.gov.uk/id/local-authority/00FC,Chief Executive,Director Of Finance,Facilities Management,Cleaning And Domestic Supplies,Cleaning - Services,GH102,1/22/2015,328782,-364.92,REVENUE,OCS LIMITED,101291
NORTH EAST LINCOLNSHIRE COUNCIL,http://statistics.data.gov.uk/id/local-authority/00FC,Chief Executive,Director Of Finance,Facilities Management,Water Services,Water,GE101,1/20/2015,327891,287.8,REVENUE,ANGLIAN WATER,100508
NORTH EAST LINCOLNSHIRE COUNCIL,http://statistics.data.gov.uk/id/local-authority/00FC,Chief Executive,Director Of Finance,Facilities Management,Water Services,Water,GE101,1/22/2015,328867,350.52,REVENUE,ANGLIAN WATER,100508
NORTH EAST LINCOLNSHIRE COUNCIL,http://statistics.data.gov.uk/id/local-authority/00FC,Chief Executive,Director Of Finance,Facilities Management,Water Services,Water,GE101,01/05/2015,325881,1551.54,REVENUE,ANGLIAN WATER,100508
NORTH EAST LINCOLNSHIRE COUNCIL,http://statistics.data.gov.uk/id/local-authority/00FC,Chief Executive,Director Of Finance,Facilities Management,Water Services,Water,GE101,1/20/2015,327848,3423.91,REVENUE,ANGLIAN WATER,100508
NORTH EAST LINCOLNSHIRE COUNCIL,http://statistics.data.gov.uk/id/local-authority/00FC,Chief Executive,Director Of Finance,Facilities Management,Cleaning And Domestic Supplies,Cleaning - Services,GH102,1/20/2015,327856,347.4,REVENUE,FUTURE CLEANING SERVICES LTD,102557
NORTH EAST LINCOLNSHIRE COUNCIL,http://statistics.data.gov.uk/id/local-authority/00FC,Chief Executive,Director Of Finance,Facilities Management,Rents,Rent,GC101,1/20/2015,327858,9250,REVENUE,JOHN SUTCLIFFE & SON (HOLDINGS) LTD,101339
NORTH EAST LINCOLNSHIRE COUNCIL,http://statistics.data.gov.uk/id/local-authority/00FC,Chief Executive,Director Of Finance,Facilities Management,Rents,Service Charge,GC102,1/20/2015,328007,933,REVENUE,AWS LTD,101343
NORTH EAST LINCOLNSHIRE COUNCIL,http://statistics.data.gov.uk/id/local-authority/00FC,Chief Executive,Director Of Finance,Facilities Management,Water Services,Water,GE101,01/05/2015,325882,869.96,REVENUE,ANGLIAN WATER,100508
NORTH EAST LINCOLNSHIRE COUNCIL,http://statistics.data.gov.uk/id/local-authority/00FC,Chief Executive,Director Of Finance,Facilities Management,Energy Costs,Gas,GB101,1/29/2015,329423,623.18,REVENUE,OLD CLEE PRIMARY ACADEMY,119822
NORTH EAST LINCOLNSHIRE COUNCIL,http://statistics.data.gov.uk/id/local-authority/00FC,Chief Executive,Director Of Finance,Commercial Estate,Water Services,Water,GE101,01/05/2015,325880,766.45,REVENUE,ANGLIAN WATER,100508
NORTH EAST LINCOLNSHIRE COUNCIL,http://statistics.data.gov.uk/id/local-authority/00FC,Chief Executive,Director Of Finance,Commercial Estate,Water Services,Water,GE101,1/22/2015,328872,520.63,REVENUE,ANGLIAN WATER,100508
NORTH EAST LINCOLNSHIRE COUNCIL,http://statistics.data.gov.uk/id/local-authority/00FC,Chief Executive,Director Of Finance,Commercial Estate,Rates,Rates,GD101,01/05/2015,326091,1236.3,REVENUE,NORTH EAST LINCOLNSHIRE COUNCIL,100894
NORTH EAST LINCOLNSHIRE COUNCIL,http://statistics.data.gov.uk/id/local-authority/00FC,Chief Executive,Director Of Finance,Commercial Estate,Rates,Rates,GD101,01/05/2015,326089,990.68,REVENUE,NORTH EAST LINCOLNSHIRE COUNCIL,100894
NORTH EAST LINCOLNSHIRE COUNCIL,http://statistics.data.gov.uk/id/local-authority/00FC,Chief Executive,Director Of Finance,Commercial Estate,Cleaning And Domestic Supplies,Cleaning - Consumables,GH103,1/20/2015,327863,450.93,REVENUE,ING LEASING (UK) LTD,101680
NORTH EAST LINCOLNSHIRE COUNCIL,http://statistics.data.gov.uk/id/local-authority/00FC,Chief Executive,Director Of Finance,Commercial Estate,Energy Costs,Electricity,GB102,1/22/2015,328866,11707.2,REVENUE,BOURNE LEISURE LTD,109336
NORTH EAST LINCOLNSHIRE COUNCIL,http://statistics.data.gov.uk/id/local-authority/00FC,Chief Executive,Director Of Finance,Commercial Estate,Water Services,Water,GE101,1/20/2015,327892,12421.84,REVENUE,ANGLIAN WATER,100508
NORTH EAST LINCOLNSHIRE COUNCIL,http://statistics.data.gov.uk/id/local-authority/00FC,Chief Executive,Director Of Finance,Commercial Estate,Water Services,Water,GE101,1/27/2015,328873,1768.44,REVENUE,ANGLIAN WATER,100508
NORTH EAST LINCOLNSHIRE COUNCIL,http://statistics.data.gov.uk/id/local-authority/00FC,Chief Executive,Director Of Economy & Growth,Environment,Miscellaneous Expenses,Environmental/Health Analysis,LL120,01/07/2015,325928,275.5,REVENUE,ALCONTROL LABORATORIES,100899
NORTH EAST LINCOLNSHIRE COUNCIL,http://statistics.data.gov.uk/id/local-authority/00FC,Chief Executive,Director Of Economy & Growth,Discovery Centre,Equip / Furniture / Materials,Goods For Resale,LA123,01/08/2015,326833,307.25,REVENUE,ROBINSON FARM SHOP (WALTHAM) LTD,119467
NORTH EAST LINCOLNSHIRE COUNCIL,http://statistics.data.gov.uk/id/local-authority/00FC,Chief Executive,Director Of Economy & Growth,Marketing And Promotion,Equip / Furniture / Materials,Promotions,LA124,1/15/2015,327671,272,REVENUE,LOCAL WORLD LIMITED,118774
NORTH EAST LINCOLNSHIRE COUNCIL,http://statistics.data.gov.uk/id/local-authority/00FC,Chief Executive,Director Of Economy & Growth,Marketing And Promotion,Equip / Furniture / Materials,Promotions,LA124,01/12/2015,326134,1997,REVENUE,LINCS INSPIRE LTD,120610
NORTH EAST LINCOLNSHIRE COUNCIL,http://statistics.data.gov.uk/id/local-authority/00FC,Chief Executive,Director Of Economy & Growth,Marketing And Promotion,Equip / Furniture / Materials,Promotions,LA124,01/12/2015,326139,500,REVENUE,DELUSH FAIRYTALES,128644
NORTH EAST LINCOLNSHIRE COUNCIL,http://statistics.data.gov.uk/id/local-authority/00FC,Chief Executive,Director Of Economy & Growth,Marketing And Promotion,Equip / Furniture / Materials,Promotions,LA124,01/12/2015,326163,525,REVENUE,JG AUDIO PRODUCTION SERVICES,128283
NORTH EAST LINCOLNSHIRE COUNCIL,http://statistics.data.gov.uk/id/local-authority/00FC,Chief Executive,Director Of Economy & Growth,Museums & N F Heritage Centre,Equip / Furniture / Materials,Equipment - Purchase,LA101,1/15/2015,327668,265,REVENUE,SYLVESTER-KEAL LTD,100593
NORTH EAST LINCOLNSHIRE COUNCIL,http://statistics.data.gov.uk/id/local-authority/00FC,Chief Executive,Director Of Economy & Growth,Museums & N F Heritage Centre,Equip / Furniture / Materials,Equipment - Purchase,LA101,01/07/2015,326679,5620,REVENUE,COOPERS PAINTING CONTRACTORS LTD,107576
NORTH EAST LINCOLNSHIRE COUNCIL,http://statistics.data.gov.uk/id/local-authority/00FC,Chief Executive,Director Of Economy & Growth,Tourist Information Centre,Private Contractors,Third Party Prov - Private,PH101,1/19/2015,328289,3942,REVENUE,HUMBER BRIDGE BOARD,101054
NORTH EAST LINCOLNSHIRE COUNCIL,http://statistics.data.gov.uk/id/local-authority/00FC,Chief Executive,Director Of Economy & Growth,Tourist Information Centre,Private Contractors,Third Party Prov - Private,PH101,1/19/2015,328290,4239,REVENUE,HUMBER BRIDGE BOARD,101054
NORTH EAST LINCOLNSHIRE COUNCIL,http://statistics.data.gov.uk/id/local-authority/00FC,Chief Executive,Director Of Economy & Growth,Tourist Information Centre,Private Contractors,Third Party Prov - Private,PH101,1/19/2015,328292,333,REVENUE,KINGSTON UPON HULL CITY COUNCIL,100541
NORTH EAST LINCOLNSHIRE COUNCIL,http://statistics.data.gov.uk/id/local-authority/00FC,Chief Executive,Director Of Economy & Growth,Tourist Information Centre,Private Contractors,Third Party Prov - Private,PH101,1/19/2015,328293,346,REVENUE,GRIMSBY AUDITORIUM,128160
NORTH EAST LINCOLNSHIRE COUNCIL,http://statistics.data.gov.uk/id/local-authority/00FC,Chief Executive,Director Of Economy & Growth,Tourist Information Centre,Private Contractors,Third Party Prov - Private,PH101,1/19/2015,328295,567.5,REVENUE,GRIMSBY AUDITORIUM,128160
NORTH EAST LINCOLNSHIRE COUNCIL,http://statistics.data.gov.uk/id/local-authority/00FC,Chief Executive,Director Of Economy & Growth,Tourist Information Centre,Private Contractors,Third Party Prov - Private,PH101,1/14/2015,327697,1099.1,REVENUE,NATIONAL EXPRESS LTD,100835
NORTH EAST LINCOLNSHIRE COUNCIL,http://statistics.data.gov.uk/id/local-authority/00FC,Chief Executive,Director Of Economy & Growth,Tourist Information Centre,Private Contractors,Third Party Prov - Private,PH101,1/14/2015,327695,1048.15,REVENUE,NATIONAL EXPRESS LTD,100835
NORTH EAST LINCOLNSHIRE COUNCIL,http://statistics.data.gov.uk/id/local-authority/00FC,Chief Executive,Director Of Economy & Growth,Tourist Information Centre,Private Contractors,Third Party Prov - Private,PH101,1/19/2015,328291,2100,REVENUE,CLIFTONS DANCE ACADEMY,105483
NORTH EAST LINCOLNSHIRE COUNCIL,http://statistics.data.gov.uk/id/local-authority/00FC,Chief Executive,Director Of Economy & Growth,Tourist Information Centre,Private Contractors,Third Party Prov - Private,PH101,1/20/2015,327843,460,REVENUE,SERCO SHARED SERVICES CENTRE,101875
NORTH EAST LINCOLNSHIRE COUNCIL,http://statistics.data.gov.uk/id/local-authority/00FC,Chief Executive,Director Of Economy & Growth,Highways Plan Out Of Scope,Customer And Client Receipts,Fees/Chrgs-O/Side Scope Vat 4,VC125,01/05/2015,325874,420,REVENUE,COFELY WORKPLACE LIMITED,123983
NORTH EAST LINCOLNSHIRE COUNCIL,http://statistics.data.gov.uk/id/local-authority/00FC,Chief Executive,Director Of Economy & Growth,Community Investment Team,Private Contractors,Third Party Prov - Private,PH101,1/26/2015,328818,1501.5,REVENUE,BIG SKY PUBLISHING LTD,119601
NORTH EAST LINCOLNSHIRE COUNCIL,http://statistics.data.gov.uk/id/local-authority/00FC,Chief Executive,Director Of Economy & Growth,Community Investment Team,Private Contractors,Third Party Prov - Private,PH101,1/15/2015,326821,1378.12,REVENUE,SMILE 4 YOU LTD,108683
NORTH EAST LINCOLNSHIRE COUNCIL,http://statistics.data.gov.uk/id/local-authority/00FC,Chief Executive,Director Of Economy & Growth,Community Investment Team,Private Contractors,Third Party Prov - Private,PH101,1/26/2015,328705,2609.59,REVENUE,LYRIC CHOCOLATE BOX,126648
NORTH EAST LINCOLNSHIRE COUNCIL,http://statistics.data.gov.uk/id/local-authority/00FC,Chief Executive,Director Of Economy & Growth,Community Investment Team,Private Contractors,Third Party Prov - Private,PH101,1/29/2015,330202,1088.73,REVENUE,ROCK FOUNDATION UK LTD,100481
NORTH EAST LINCOLNSHIRE COUNCIL,http://statistics.data.gov.uk/id/local-authority/00FC,Chief Executive,Director Of Economy & Growth,Community Investment Team,Private Contractors,Third Party Prov - Private,PH101,1/16/2015,327922,864,REVENUE,LOVE FROM ITALY,124267
NORTH EAST LINCOLNSHIRE COUNCIL,http://statistics.data.gov.uk/id/local-authority/00FC,Chief Executive,Director Of Economy & Growth,Community Investment Team,Private Contractors,Third Party Prov - Private,PH101,1/21/2015,327881,832.59,REVENUE,DRYBAND ONE LTD,100396
NORTH EAST LINCOLNSHIRE COUNCIL,http://statistics.data.gov.uk/id/local-authority/00FC,Chief Executive,Director Of Economy & Growth,Community Investment Team,Private Contractors,Third Party Prov - Private,PH101,1/26/2015,328823,700.06,REVENUE,ROCK FOUNDATION UK LTD,100481
NORTH EAST LINCOLNSHIRE COUNCIL,http://statistics.data.gov.uk/id/local-authority/00FC,Chief Executive,Director Of Economy & Growth,Community Investment Team,Private Contractors,Third Party Prov - Private,PH101,1/15/2015,327489,1267.5,REVENUE,WESTMINSTER GRIMSBY,125447
NORTH EAST LINCOLNSHIRE COUNCIL,http://statistics.data.gov.uk/id/local-authority/00FC,Chief Executive,Director Of Economy & Growth,Community Investment Team,Private Contractors,Third Party Prov - Private,PH101,1/21/2015,328774,2970,REVENUE,WENDY'S DELI & COFFEE,110010
NORTH EAST LINCOLNSHIRE COUNCIL,http://statistics.data.gov.uk/id/local-authority/00FC,Chief Executive,Director Of Economy & Growth,Community Investment Team,Private Contractors,Third Party Prov - Private,PH101,1/22/2015,328662,503.22,REVENUE,WENDY'S DELI & COFFEE,110010
NORTH EAST LINCOLNSHIRE COUNCIL,http://statistics.data.gov.uk/id/local-authority/00FC,Chief Executive,Director Of Economy & Growth,Community Investment Team,Private Contractors,Third Party Prov - Private,PH101,1/26/2015,328560,1347.5,REVENUE,KANDYWORLD,107317
NORTH EAST LINCOLNSHIRE COUNCIL,http://statistics.data.gov.uk/id/local-authority/00FC,Chief Executive,Director Of Economy & Growth,Community Investment Team,Private Contractors,Third Party Prov - Private,PH101,1/21/2015,327971,992.8,REVENUE,AGE UK NORTH EAST LINCOLNSHIRE,113772
NORTH EAST LINCOLNSHIRE COUNCIL,http://statistics.data.gov.uk/id/local-authority/00FC,Chief Executive,Director Of Economy & Growth,Community Investment Team,Private Contractors,Third Party Prov - Private,PH101,1/23/2015,327768,1350.48,REVENUE,GRAHAM DAVIS (COMMERCIALS) LTD,110643
NORTH EAST LINCOLNSHIRE COUNCIL,http://statistics.data.gov.uk/id/local-authority/00FC,Chief Executive,Director Of Economy & Growth,Community Investment Team,Private Contractors,Third Party Prov - Private,PH101,1/28/2015,328789,676,REVENUE,GRAND DESIGN SERVICES,123032
NORTH EAST LINCOLNSHIRE COUNCIL,http://statistics.data.gov.uk/id/local-authority/00FC,Chief Executive,Director Of Economy & Growth,Community Investment Team,Private Contractors,Third Party Prov - Private,PH101,1/29/2015,330200,1690,REVENUE,DKM ASSESSMENT AND VERIFICATION LTD,126798
NORTH EAST LINCOLNSHIRE COUNCIL,http://statistics.data.gov.uk/id/local-authority/00FC,Chief Executive,Director Of Economy & Growth,Community Investment Team,Private Contractors,Third Party Prov - Private,PH101,1/29/2015,329848,1267.5,REVENUE,PRIORY GUEST HOUSE,102054
NORTH EAST LINCOLNSHIRE COUNCIL,http://statistics.data.gov.uk/id/local-authority/00FC,Chief Executive,Director Of Economy & Growth,Community Investment Team,Private Contractors,Third Party Prov - Private,PH101,1/29/2015,329847,845,REVENUE,PRIORY GUEST HOUSE,102054
NORTH EAST LINCOLNSHIRE COUNCIL,http://statistics.data.gov.uk/id/local-authority/00FC,Chief Executive,Director Of Economy & Growth,Community Investment Team,Private Contractors,Third Party Prov - Private,PH101,1/28/2015,328850,1067.04,REVENUE,THE BATHROOM VILLAGE LTD,125146
NORTH EAST LINCOLNSHIRE COUNCIL,http://statistics.data.gov.uk/id/local-authority/00FC,Chief Executive,Director Of Economy & Growth,Community Investment Team,Private Contractors,Third Party Prov - Private,PH101,1/26/2015,328824,1224.66,REVENUE,ROCK FOUNDATION UK LTD,100481
NORTH EAST LINCOLNSHIRE COUNCIL,http://statistics.data.gov.uk/id/local-authority/00FC,Chief Executive,Director Of Economy & Growth,Community Investment Team,Private Contractors,Third Party Prov - Private,PH101,1/26/2015,328819,1820,REVENUE,ADEPTA ENGINEERING LTD,122588
NORTH EAST LINCOLNSHIRE COUNCIL,http://statistics.data.gov.uk/id/local-authority/00FC,Chief Executive,Director Of Economy & Growth,Community Investment Team,Private Contractors,Third Party Prov - Private,PH101,1/26/2015,328558,416.5,REVENUE,BIG SKY PUBLISHING LTD,119601
NORTH EAST LINCOLNSHIRE COUNCIL,http://statistics.data.gov.uk/id/local-authority/00FC,Chief Executive,Director Of Economy & Growth,Community Investment Team,Private Contractors,Third Party Prov - Private,PH101,1/21/2015,327974,1569.75,REVENUE,BCJ CONSTRUCTION LTD,112224
NORTH EAST LINCOLNSHIRE COUNCIL,http://statistics.data.gov.uk/id/local-authority/00FC,Chief Executive,Director Of Economy & Growth,Community Investment Team,Private Contractors,Third Party Prov - Private,PH101,1/26/2015,327782,845,REVENUE,THE NOTTINGHAM HOUSE HOTEL,125400
NORTH EAST LINCOLNSHIRE COUNCIL,http://statistics.data.gov.uk/id/local-authority/00FC,Chief Executive,Director Of Economy & Growth,Community Investment Team,Private Contractors,Third Party Prov - Private,PH101,1/26/2015,328557,845,REVENUE,GREEN FUTURES,102397
NORTH EAST LINCOLNSHIRE COUNCIL,http://statistics.data.gov.uk/id/local-authority/00FC,Chief Executive,Director Of Economy & Growth,Community Investment Team,Private Contractors,Third Party Prov - Private,PH101,1/30/2015,329284,1014,REVENUE,GREEN FUTURES,102397
NORTH EAST LINCOLNSHIRE COUNCIL,http://statistics.data.gov.uk/id/local-authority/00FC,Chief Executive,Director Of Economy & Growth,Community Investment Team,Private Contractors,Third Party Prov - Private,PH101,1/22/2015,328651,1333.8,REVENUE,ELLIS DIRECT LIMITED,101138
NORTH EAST LINCOLNSHIRE COUNCIL,http://statistics.data.gov.uk/id/local-authority/00FC,Chief Executive,Director Of Economy & Growth,Community Investment Team,Private Contractors,Third Party Prov - Private,PH101,1/21/2015,327945,675.39,REVENUE,VONNIES CAFE,102376
NORTH EAST LINCOLNSHIRE COUNCIL,http://statistics.data.gov.uk/id/local-authority/00FC,Chief Executive,Director Of Economy & Growth,Community Investment Team,Private Contractors,Third Party Prov - Private,PH101,1/26/2015,327784,2080,REVENUE,CKP BUILDERS LTD,126815
NORTH EAST LINCOLNSHIRE COUNCIL,http://statistics.data.gov.uk/id/local-authority/00FC,Chief Executive,Director Of Economy & Growth,Community Investment Team,Private Contractors,Third Party Prov - Private,PH101,1/15/2015,327641,910,REVENUE,AGE UK NORTH EAST LINCOLNSHIRE,113772
NORTH EAST LINCOLNSHIRE COUNCIL,http://statistics.data.gov.uk/id/local-authority/00FC,Chief Executive,Director Of Economy & Growth,Community Investment Team,Private Contractors,Third Party Prov - Private,PH101,1/15/2015,327640,3380,REVENUE,STEVE AUSTWICK GARDEN SERVICES,109384
NORTH EAST LINCOLNSHIRE COUNCIL,http://statistics.data.gov.uk/id/local-authority/00FC,Chief Executive,Director Of Economy & Growth,Community Investment Team,Private Contractors,Third Party Prov - Private,PH101,1/26/2015,327653,1816.2,REVENUE,KEYZO IT SOLUTIONS,107161
NORTH EAST LINCOLNSHIRE COUNCIL,http://statistics.data.gov.uk/id/local-authority/00FC,Chief Executive,Director Of Economy & Growth,Community Investment Team,Private Contractors,Third Party Prov - Private,PH101,1/15/2015,327487,1875,REVENUE,FAST-FORM SYSTEMS LTD,127598
NORTH EAST LINCOLNSHIRE COUNCIL,http://statistics.data.gov.uk/id/local-authority/00FC,Chief Executive,Director Of Economy & Growth,Community Investment Team,Private Contractors,Third Party Prov - Private,PH101,1/21/2015,327919,971.75,REVENUE,WINDOW FILM APPLICATIONS,127966
NORTH EAST LINCOLNSHIRE COUNCIL,http://statistics.data.gov.uk/id/local-authority/00FC,Chief Executive,Director Of Economy & Growth,Community Investment Team,Private Contractors,Third Party Prov - Private,PH101,1/15/2015,326822,2064,REVENUE,MAYNE GAS HEATING LTD,101861
NORTH EAST LINCOLNSHIRE COUNCIL,http://statistics.data.gov.uk/id/local-authority/00FC,Chief Executive,Director Of Economy & Growth,Community Investment Team,Private Contractors,Third Party Prov - Private,PH101,1/29/2015,329832,722.8,REVENUE,CENTRE4 LIMITED,126893
NORTH EAST LINCOLNSHIRE COUNCIL,http://statistics.data.gov.uk/id/local-authority/00FC,Chief Executive,Director Of Economy & Growth,Community Investment Team,Private Contractors,Third Party Prov - Private,PH101,1/16/2015,328258,823.3,REVENUE,ENVIRO GY LTD,125195
NORTH EAST LINCOLNSHIRE COUNCIL,http://statistics.data.gov.uk/id/local-authority/00FC,Chief Executive,Director Of Economy & Growth,Community Investment Team,Private Contractors,Third Party Prov - Private,PH101,1/26/2015,327783,1342.25,REVENUE,LINDSEY GARDEN PRODUCTS,106060
NORTH EAST LINCOLNSHIRE COUNCIL,http://statistics.data.gov.uk/id/local-authority/00FC,Chief Executive,Director Of Economy & Growth,Community Investment Team,Private Contractors,Third Party Prov - Private,PH101,01/05/2015,326172,676,REVENUE,THE OLIVE TREE CAFE,111152
NORTH EAST LINCOLNSHIRE COUNCIL,http://statistics.data.gov.uk/id/local-authority/00FC,Chief Executive,Director Of Economy & Growth,Community Investment Team,Private Contractors,Third Party Prov - Private,PH101,1/15/2015,326820,1592.5,REVENUE,SMILE 4 YOU LTD,108683
NORTH EAST LINCOLNSHIRE COUNCIL,http://statistics.data.gov.uk/id/local-authority/00FC,Chief Executive,Director Of Economy & Growth,Community Investment Team,Private Contractors,Third Party Prov - Private,PH101,1/26/2015,328980,560.63,REVENUE,MAINLINE CYCLES,127500
NORTH EAST LINCOLNSHIRE COUNCIL,http://statistics.data.gov.uk/id/local-authority/00FC,Chief Executive,Director Of Economy & Growth,Community Investment Team,Private Contractors,Third Party Prov - Private,PH101,1/21/2015,327973,760.5,REVENUE,RGL INSTALLATIONS LTD,112007
NORTH EAST LINCOLNSHIRE COUNCIL,http://statistics.data.gov.uk/id/local-authority/00FC,Chief Executive,Director Of Economy & Growth,Community Investment Team,Private Contractors,Third Party Prov - Private,PH101,1/21/2015,327933,260,REVENUE,POLLY ANNES PANTRY,128464
NORTH EAST LINCOLNSHIRE COUNCIL,http://statistics.data.gov.uk/id/local-authority/00FC,Chief Executive,Director Of Economy & Growth,Community Investment Team,Private Contractors,Third Party Prov - Private,PH101,1/26/2015,328699,2240,REVENUE,DEAN WILLETT & SONS,101982
NORTH EAST LINCOLNSHIRE COUNCIL,http://statistics.data.gov.uk/id/local-authority/00FC,Chief Executive,Director Of Economy & Growth,Community Investment Team,Private Contractors,Third Party Prov - Private,PH101,1/15/2015,327883,410.48,REVENUE,NAVIGO,104262
NORTH EAST LINCOLNSHIRE COUNCIL,http://statistics.data.gov.uk/id/local-authority/00FC,Chief Executive,Director Of Economy & Growth,Community Investment Team,Private Contractors,Third Party Prov - Private,PH101,1/15/2015,327882,654.04,REVENUE,NAVIGO,104262
NORTH EAST LINCOLNSHIRE COUNCIL,http://statistics.data.gov.uk/id/local-authority/00FC,Chief Executive,Director Of Economy & Growth,Community Investment Team,Private Contractors,Third Party Prov - Private,PH101,01/05/2015,325787,1077.34,REVENUE,GREENSIDES HEATING LTD,111871
NORTH EAST LINCOLNSHIRE COUNCIL,http://statistics.data.gov.uk/id/local-authority/00FC,Chief Executive,Director Of Economy & Growth,Community Investment Team,Private Contractors,Third Party Prov - Private,PH101,1/16/2015,328241,416,REVENUE,MOTORS OF BRIGHOWGATE LTD,128555
NORTH EAST LINCOLNSHIRE COUNCIL,http://statistics.data.gov.uk/id/local-authority/00FC,Chief Executive,Director Of Economy & Growth,Community Investment Team,Private Contractors,Third Party Prov - Private,PH101,1/16/2015,327618,826.5,REVENUE,CPO MEDIA,102186
NORTH EAST LINCOLNSHIRE COUNCIL,http://statistics.data.gov.uk/id/local-authority/00FC,Chief Executive,Director Of Economy & Growth,Community Investment Team,Private Contractors,Third Party Prov - Private,PH101,1/21/2015,327917,420,REVENUE,MARINER PACKAGING COMPANY LTD,110012
NORTH EAST LINCOLNSHIRE COUNCIL,http://statistics.data.gov.uk/id/local-authority/00FC,Chief Executive,Director Of Economy & Growth,Community Investment Team,Private Contractors,Third Party Prov - Private,PH101,1/26/2015,328820,480,REVENUE,GRAYS HEATING LTD,128179
NORTH EAST LINCOLNSHIRE COUNCIL,http://statistics.data.gov.uk/id/local-authority/00FC,Chief Executive,Director Of Economy & Growth,Community Investment Team,Private Contractors,Third Party Prov - Private,PH101,1/15/2015,327488,1890,REVENUE,EVOLVE WEALTH,109834
NORTH EAST LINCOLNSHIRE COUNCIL,http://statistics.data.gov.uk/id/local-authority/00FC,Chief Executive,Director Of Economy & Growth,Community Investment Team,Private Contractors,Third Party Prov - Private,PH101,1/29/2015,329885,1500,REVENUE,CARE4ALL,111733
NORTH EAST LINCOLNSHIRE COUNCIL,http://statistics.data.gov.uk/id/local-authority/00FC,Chief Executive,Director Of Economy & Growth,Community Investment Team,Private Contractors,Third Party Prov - Private,PH101,1/16/2015,327916,1500,REVENUE,WEB VISUAL LTD,124828
NORTH EAST LINCOLNSHIRE COUNCIL,http://statistics.data.gov.uk/id/local-authority/00FC,Chief Executive,Director Of Economy & Growth,Community Investment Team,Private Contractors,Third Party Prov - Private,PH101,1/16/2015,327911,1500,REVENUE,CARE PLUS GROUP,106467
NORTH EAST LINCOLNSHIRE COUNCIL,http://statistics.data.gov.uk/id/local-authority/00FC,Chief Executive,Director Of Economy & Growth,Community Investment Team,Private Contractors,Third Party Prov - Private,PH101,1/29/2015,329874,1500,REVENUE,GY/CLEE & DIST CITIZENS,101013
NORTH EAST LINCOLNSHIRE COUNCIL,http://statistics.data.gov.uk/id/local-authority/00FC,Chief Executive,Director Of Economy & Growth,Community Investment Team,Private Contractors,Third Party Prov - Private,PH101,01/12/2015,326797,1920,REVENUE,D J SERVICE CENTRE,119916
NORTH EAST LINCOLNSHIRE COUNCIL,http://statistics.data.gov.uk/id/local-authority/00FC,Chief Executive,Director Of Economy & Growth,Community Investment Team,Private Contractors,Third Party Prov - Private,PH101,1/13/2015,326664,2730,REVENUE,BLACK FISH BRANDING SOLUTIONS,120696
NORTH EAST LINCOLNSHIRE COUNCIL,http://statistics.data.gov.uk/id/local-authority/00FC,Chief Executive,Director Of Economy & Growth,Community Investment Team,Private Contractors,Third Party Prov - Private,PH101,1/21/2015,327982,1344,REVENUE,RPM INDUSTRIAL SERVICES LTD,126845
NORTH EAST LINCOLNSHIRE COUNCIL,http://statistics.data.gov.uk/id/local-authority/00FC,Chief Executive,Director Of Economy & Growth,Community Investment Team,Private Contractors,Third Party Prov - Private,PH101,1/29/2015,329884,750,REVENUE,DE FONTENAY LTD T/A LASER RED,128426
NORTH EAST LINCOLNSHIRE COUNCIL,http://statistics.data.gov.uk/id/local-authority/00FC,Chief Executive,Director Of Economy & Growth,Community Investment Team,Other Agencies,Grants Pd Over To Third Party,PJ138,1/16/2015,326994,98087.5,REVENUE,STONELEDGE PLANT AND TRANSPORT LTD,127300
NORTH EAST LINCOLNSHIRE COUNCIL,http://statistics.data.gov.uk/id/local-authority/00FC,Chief Executive,Director Of Economy & Growth,Community Investment Team,Other Agencies,Grants Pd Over To Third Party,PJ138,1/30/2015,330201,18474.45,REVENUE,BLACKROW ENGINEERING  LTD,111748
NORTH EAST LINCOLNSHIRE COUNCIL,http://statistics.data.gov.uk/id/local-authority/00FC,Chief Executive,Director Of Economy & Growth,Community Investment Team,Other Agencies,Grants Pd Over To Third Party,PJ138,01/07/2015,325517,2853.75,REVENUE,E BACON & CO LTD,104090
NORTH EAST LINCOLNSHIRE COUNCIL,http://statistics.data.gov.uk/id/local-authority/00FC,Chief Executive,Director Of Economy & Growth,Community Investment Team,Other Agencies,Grants Pd Over To Third Party,PJ138,1/16/2015,328246,48427.43,REVENUE,DONALDSON FILTER COMPONENTS LTD,123410
NORTH EAST LINCOLNSHIRE COUNCIL,http://statistics.data.gov.uk/id/local-authority/00FC,Chief Executive,Director Of Economy & Growth,Community Investment Team,Other Agencies,Grants Pd Over To Third Party,PJ138,1/15/2015,327633,28000,REVENUE,ARMSTRONG HYDRAULIC SERVICES (HULL) LTD,121132
NORTH EAST LINCOLNSHIRE COUNCIL,http://statistics.data.gov.uk/id/local-authority/00FC,Chief Executive,Director Of Economy & Growth,Community Investment Team,Other Agencies,Grants Pd Over To Third Party,PJ138,1/16/2015,326995,70716.38,REVENUE,ROFIN-SINAR UK LTD,121420
NORTH EAST LINCOLNSHIRE COUNCIL,http://statistics.data.gov.uk/id/local-authority/00FC,Chief Executive,Director Of Economy & Growth,Community Investment Team,Other Agencies,Grants Pd Over To Third Party,PJ138,1/29/2015,330083,101745.98,REVENUE,ROFIN-SINAR UK LTD,121420
NORTH EAST LINCOLNSHIRE COUNCIL,http://statistics.data.gov.uk/id/local-authority/00FC,Chief Executive,Director Of Economy & Growth,Community Investment Team,Other Agencies,Grants Pd Over To Third Party,PJ138,1/29/2015,329840,3103.63,REVENUE,REFLEX DATA SYSTEMS LTD,125076
NORTH EAST LINCOLNSHIRE COUNCIL,http://statistics.data.gov.uk/id/local-authority/00FC,Chief Executive,Director Of Economy & Growth,Community Investment Team,Other Agencies,Grants Pd Over To Third Party,PJ138,1/29/2015,329841,13003.04,REVENUE,REFLEX DATA SYSTEMS LTD,125076
NORTH EAST LINCOLNSHIRE COUNCIL,http://statistics.data.gov.uk/id/local-authority/00FC,Chief Executive,Director Of Economy & Growth,Community Investment Team,Other Agencies,Grants Pd Over To Third Party,PJ138,1/15/2015,327485,4645.06,REVENUE,GLOBAL VIEW SYSTEMS LTD,123985
NORTH EAST LINCOLNSHIRE COUNCIL,http://statistics.data.gov.uk/id/local-authority/00FC,Chief Executive,Director Of Economy & Growth,Community Investment Team,Other Agencies,Grants Pd Over To Third Party,PJ138,1/26/2015,328792,179159.41,REVENUE,BENSON PARK LTD,125760
NORTH EAST LINCOLNSHIRE COUNCIL,http://statistics.data.gov.uk/id/local-authority/00FC,Chief Executive,Director Of Economy & Growth,Community Investment Team,Other Agencies,Grants Pd Over To Third Party,PJ138,1/28/2015,329693,17706.56,REVENUE,TECHNICAL ABSORBENTS LTD,125088
NORTH EAST LINCOLNSHIRE COUNCIL,http://statistics.data.gov.uk/id/local-authority/00FC,Chief Executive,Director Of Economy & Growth,Community Investment Team,Other Agencies,Grants Pd Over To Third Party,PJ138,1/30/2015,329696,5063.66,REVENUE,TECHNICAL ABSORBENTS LTD,125088
NORTH EAST LINCOLNSHIRE COUNCIL,http://statistics.data.gov.uk/id/local-authority/00FC,Chief Executive,Director Of Economy & Growth,Community Investment Team,Other Agencies,Grants Pd Over To Third Party,PJ138,1/29/2015,329837,1890,REVENUE,ENVIROMAIL LTD,124372
NORTH EAST LINCOLNSHIRE COUNCIL,http://statistics.data.gov.uk/id/local-authority/00FC,Chief Executive,Director Of Economy & Growth,Community Investment Team,Other Agencies,Grants Pd Over To Third Party,PJ138,1/29/2015,329834,18830.99,REVENUE,DAIFUKU LOGAN LIMITED,125600
NORTH EAST LINCOLNSHIRE COUNCIL,http://statistics.data.gov.uk/id/local-authority/00FC,Chief Executive,Director Of Economy & Growth,Community Investment Team,Other Agencies,Grants Pd Over To Third Party,PJ138,1/27/2015,328790,12816.76,REVENUE,PHOENIX HULL LTD,123383
NORTH EAST LINCOLNSHIRE COUNCIL,http://statistics.data.gov.uk/id/local-authority/00FC,Chief Executive,Director Of Economy & Growth,Community Investment Team,Other Agencies,Grants Pd Over To Third Party,PJ138,1/15/2015,327631,2500,REVENUE,RILEY ENGINEERING LTD,126959
NORTH EAST LINCOLNSHIRE COUNCIL,http://statistics.data.gov.uk/id/local-authority/00FC,Chief Executive,Director Of Economy & Growth,Community Investment Team,Other Agencies,Grants Pd Over To Third Party,PJ138,1/22/2015,328675,499.09,REVENUE,GRP BUILDING SOLUTIONS LTD,127276
NORTH EAST LINCOLNSHIRE COUNCIL,http://statistics.data.gov.uk/id/local-authority/00FC,Chief Executive,Director Of Economy & Growth,Community Investment Team,Other Agencies,Grants Pd Over To Third Party,PJ138,1/15/2015,327684,45031.32,REVENUE,HSH COLDSTORES LTD,127072
NORTH EAST LINCOLNSHIRE COUNCIL,http://statistics.data.gov.uk/id/local-authority/00FC,Chief Executive,Director Of Economy & Growth,Community Investment Team,Other Agencies,Grants Pd Over To Third Party,PJ138,1/16/2015,328249,8503.91,REVENUE,HUMBERSIDE ENGINEERING TRAINING,105260
NORTH EAST LINCOLNSHIRE COUNCIL,http://statistics.data.gov.uk/id/local-authority/00FC,Chief Executive,Director Of Economy & Growth,Community Investment Team,Other Agencies,Grants Pd Over To Third Party,PJ138,1/29/2015,329836,315.56,REVENUE,BRITTONS REPAIR STUDIO LIMITED,127840
NORTH EAST LINCOLNSHIRE COUNCIL,http://statistics.data.gov.uk/id/local-authority/00FC,Chief Executive,Director Of Economy & Growth,Community Investment Team,Other Agencies,Grants Pd Over To Third Party,PJ138,1/16/2015,326991,2500,REVENUE,STAMPAGRAPHICS LTD,127642
NORTH EAST LINCOLNSHIRE COUNCIL,http://statistics.data.gov.uk/id/local-authority/00FC,Chief Executive,Director Of Economy & Growth,Community Investment Team,Other Agencies,Grants Pd Over To Third Party,PJ138,1/16/2015,326993,6510,REVENUE,STAMPAGRAPHICS LTD,127642
NORTH EAST LINCOLNSHIRE COUNCIL,http://statistics.data.gov.uk/id/local-authority/00FC,Chief Executive,Director Of Economy & Growth,Community Investment Team,Other Agencies,Grants Pd Over To Third Party,PJ138,1/29/2015,329838,2055.38,REVENUE,LCS GROUP,128526
NORTH EAST LINCOLNSHIRE COUNCIL,http://statistics.data.gov.uk/id/local-authority/00FC,Chief Executive,Director Of Economy & Growth,Community Investment Team,Other Agencies,Grants Pd Over To Third Party,PJ138,1/16/2015,328248,3192.81,REVENUE,ELECTRIC STRING LTD,127664
NORTH EAST LINCOLNSHIRE COUNCIL,http://statistics.data.gov.uk/id/local-authority/00FC,Chief Executive,Director Of Economy & Growth,Community Investment Team,Other Agencies,Grants Pd Over To Third Party,PJ138,1/16/2015,328244,2069.19,REVENUE,PETTIGREW BUILDERS LTD,104166
NORTH EAST LINCOLNSHIRE COUNCIL,http://statistics.data.gov.uk/id/local-authority/00FC,Chief Executive,Director Of Economy & Growth,Community Investment Team,Other Agencies,Grants Pd Over To Third Party,PJ138,1/16/2015,328245,1148.53,REVENUE,PETTIGREW BUILDERS LTD,104166
NORTH EAST LINCOLNSHIRE COUNCIL,http://statistics.data.gov.uk/id/local-authority/00FC,Chief Executive,Director Of Economy & Growth,Community Investment Team,Other Agencies,Grants Pd Over To Third Party,PJ138,1/29/2015,329839,5815.56,REVENUE,RENCO NETS,107073
NORTH EAST LINCOLNSHIRE COUNCIL,http://statistics.data.gov.uk/id/local-authority/00FC,Chief Executive,Director Of Economy & Growth,Community Investment Team,Other Agencies,Grants Pd Over To Third Party,PJ138,1/26/2015,328791,2008.39,REVENUE,ELITE CRETE SYSTEMS LTD,127416
NORTH EAST LINCOLNSHIRE COUNCIL,http://statistics.data.gov.uk/id/local-authority/00FC,Chief Executive,Director Of Economy & Growth,Community Investment Team,Other Agencies,Grants Pd Over To Third Party,PJ138,1/26/2015,327728,5154.55,REVENUE,BLACKROW ENGINEERING  LTD,111748
NORTH EAST LINCOLNSHIRE COUNCIL,http://statistics.data.gov.uk/id/local-authority/00FC,Chief Executive,Director Of Economy & Growth,Community Investment Team,Other Agencies,Grants Pd Over To Third Party,PJ138,1/26/2015,327775,72000,REVENUE,CARMICHAEL TRAINING & CONSULTANCY LTD,128739
NORTH EAST LINCOLNSHIRE COUNCIL,http://statistics.data.gov.uk/id/local-authority/00FC,Chief Executive,Director Of Economy & Growth,Community Investment Team,Other Agencies,Grants Pd Over To Third Party,PJ138,1/28/2015,329842,3163.5,REVENUE,CARMICHAEL TRAINING & CONSULTANCY LTD,128739
NORTH EAST LINCOLNSHIRE COUNCIL,http://statistics.data.gov.uk/id/local-authority/00FC,Chief Executive,Director Of Economy & Growth,Community Investment Team,Other Agencies,Grants Pd Over To Third Party,PJ138,01/05/2015,325777,678.18,REVENUE,MAPA PR LTD,128060
NORTH EAST LINCOLNSHIRE COUNCIL,http://statistics.data.gov.uk/id/local-authority/00FC,Chief Executive,Director Of Economy & Growth,Community Investment Team,Other Agencies,Grants Pd Over To Third Party,PJ138,1/29/2015,329864,2895,REVENUE,P & H PRECISION LTD,128074
NORTH EAST LINCOLNSHIRE COUNCIL,http://statistics.data.gov.uk/id/local-authority/00FC,Chief Executive,Director Of Economy & Growth,Community Investment Team,Other Agencies,Grants Pd Over To Third Party,PJ138,1/16/2015,328243,4031.99,REVENUE,PLANTAVI LTD,127880
NORTH EAST LINCOLNSHIRE COUNCIL,http://statistics.data.gov.uk/id/local-authority/00FC,Chief Executive,Director Of Economy & Growth,Community Investment Team,Other Agencies,Grants Pd Over To Third Party,PJ138,1/16/2015,328240,22981.52,REVENUE,PHIL HEARD T/A AMBASSADOR SEAFOODS,128746
NORTH EAST LINCOLNSHIRE COUNCIL,http://statistics.data.gov.uk/id/local-authority/00FC,Chief Executive,Director Of Economy & Growth,Community Investment Team,Other Agencies,Grants Pd Over To Third Party,PJ138,1/28/2015,329010,10000,REVENUE,HARMANS ON SITE SERVICES LTD,128287
NORTH EAST LINCOLNSHIRE COUNCIL,http://statistics.data.gov.uk/id/local-authority/00FC,Chief Executive,Director Of Economy & Growth,Community Investment Team,Other Agencies,Grants Pd Over To Third Party,PJ138,1/21/2015,327936,7101.61,REVENUE,OPUS INFORMATION TECHNOLOGY LIMITED,128502
NORTH EAST LINCOLNSHIRE COUNCIL,http://statistics.data.gov.uk/id/local-authority/00FC,Chief Executive,Director Of Economy & Growth,Community Investment Team,Other Agencies,Grants Pd Over To Third Party,PJ138,1/29/2015,329315,12857.5,REVENUE,ADEPTA ENGINEERING LTD,122588
NORTH EAST LINCOLNSHIRE COUNCIL,http://statistics.data.gov.uk/id/local-authority/00FC,Chief Executive,Director Of Economy & Growth,Community Investment Team,Other Agencies,Grants Pd Over To Third Party,PJ138,1/16/2015,326676,16818.66,REVENUE,CENTRE LINE MACHINING LTD,113467
NORTH EAST LINCOLNSHIRE COUNCIL,http://statistics.data.gov.uk/id/local-authority/00FC,Chief Executive,Director Of Economy & Growth,Community Investment Team,Other Agencies,Grants Pd Over To Third Party,PJ138,1/22/2015,328962,11930.42,REVENUE,NOMORE IDEAS LTD,129078
NORTH EAST LINCOLNSHIRE COUNCIL,http://statistics.data.gov.uk/id/local-authority/00FC,Chief Executive,Director Of Economy & Growth,Community Investment Team,Other Agencies,Grants Pd Over To Third Party,PJ138,1/22/2015,328963,1005.83,REVENUE,NOMORE IDEAS LTD,129078
NORTH EAST LINCOLNSHIRE COUNCIL,http://statistics.data.gov.uk/id/local-authority/00FC,Chief Executive,Director Of Economy & Growth,Community Investment Team,Other Agencies,Grants Pd Over To Third Party,PJ138,1/16/2015,326992,28950.54,REVENUE,RIVA FOODS LTD,127061
NORTH EAST LINCOLNSHIRE COUNCIL,http://statistics.data.gov.uk/id/local-authority/00FC,Chief Executive,Director Of Economy & Growth,Community Investment Team,Other Agencies,Grants Pd Over To Third Party,PJ138,1/13/2015,326681,51794,REVENUE,REGROUP (UK) LTD,105678
NORTH EAST LINCOLNSHIRE COUNCIL,http://statistics.data.gov.uk/id/local-authority/00FC,Chief Executive,Director Of Economy & Growth,Community Investment Team,Other Agencies,Grants Pd Over To Third Party,PJ138,01/12/2015,327259,94289.08,REVENUE,D&AGF lTD,128410
NORTH EAST LINCOLNSHIRE COUNCIL,http://statistics.data.gov.uk/id/local-authority/00FC,Chief Executive,Director Of Economy & Growth,Community Investment Team,Other Agencies,Grants Pd Over To Third Party,PJ138,1/16/2015,327939,13101,REVENUE,BURGESS GROUP PLC,127540
NORTH EAST LINCOLNSHIRE COUNCIL,http://statistics.data.gov.uk/id/local-authority/00FC,Chief Executive,Director Of Economy & Growth,Community Investment Team,Other Agencies,Grants Pd Over To Third Party,PJ138,1/26/2015,328255,37670.54,REVENUE,BURGESS GROUP PLC,127540
NORTH EAST LINCOLNSHIRE COUNCIL,http://statistics.data.gov.uk/id/local-authority/00FC,Chief Executive,Director Of Economy & Growth,Community Investment Team,Private Contractors,Third Party Prov - Private,PH101,1/13/2015,326714,1737.5,REVENUE,KNAUF UK GMBH,126613
NORTH EAST LINCOLNSHIRE COUNCIL,http://statistics.data.gov.uk/id/local-authority/00FC,Chief Executive,Director Of Economy & Growth,Community Investment Team,Private Contractors,Third Party Prov - Private,PH101,01/12/2015,324936,3000,REVENUE,DUNLOP OIL & MARINE LTD,113675
NORTH EAST LINCOLNSHIRE COUNCIL,http://statistics.data.gov.uk/id/local-authority/00FC,Chief Executive,Director Of Economy & Growth,Community Investment Team,Private Contractors,Third Party Prov - Private,PH101,01/07/2015,324617,3000,REVENUE,HAAGENSEN WARDROBES AND KITCHENS LTD,127029
NORTH EAST LINCOLNSHIRE COUNCIL,http://statistics.data.gov.uk/id/local-authority/00FC,Chief Executive,Director Of Economy & Growth,Community Investment Team,Private Contractors,Third Party Prov - Private,PH101,1/21/2015,327975,1500,REVENUE,CYDEN HOMES LTD,116527
NORTH EAST LINCOLNSHIRE COUNCIL,http://statistics.data.gov.uk/id/local-authority/00FC,Chief Executive,Director Of Economy & Growth,Community Investment Team,Private Contractors,Third Party Prov - Private,PH101,1/29/2015,329883,1500,REVENUE,MK BUILDING SERVICES LTD,127171
NORTH EAST LINCOLNSHIRE COUNCIL,http://statistics.data.gov.uk/id/local-authority/00FC,Chief Executive,Director Of Economy & Growth,Community Investment Team,Private Contractors,Third Party Prov - Private,PH101,1/21/2015,327977,1500,REVENUE,C F THOMPSON & SON (GRIMSBY) lTD,127505
NORTH EAST LINCOLNSHIRE COUNCIL,http://statistics.data.gov.uk/id/local-authority/00FC,Chief Executive,Director Of Economy & Growth,Community Investment Team,Private Contractors,Third Party Prov - Private,PH101,01/12/2015,325466,7973.2,REVENUE,CRISTAL PIGMENT UK LTD,122351
NORTH EAST LINCOLNSHIRE COUNCIL,http://statistics.data.gov.uk/id/local-authority/00FC,Chief Executive,Director Of Economy & Growth,Community Investment Team,Private Contractors,Third Party Prov - Private,PH101,1/29/2015,329891,1500,REVENUE,BEESON PLUMBING & HEATING LTD,127313
NORTH EAST LINCOLNSHIRE COUNCIL,http://statistics.data.gov.uk/id/local-authority/00FC,Chief Executive,Director Of Economy & Growth,Community Investment Team,Private Contractors,Third Party Prov - Private,PH101,1/15/2015,326818,12000,REVENUE,CENTRICA ENERGY LTD,127699
NORTH EAST LINCOLNSHIRE COUNCIL,http://statistics.data.gov.uk/id/local-authority/00FC,Chief Executive,Director Of Economy & Growth,Community Investment Team,Private Contractors,Third Party Prov - Private,PH101,1/29/2015,329902,1500,REVENUE,LMS HOMES LTD,127191
NORTH EAST LINCOLNSHIRE COUNCIL,http://statistics.data.gov.uk/id/local-authority/00FC,Chief Executive,Director Of Economy & Growth,Community Investment Team,Private Contractors,Third Party Prov - Private,PH101,1/26/2015,327776,24000,REVENUE,SITE SERVICE ENGINEERING LTD,127849
NORTH EAST LINCOLNSHIRE COUNCIL,http://statistics.data.gov.uk/id/local-authority/00FC,Chief Executive,Director Of Economy & Growth,Community Investment Team,Private Contractors,Third Party Prov - Private,PH101,1/26/2015,327778,30000,REVENUE,VOLKERRAIL LTD,122927
NORTH EAST LINCOLNSHIRE COUNCIL,http://statistics.data.gov.uk/id/local-authority/00FC,Chief Executive,Director Of Economy & Growth,Community Investment Team,Private Contractors,Third Party Prov - Private,PH101,1/29/2015,329868,24000,REVENUE,ENGENDA LTD T/A LECTEC SERVICES,128034
NORTH EAST LINCOLNSHIRE COUNCIL,http://statistics.data.gov.uk/id/local-authority/00FC,Chief Executive,Director Of Economy & Growth,Community Investment Team,Private Contractors,Third Party Prov - Private,PH101,1/29/2015,329869,24000,REVENUE,QUBE SPECIALIST MAINTENANCE SOLUTIONS LTD,124931
NORTH EAST LINCOLNSHIRE COUNCIL,http://statistics.data.gov.uk/id/local-authority/00FC,Chief Executive,Director Of Economy & Growth,Community Investment Team,Private Contractors,Third Party Prov - Private,PH101,01/05/2015,324776,6000,REVENUE,LENZING FIBERS GRIMSBY LTD,127539
NORTH EAST LINCOLNSHIRE COUNCIL,http://statistics.data.gov.uk/id/local-authority/00FC,Chief Executive,Director Of Economy & Growth,Community Investment Team,Private Contractors,Third Party Prov - Private,PH101,1/15/2015,325439,6000,REVENUE,DYAS ELECTRICAL ENGINEERS,110508
NORTH EAST LINCOLNSHIRE COUNCIL,http://statistics.data.gov.uk/id/local-authority/00FC,Chief Executive,Director Of Economy & Growth,Community Investment Team,Private Contractors,Third Party Prov - Private,PH101,1/16/2015,323105,6000,REVENUE,SCUNTHORPE SHEET METAL (2010) LTD,127588
NORTH EAST LINCOLNSHIRE COUNCIL,http://statistics.data.gov.uk/id/local-authority/00FC,Chief Executive,Director Of Economy & Growth,Community Investment Team,Private Contractors,Third Party Prov - Private,PH101,1/21/2015,327958,3000,REVENUE,PETER GIBSON,127984
NORTH EAST LINCOLNSHIRE COUNCIL,http://statistics.data.gov.uk/id/local-authority/00FC,Chief Executive,Director Of Economy & Growth,Community Investment Team,Private Contractors,Third Party Prov - Private,PH101,1/21/2015,327959,3000,REVENUE,SCOTT RAWLINS LTD,125752
NORTH EAST LINCOLNSHIRE COUNCIL,http://statistics.data.gov.uk/id/local-authority/00FC,Chief Executive,Director Of Economy & Growth,Community Investment Team,Private Contractors,Third Party Prov - Private,PH101,1/21/2015,327976,1500,REVENUE,CH CUFF LTD,127391
NORTH EAST LINCOLNSHIRE COUNCIL,http://statistics.data.gov.uk/id/local-authority/00FC,Chief Executive,Director Of Economy & Growth,Community Investment Team,Private Contractors,Third Party Prov - Private,PH101,1/26/2015,321328,3000,REVENUE,BUTTONS WOOD LTD,127415
NORTH EAST LINCOLNSHIRE COUNCIL,http://statistics.data.gov.uk/id/local-authority/00FC,Chief Executive,Director Of Economy & Growth,Community Investment Team,Private Contractors,Third Party Prov - Private,PH101,1/26/2015,327779,3000,REVENUE,WESTFIELD PLANT & MANAGEMENT SERVICES,127389
NORTH EAST LINCOLNSHIRE COUNCIL,http://statistics.data.gov.uk/id/local-authority/00FC,Chief Executive,Director Of Economy & Growth,Community Investment Team,Private Contractors,Third Party Prov - Private,PH101,1/21/2015,327981,1500,REVENUE,S CLARK PLUMBING AND HEATING SERVICES LTD,127393
NORTH EAST LINCOLNSHIRE COUNCIL,http://statistics.data.gov.uk/id/local-authority/00FC,Chief Executive,Director Of Economy & Growth,Community Investment Team,Private Contractors,Third Party Prov - Private,PH101,1/26/2015,328841,450,REVENUE,BLUESTORM DESIGN & MARKETING LTD,125864
NORTH EAST LINCOLNSHIRE COUNCIL,http://statistics.data.gov.uk/id/local-authority/00FC,Chief Executive,Director Of Economy & Growth,Community Investment Team,Private Contractors,Third Party Prov - Private,PH101,1/15/2015,326825,1200,REVENUE,RIX SHIPPING CO LTD,119343
NORTH EAST LINCOLNSHIRE COUNCIL,http://statistics.data.gov.uk/id/local-authority/00FC,Chief Executive,Director Of Economy & Growth,Community Investment Team,Miscellaneous Expenses,Legal Fees - General,LL103,1/21/2015,327996,5130,REVENUE,ACCESS REGENERATION LTD,119929
NORTH EAST LINCOLNSHIRE COUNCIL,http://statistics.data.gov.uk/id/local-authority/00FC,Chief Executive,Director Of Economy & Growth,Community Investment Team,Other Agencies,Grants Pd Over To Third Party,PJ138,1/29/2015,329887,3901.5,REVENUE,PATTESONS GLASS LTD,128959
NORTH EAST LINCOLNSHIRE COUNCIL,http://statistics.data.gov.uk/id/local-authority/00FC,Chief Executive,Director Of Economy & Growth,Retained Function,Expenses,Course/Conf Accom - Employees,LH102,1/21/2015,328649,678,REVENUE,HAYMARKET MEDIA GROUP LTD,128330
NORTH EAST LINCOLNSHIRE COUNCIL,http://statistics.data.gov.uk/id/local-authority/00FC,Chief Executive,Director Of Economy & Growth,Retained Function,Expenses,Course/Conf Accom - Employees,LH102,1/26/2015,324540,358.8,REVENUE,CARE PLUS GROUP,106467
NORTH EAST LINCOLNSHIRE COUNCIL,http://statistics.data.gov.uk/id/local-authority/00FC,Chief Executive,Director Of Economy & Growth,In Scope Contract,Private Contractors,Contract Payments,PH105,1/29/2015,329808,86927.5,REVENUE,COFELY WORKPLACE LIMITED,123983
NORTH EAST LINCOLNSHIRE COUNCIL,http://statistics.data.gov.uk/id/local-authority/00FC,Chief Executive,Director Of Economy & Growth,In Scope Contract,Private Contractors,Contract Payments,PH105,1/29/2015,329808,288453.33,REVENUE,COFELY WORKPLACE LIMITED,123983
NORTH EAST LINCOLNSHIRE COUNCIL,http://statistics.data.gov.uk/id/local-authority/00FC,Chief Executive,Director Of Economy & Growth,In Scope Contract,Private Contractors,Contract Payments,PH105,1/29/2015,329808,13624.17,REVENUE,COFELY WORKPLACE LIMITED,123983
NORTH EAST LINCOLNSHIRE COUNCIL,http://statistics.data.gov.uk/id/local-authority/00FC,Chief Executive,Director Of Economy & Growth,In Scope Contract,Private Contractors,Contract Payments,PH105,1/29/2015,329808,459310,REVENUE,COFELY WORKPLACE LIMITED,123983
NORTH EAST LINCOLNSHIRE COUNCIL,http://statistics.data.gov.uk/id/local-authority/00FC,Chief Executive,Director Of Economy & Growth,In Scope Contract,Private Contractors,Contract Payments,PH105,1/29/2015,329808,5325,REVENUE,COFELY WORKPLACE LIMITED,123983
NORTH EAST LINCOLNSHIRE COUNCIL,http://statistics.data.gov.uk/id/local-authority/00FC,Chief Executive,Director Of Economy & Growth,In Scope Contract,Private Contractors,Contract Payments,PH105,1/29/2015,329808,69896.25,REVENUE,COFELY WORKPLACE LIMITED,123983
NORTH EAST LINCOLNSHIRE COUNCIL,http://statistics.data.gov.uk/id/local-authority/00FC,Chief Executive,Director Of Economy & Growth,In Scope Contract,Private Contractors,Contract Payments,PH105,1/29/2015,329808,34407.5,REVENUE,COFELY WORKPLACE LIMITED,123983
NORTH EAST LINCOLNSHIRE COUNCIL,http://statistics.data.gov.uk/id/local-authority/00FC,Chief Executive,Director Of Economy & Growth,Planning,Customer And Client Receipts,Fees/Chrgs-O/Side Scope Vat 4,VC125,01/06/2015,325653,385,REVENUE,CR PARROTT CONSULTANTS LIMITED,128899
NORTH EAST LINCOLNSHIRE COUNCIL,http://statistics.data.gov.uk/id/local-authority/00FC,Chief Executive,Director Of Economy & Growth,Drainage & Coastal Defence,Private Contractors,Third Party Prov - Private,PH101,1/20/2015,327857,252200,REVENUE,COFELY WORKPLACE LIMITED,123983
NORTH EAST LINCOLNSHIRE COUNCIL,http://statistics.data.gov.uk/id/local-authority/00FC,Chief Executive,Director Of Economy & Growth,Highways Dso,Dlo Holding,Depot Fuel Holding Account,LM101,01/12/2015,327215,18358.2,REVENUE,HARVEST ENERGY LTD,102544
NORTH EAST LINCOLNSHIRE COUNCIL,http://statistics.data.gov.uk/id/local-authority/00FC,Chief Executive,Director Of Economy & Growth,Highways Dso,Dlo Holding,Depot Fuel Holding Account,LM101,01/12/2015,327252,1366.5,REVENUE,CERTAS ENERGY,124794
NORTH EAST LINCOLNSHIRE COUNCIL,http://statistics.data.gov.uk/id/local-authority/00FC,Chief Executive,Director Of Economy & Growth,Highways Dso,Dlo Holding,Depot Fuel Holding Account,LM101,01/12/2015,326216,17602.2,REVENUE,HARVEST ENERGY LTD,102544
NORTH EAST LINCOLNSHIRE COUNCIL,http://statistics.data.gov.uk/id/local-authority/00FC,Chief Executive,Director Of Economy & Growth,Highways Dso,Dlo Holding,Depot Fuel Holding Account,LM101,01/12/2015,326205,14063,REVENUE,HARVEST ENERGY LTD,102544
NORTH EAST LINCOLNSHIRE COUNCIL,http://statistics.data.gov.uk/id/local-authority/00FC,Chief Executive,Director Of Economy & Growth,Highways Dso,Dlo Holding,Depot Fuel Holding Account,LM101,01/12/2015,326223,1324.5,REVENUE,CERTAS ENERGY,124794
NORTH EAST LINCOLNSHIRE COUNCIL,http://statistics.data.gov.uk/id/local-authority/00FC,Chief Executive,Director Of Economy & Growth,Highways Dso,Dlo Holding,Depot Fuel Holding Account,LM101,01/12/2015,327219,17602.2,REVENUE,HARVEST ENERGY LTD,102544
NORTH EAST LINCOLNSHIRE COUNCIL,http://statistics.data.gov.uk/id/local-authority/00FC,Chief Executive,Director Of Economy & Growth,Highways Dso,Dlo Holding,Depot Fuel Holding Account,LM101,01/12/2015,326207,17602.2,REVENUE,HARVEST ENERGY LTD,102544
NORTH EAST LINCOLNSHIRE COUNCIL,http://statistics.data.gov.uk/id/local-authority/00FC,Chief Executive,Director Of Economy & Growth,Highways Dso,Dlo Holding,Depot Fuel Holding Account,LM101,01/12/2015,327220,16399.8,REVENUE,HARVEST ENERGY LTD,102544
NORTH EAST LINCOLNSHIRE COUNCIL,http://statistics.data.gov.uk/id/local-authority/00FC,Chief Executive,Director Of Economy & Growth,Highways Dso,Dlo Holding,Depot Fuel Holding Account,LM101,01/12/2015,327221,16399.8,REVENUE,HARVEST ENERGY LTD,102544
NORTH EAST LINCOLNSHIRE COUNCIL,http://statistics.data.gov.uk/id/local-authority/00FC,Chief Executive,Director Of Economy & Growth,Highways Dso,Dlo Holding,Depot Fuel Holding Account,LM101,1/28/2015,328788,1126.25,REVENUE,CERTAS ENERGY,124794
NORTH EAST LINCOLNSHIRE COUNCIL,http://statistics.data.gov.uk/id/local-authority/00FC,Chief Executive,Director Of Economy & Growth,Highways Dso,Dlo Holding,Depot Fuel Holding Account,LM101,01/12/2015,327253,1232.25,REVENUE,CERTAS ENERGY,124794
NORTH EAST LINCOLNSHIRE COUNCIL,http://statistics.data.gov.uk/id/local-authority/00FC,Chief Executive,Director Of Economy & Growth,Highways Dso,Dlo Holding,Depot Fuel Holding Account,LM101,1/28/2015,328787,675.75,REVENUE,CERTAS ENERGY,124794
NORTH EAST LINCOLNSHIRE COUNCIL,http://statistics.data.gov.uk/id/local-authority/00FC,Chief Executive,Director Of Economy & Growth,Street Lighting,Private Contractors,Third Party Prov - Private,PH101,01/08/2015,326372,4142.35,REVENUE,J MCCANN & CO LTD,100841
NORTH EAST LINCOLNSHIRE COUNCIL,http://statistics.data.gov.uk/id/local-authority/00FC,Chief Executive,Director Of Economy & Growth,Street Lighting,Rep Alterations Maint Building,Street Lighting-General Maint,GA111,01/08/2015,326372,341.49,REVENUE,J MCCANN & CO LTD,100841
NORTH EAST LINCOLNSHIRE COUNCIL,http://statistics.data.gov.uk/id/local-authority/00FC,Chief Executive,Director Of Economy & Growth,Street Lighting,Energy Costs,Electricity,GB102,01/08/2015,326472,-4262.56,REVENUE,NPOWER LIMITED,101414
NORTH EAST LINCOLNSHIRE COUNCIL,http://statistics.data.gov.uk/id/local-authority/00FC,Chief Executive,Director Of Economy & Growth,Street Lighting,Energy Costs,Electricity,GB102,01/08/2015,326466,4083.86,REVENUE,NPOWER LIMITED,101414
NORTH EAST LINCOLNSHIRE COUNCIL,http://statistics.data.gov.uk/id/local-authority/00FC,Chief Executive,Director Of Economy & Growth,Street Lighting,Energy Costs,Electricity,GB102,1/27/2015,328957,-210.89,REVENUE,NPOWER LIMITED,101414
NORTH EAST LINCOLNSHIRE COUNCIL,http://statistics.data.gov.uk/id/local-authority/00FC,Chief Executive,Director Of Economy & Growth,Street Lighting,Energy Costs,Electricity,GB102,01/08/2015,326470,4219.99,REVENUE,NPOWER LIMITED,101414
NORTH EAST LINCOLNSHIRE COUNCIL,http://statistics.data.gov.uk/id/local-authority/00FC,Chief Executive,Director Of Economy & Growth,Street Lighting,Energy Costs,Electricity,GB102,1/27/2015,328960,-217.92,REVENUE,NPOWER LIMITED,101414
NORTH EAST LINCOLNSHIRE COUNCIL,http://statistics.data.gov.uk/id/local-authority/00FC,Chief Executive,Director Of Economy & Growth,Street Lighting,Energy Costs,Electricity,GB102,1/27/2015,328961,-210.89,REVENUE,NPOWER LIMITED,101414
NORTH EAST LINCOLNSHIRE COUNCIL,http://statistics.data.gov.uk/id/local-authority/00FC,Chief Executive,Director Of Economy & Growth,Street Lighting,Energy Costs,Electricity,GB102,1/29/2015,329277,4219.99,REVENUE,NPOWER LIMITED,101414
NORTH EAST LINCOLNSHIRE COUNCIL,http://statistics.data.gov.uk/id/local-authority/00FC,Chief Executive,Director Of Economy & Growth,Street Lighting,Rep Alterations Maint Building,Street Lighting - Energy,GA110,1/22/2015,328936,641.41,REVENUE,NPOWER LIMITED,101414
NORTH EAST LINCOLNSHIRE COUNCIL,http://statistics.data.gov.uk/id/local-authority/00FC,Chief Executive,Director Of Economy & Growth,Street Lighting,Rep Alterations Maint Building,Street Lighting - Energy,GA110,1/22/2015,328938,606.31,REVENUE,NPOWER LIMITED,101414
NORTH EAST LINCOLNSHIRE COUNCIL,http://statistics.data.gov.uk/id/local-authority/00FC,Chief Executive,Director Of Economy & Growth,Street Lighting,Rep Alterations Maint Building,Street Lighting - Energy,GA110,01/08/2015,326466,11741.1,REVENUE,NPOWER LIMITED,101414
NORTH EAST LINCOLNSHIRE COUNCIL,http://statistics.data.gov.uk/id/local-authority/00FC,Chief Executive,Director Of Economy & Growth,Street Lighting,Rep Alterations Maint Building,Street Lighting - Energy,GA110,01/08/2015,326467,606.31,REVENUE,NPOWER LIMITED,101414
NORTH EAST LINCOLNSHIRE COUNCIL,http://statistics.data.gov.uk/id/local-authority/00FC,Chief Executive,Director Of Economy & Growth,Street Lighting,Rep Alterations Maint Building,Street Lighting - Energy,GA110,01/08/2015,326472,-12254.92,REVENUE,NPOWER LIMITED,101414
NORTH EAST LINCOLNSHIRE COUNCIL,http://statistics.data.gov.uk/id/local-authority/00FC,Chief Executive,Director Of Economy & Growth,Street Lighting,Rep Alterations Maint Building,Street Lighting - Energy,GA110,1/27/2015,328957,-606.31,REVENUE,NPOWER LIMITED,101414
NORTH EAST LINCOLNSHIRE COUNCIL,http://statistics.data.gov.uk/id/local-authority/00FC,Chief Executive,Director Of Economy & Growth,Street Lighting,Rep Alterations Maint Building,Street Lighting - Energy,GA110,01/08/2015,326468,626.52,REVENUE,NPOWER LIMITED,101414
NORTH EAST LINCOLNSHIRE COUNCIL,http://statistics.data.gov.uk/id/local-authority/00FC,Chief Executive,Director Of Economy & Growth,Street Lighting,Rep Alterations Maint Building,Street Lighting - Energy,GA110,01/08/2015,326470,12132.48,REVENUE,NPOWER LIMITED,101414
NORTH EAST LINCOLNSHIRE COUNCIL,http://statistics.data.gov.uk/id/local-authority/00FC,Chief Executive,Director Of Economy & Growth,Street Lighting,Rep Alterations Maint Building,Street Lighting - Energy,GA110,1/27/2015,328940,626.52,REVENUE,NPOWER LIMITED,101414
NORTH EAST LINCOLNSHIRE COUNCIL,http://statistics.data.gov.uk/id/local-authority/00FC,Chief Executive,Director Of Economy & Growth,Street Lighting,Rep Alterations Maint Building,Street Lighting - Energy,GA110,1/27/2015,328960,-626.52,REVENUE,NPOWER LIMITED,101414
NORTH EAST LINCOLNSHIRE COUNCIL,http://statistics.data.gov.uk/id/local-authority/00FC,Chief Executive,Director Of Economy & Growth,Street Lighting,Rep Alterations Maint Building,Street Lighting - Energy,GA110,1/22/2015,328939,606.31,REVENUE,NPOWER LIMITED,101414
NORTH EAST LINCOLNSHIRE COUNCIL,http://statistics.data.gov.uk/id/local-authority/00FC,Chief Executive,Director Of Economy & Growth,Street Lighting,Rep Alterations Maint Building,Street Lighting - Energy,GA110,01/08/2015,326469,606.31,REVENUE,NPOWER LIMITED,101414
NORTH EAST LINCOLNSHIRE COUNCIL,http://statistics.data.gov.uk/id/local-authority/00FC,Chief Executive,Director Of Economy & Growth,Street Lighting,Rep Alterations Maint Building,Street Lighting - Energy,GA110,1/27/2015,328961,-606.31,REVENUE,NPOWER LIMITED,101414
NORTH EAST LINCOLNSHIRE COUNCIL,http://statistics.data.gov.uk/id/local-authority/00FC,Chief Executive,Director Of Economy & Growth,Street Lighting,Rep Alterations Maint Building,Street Lighting - Energy,GA110,1/29/2015,329277,12132.48,REVENUE,NPOWER LIMITED,101414
NORTH EAST LINCOLNSHIRE COUNCIL,http://statistics.data.gov.uk/id/local-authority/00FC,Chief Executive,Director Of Economy & Growth,Street Lighting,Rep Alterations Maint Building,Street Lighting - Energy,GA110,1/29/2015,329279,626.52,REVENUE,NPOWER LIMITED,101414
NORTH EAST LINCOLNSHIRE COUNCIL,http://statistics.data.gov.uk/id/local-authority/00FC,Chief Executive,Director Of Economy & Growth,Street Lighting,Rep Alterations Maint Building,Street Lighting-General Maint,GA111,01/08/2015,326372,2829.7,REVENUE,J MCCANN & CO LTD,100841
NORTH EAST LINCOLNSHIRE COUNCIL,http://statistics.data.gov.uk/id/local-authority/00FC,Chief Executive,Director Of Economy & Growth,Street Lighting,Rep Alterations Maint Building,Street Lighting-General Maint,GA111,01/08/2015,326372,933.74,REVENUE,J MCCANN & CO LTD,100841
NORTH EAST LINCOLNSHIRE COUNCIL,http://statistics.data.gov.uk/id/local-authority/00FC,Chief Executive,Director Of Economy & Growth,Street Lighting,Rep Alterations Maint Building,Traffic Signs / Signals,GA113,01/08/2015,326372,407.71,REVENUE,J MCCANN & CO LTD,100841
NORTH EAST LINCOLNSHIRE COUNCIL,http://statistics.data.gov.uk/id/local-authority/00FC,Chief Executive,Director Of Economy & Growth,Street Lighting,Rep Alterations Maint Building,Traffic Signs / Signals,GA113,01/08/2015,326372,420.69,REVENUE,J MCCANN & CO LTD,100841
NORTH EAST LINCOLNSHIRE COUNCIL,http://statistics.data.gov.uk/id/local-authority/00FC,Chief Executive,Director Of Economy & Growth,Street Lighting,Private Contractors,Third Party Prov - Private,PH101,01/08/2015,326330,348.21,REVENUE,NORTHERN POWERGRID (YORKSHIRE) PLC,108328
NORTH EAST LINCOLNSHIRE COUNCIL,http://statistics.data.gov.uk/id/local-authority/00FC,Chief Executive,Director Of Economy & Growth,Street Lighting,Private Contractors,Third Party Prov - Private,PH101,01/08/2015,326372,1384.36,REVENUE,J MCCANN & CO LTD,100841
NORTH EAST LINCOLNSHIRE COUNCIL,http://statistics.data.gov.uk/id/local-authority/00FC,Chief Executive,Director Of Economy & Growth,Street Lighting,Rep Alterations Maint Building,Street Lighting - Energy,GA110,1/22/2015,328936,1924.23,REVENUE,NPOWER LIMITED,101414
NORTH EAST LINCOLNSHIRE COUNCIL,http://statistics.data.gov.uk/id/local-authority/00FC,Chief Executive,Director Of Economy & Growth,Street Lighting,Rep Alterations Maint Building,Street Lighting - Energy,GA110,1/22/2015,328938,1818.93,REVENUE,NPOWER LIMITED,101414
NORTH EAST LINCOLNSHIRE COUNCIL,http://statistics.data.gov.uk/id/local-authority/00FC,Chief Executive,Director Of Economy & Growth,Street Lighting,Rep Alterations Maint Building,Street Lighting - Energy,GA110,01/08/2015,326466,35223.32,REVENUE,NPOWER LIMITED,101414
NORTH EAST LINCOLNSHIRE COUNCIL,http://statistics.data.gov.uk/id/local-authority/00FC,Chief Executive,Director Of Economy & Growth,Street Lighting,Rep Alterations Maint Building,Street Lighting - Energy,GA110,01/08/2015,326467,1818.93,REVENUE,NPOWER LIMITED,101414
NORTH EAST LINCOLNSHIRE COUNCIL,http://statistics.data.gov.uk/id/local-authority/00FC,Chief Executive,Director Of Economy & Growth,Street Lighting,Rep Alterations Maint Building,Street Lighting - Energy,GA110,01/08/2015,326472,-36764.72,REVENUE,NPOWER LIMITED,101414
NORTH EAST LINCOLNSHIRE COUNCIL,http://statistics.data.gov.uk/id/local-authority/00FC,Chief Executive,Director Of Economy & Growth,Street Lighting,Rep Alterations Maint Building,Street Lighting - Energy,GA110,1/27/2015,328957,-1818.93,REVENUE,NPOWER LIMITED,101414
NORTH EAST LINCOLNSHIRE COUNCIL,http://statistics.data.gov.uk/id/local-authority/00FC,Chief Executive,Director Of Economy & Growth,Street Lighting,Rep Alterations Maint Building,Street Lighting - Energy,GA110,01/08/2015,326468,1879.57,REVENUE,NPOWER LIMITED,101414
NORTH EAST LINCOLNSHIRE COUNCIL,http://statistics.data.gov.uk/id/local-authority/00FC,Chief Executive,Director Of Economy & Growth,Street Lighting,Rep Alterations Maint Building,Street Lighting - Energy,GA110,01/08/2015,326470,36397.43,REVENUE,NPOWER LIMITED,101414
NORTH EAST LINCOLNSHIRE COUNCIL,http://statistics.data.gov.uk/id/local-authority/00FC,Chief Executive,Director Of Economy & Growth,Street Lighting,Rep Alterations Maint Building,Street Lighting - Energy,GA110,1/27/2015,328940,1879.57,REVENUE,NPOWER LIMITED,101414
NORTH EAST LINCOLNSHIRE COUNCIL,http://statistics.data.gov.uk/id/local-authority/00FC,Chief Executive,Director Of Economy & Growth,Street Lighting,Rep Alterations Maint Building,Street Lighting - Energy,GA110,1/27/2015,328960,-1879.57,REVENUE,NPOWER LIMITED,101414
NORTH EAST LINCOLNSHIRE COUNCIL,http://statistics.data.gov.uk/id/local-authority/00FC,Chief Executive,Director Of Economy & Growth,Street Lighting,Rep Alterations Maint Building,Street Lighting - Energy,GA110,1/22/2015,328939,1818.93,REVENUE,NPOWER LIMITED,101414
NORTH EAST LINCOLNSHIRE COUNCIL,http://statistics.data.gov.uk/id/local-authority/00FC,Chief Executive,Director Of Economy & Growth,Street Lighting,Rep Alterations Maint Building,Street Lighting - Energy,GA110,01/08/2015,326469,1818.93,REVENUE,NPOWER LIMITED,101414
NORTH EAST LINCOLNSHIRE COUNCIL,http://statistics.data.gov.uk/id/local-authority/00FC,Chief Executive,Director Of Economy & Growth,Street Lighting,Rep Alterations Maint Building,Street Lighting - Energy,GA110,1/27/2015,328961,-1818.93,REVENUE,NPOWER LIMITED,101414
NORTH EAST LINCOLNSHIRE COUNCIL,http://statistics.data.gov.uk/id/local-authority/00FC,Chief Executive,Director Of Economy & Growth,Street Lighting,Rep Alterations Maint Building,Street Lighting - Energy,GA110,1/29/2015,329277,36397.43,REVENUE,NPOWER LIMITED,101414
NORTH EAST LINCOLNSHIRE COUNCIL,http://statistics.data.gov.uk/id/local-authority/00FC,Chief Executive,Director Of Economy & Growth,Street Lighting,Rep Alterations Maint Building,Street Lighting - Energy,GA110,1/29/2015,329279,1879.57,REVENUE,NPOWER LIMITED,101414
NORTH EAST LINCOLNSHIRE COUNCIL,http://statistics.data.gov.uk/id/local-authority/00FC,Chief Executive,Director Of Economy & Growth,Street Lighting,Rep Alterations Maint Building,Street Lighting - Energy,GA110,1/22/2015,328954,-179.99,REVENUE,NPOWER LIMITED,101414
NORTH EAST LINCOLNSHIRE COUNCIL,http://statistics.data.gov.uk/id/local-authority/00FC,Chief Executive,Director Of Economy & Growth,Street Lighting,Rep Alterations Maint Building,Street Lighting - Energy,GA110,1/22/2015,328956,-174.19,REVENUE,NPOWER LIMITED,101414
NORTH EAST LINCOLNSHIRE COUNCIL,http://statistics.data.gov.uk/id/local-authority/00FC,Chief Executive,Director Of Economy & Growth,Street Lighting,Rep Alterations Maint Building,Street Lighting - Energy,GA110,01/05/2015,325482,565.97,REVENUE,NPOWER LIMITED,101414
NORTH EAST LINCOLNSHIRE COUNCIL,http://statistics.data.gov.uk/id/local-authority/00FC,Chief Executive,Director Of Economy & Growth,Street Lighting,Rep Alterations Maint Building,Street Lighting - Energy,GA110,01/06/2015,325479,565.97,REVENUE,NPOWER LIMITED,101414
NORTH EAST LINCOLNSHIRE COUNCIL,http://statistics.data.gov.uk/id/local-authority/00FC,Chief Executive,Director Of Economy & Growth,Street Lighting,Rep Alterations Maint Building,Street Lighting - Energy,GA110,1/29/2015,329276,584.84,REVENUE,NPOWER LIMITED,101414
NORTH EAST LINCOLNSHIRE COUNCIL,http://statistics.data.gov.uk/id/local-authority/00FC,Chief Executive,Director Of Economy & Growth,Street Lighting,Rep Alterations Maint Building,Street Lighting-General Maint,GA111,01/08/2015,326372,19444.02,REVENUE,J MCCANN & CO LTD,100841
NORTH EAST LINCOLNSHIRE COUNCIL,http://statistics.data.gov.uk/id/local-authority/00FC,Chief Executive,Director Of Economy & Growth,Street Lighting,Rep Alterations Maint Building,Street Lighting-General Maint,GA111,01/08/2015,326372,4527.47,REVENUE,J MCCANN & CO LTD,100841
NORTH EAST LINCOLNSHIRE COUNCIL,http://statistics.data.gov.uk/id/local-authority/00FC,Chief Executive,Director Of Economy & Growth,Street Lighting,Rep Alterations Maint Building,Street Lighting-General Maint,GA111,01/08/2015,326327,348.21,REVENUE,NORTHERN POWERGRID (YORKSHIRE) PLC,108328
NORTH EAST LINCOLNSHIRE COUNCIL,http://statistics.data.gov.uk/id/local-authority/00FC,Chief Executive,Director Of Economy & Growth,Street Lighting,Rep Alterations Maint Building,Street Light-Irrecoverable Dam,GA112,01/08/2015,326372,1210.69,REVENUE,J MCCANN & CO LTD,100841
NORTH EAST LINCOLNSHIRE COUNCIL,http://statistics.data.gov.uk/id/local-authority/00FC,Chief Executive,Director Of Economy & Growth,Street Lighting,Rep Alterations Maint Building,Street Light-Irrecoverable Dam,GA112,01/08/2015,326326,348.21,REVENUE,NORTHERN POWERGRID (YORKSHIRE) PLC,108328
NORTH EAST LINCOLNSHIRE COUNCIL,http://statistics.data.gov.uk/id/local-authority/00FC,Chief Executive,Director Of Economy & Growth,Street Lighting,Rep Alterations Maint Building,Street Light-Irrecoverable Dam,GA112,01/08/2015,326324,348.21,REVENUE,NORTHERN POWERGRID (YORKSHIRE) PLC,108328
NORTH EAST LINCOLNSHIRE COUNCIL,http://statistics.data.gov.uk/id/local-authority/00FC,Chief Executive,Director Of Economy & Growth,Street Lighting,Rep Alterations Maint Building,Traffic Mgmt-Irrecoverable Dam,GA115,01/08/2015,326372,886.43,REVENUE,J MCCANN & CO LTD,100841
NORTH EAST LINCOLNSHIRE COUNCIL,http://statistics.data.gov.uk/id/local-authority/00FC,Chief Executive,Director Of Economy & Growth,Street Lighting,Rep Alterations Maint Building,Traffic Signs / Signals,GA113,01/08/2015,326372,1207.29,REVENUE,J MCCANN & CO LTD,100841
NORTH EAST LINCOLNSHIRE COUNCIL,http://statistics.data.gov.uk/id/local-authority/00FC,Chief Executive,Director Of Economy & Growth,Street Lighting,Rep Alterations Maint Building,Traffic Signs / Signals,GA113,01/08/2015,326372,1836.38,REVENUE,J MCCANN & CO LTD,100841
NORTH EAST LINCOLNSHIRE COUNCIL,http://statistics.data.gov.uk/id/local-authority/00FC,Chief Executive,Director Of Economy & Growth,Street Lighting,Private Contractors,Third Party Prov - Private,PH101,01/08/2015,326372,427.65,REVENUE,J MCCANN & CO LTD,100841
NORTH EAST LINCOLNSHIRE COUNCIL,http://statistics.data.gov.uk/id/local-authority/00FC,Chief Executive,Director Of Economy & Growth,Street Lighting,Private Contractors,Third Party Prov - Private,PH101,01/08/2015,326322,720.23,REVENUE,NORTHERN POWERGRID (YORKSHIRE) PLC,108328
NORTH EAST LINCOLNSHIRE COUNCIL,http://statistics.data.gov.uk/id/local-authority/00FC,Chief Executive,Director Of Economy & Growth,Street Lighting,Rep Alterations Maint Building,Buildings - Repairs And Maint,GA102,01/08/2015,326372,15324.02,REVENUE,J MCCANN & CO LTD,100841
NORTH EAST LINCOLNSHIRE COUNCIL,http://statistics.data.gov.uk/id/local-authority/00FC,Chief Executive,Director Of Economy & Growth,Traffic Management,Private Contractors,Third Party Prov - Private,PH101,1/26/2015,313776,540,REVENUE,LINDSEY TREE SERVICES LTD,100981
NORTH EAST LINCOLNSHIRE COUNCIL,http://statistics.data.gov.uk/id/local-authority/00FC,Chief Executive,Director Of Economy & Growth,Traffic Management,Private Contractors,Third Party Prov - Private,PH101,1/26/2015,313775,260,REVENUE,LINDSEY TREE SERVICES LTD,100981
NORTH EAST LINCOLNSHIRE COUNCIL,http://statistics.data.gov.uk/id/local-authority/00FC,Chief Executive,Director Of Economy & Growth,Traffic Management,Private Contractors,Third Party Prov - Private,PH101,1/26/2015,312507,2605.5,REVENUE,KEYSOFT SOLUTIONS LTD,127963
NORTH EAST LINCOLNSHIRE COUNCIL,http://statistics.data.gov.uk/id/local-authority/00FC,Chief Executive,Director Of Economy & Growth,Transport Policy,Communications And Computing,Computer S/Ware - Maintenance,LF102,01/08/2015,326372,1049.73,REVENUE,J MCCANN & CO LTD,100841
NORTH EAST LINCOLNSHIRE COUNCIL,http://statistics.data.gov.uk/id/local-authority/00FC,Chief Executive,Director Of Economy & Growth,Transport Policy,Miscellaneous Expenses,Other Expenses General,LL119,1/29/2015,328760,5312,REVENUE,BRITISH CYCLING,112716
NORTH EAST LINCOLNSHIRE COUNCIL,http://statistics.data.gov.uk/id/local-authority/00FC,Chief Executive,Director Of Economy & Growth,Transport Policy,Miscellaneous Expenses,Other Expenses General,LL119,01/05/2015,326293,800,REVENUE,GET CYCLING CIC,111352
NORTH EAST LINCOLNSHIRE COUNCIL,http://statistics.data.gov.uk/id/local-authority/00FC,Chief Executive,Director Of Economy & Growth,Transport Policy,Other Agencies,Grants Pd Over To Third Party,PJ138,1/16/2015,327943,9913,REVENUE,HUMBER & WOLDS RURAL COMM COUN,101169
NORTH EAST LINCOLNSHIRE COUNCIL,http://statistics.data.gov.uk/id/local-authority/00FC,Chief Executive,Director Of Economy & Growth,Transport Policy,Consultancy,Consultancy,PL101,1/16/2015,327681,12564.5,REVENUE,COFELY WORKPLACE LIMITED,123983
NORTH EAST LINCOLNSHIRE COUNCIL,http://statistics.data.gov.uk/id/local-authority/00FC,Chief Executive,Director Of Economy & Growth,Transport Policy,Private Contractors,Concessionary Fares,PH104,1/21/2015,327983,REDACTED COMMERCIALLY SENSITIVE,REVENUE,GRAYSCROFT BUS SERVICES LIMITED,101786
NORTH EAST LINCOLNSHIRE COUNCIL,http://statistics.data.gov.uk/id/local-authority/00FC,Chief Executive,Director Of Economy & Growth,Transport Policy,Private Contractors,Concessionary Fares,PH104,1/21/2015,327902,REDACTED COMMERCIALLY SENSITIVE,REVENUE,GRAYSCROFT BUS SERVICES LIMITED,101786
NORTH EAST LINCOLNSHIRE COUNCIL,http://statistics.data.gov.uk/id/local-authority/00FC,Chief Executive,Director Of Economy & Growth,Transport Policy,Private Contractors,Concessionary Fares,PH104,1/21/2015,328060,REDACTED COMMERCIALLY SENSITIVE,REVENUE,NORTHERN RAIL LIMITED,101610
NORTH EAST LINCOLNSHIRE COUNCIL,http://statistics.data.gov.uk/id/local-authority/00FC,Chief Executive,Director Of Economy & Growth,Transport Policy,Private Contractors,Concessionary Fares,PH104,1/26/2015,328750,REDACTED COMMERCIALLY SENSITIVE,REVENUE,F HUNT ( COACH HIRE) LTD,104034
NORTH EAST LINCOLNSHIRE COUNCIL,http://statistics.data.gov.uk/id/local-authority/00FC,Chief Executive,Director Of Economy & Growth,Transport Policy,Private Contractors,Concessionary Fares,PH104,1/26/2015,328683,REDACTED COMMERCIALLY SENSITIVE,REVENUE,F HUNT ( COACH HIRE) LTD,104034
NORTH EAST LINCOLNSHIRE COUNCIL,http://statistics.data.gov.uk/id/local-authority/00FC,Chief Executive,Director Of Economy & Growth,Transport Policy,Private Contractors,Concessionary Fares,PH104,1/26/2015,327984,REDACTED COMMERCIALLY SENSITIVE,REVENUE,GRAYSCROFT BUS SERVICES LIMITED,101786
NORTH EAST LINCOLNSHIRE COUNCIL,http://statistics.data.gov.uk/id/local-authority/00FC,Chief Executive,Director Of Economy & Growth,Transport Policy,Private Contractors,Concessionary Fares,PH104,1/28/2015,329357,REDACTED COMMERCIALLY SENSITIVE,REVENUE,GY CLPS & DISTRICT DIAL A RIDE,100980
NORTH EAST LINCOLNSHIRE COUNCIL,http://statistics.data.gov.uk/id/local-authority/00FC,Chief Executive,Director Of Economy & Growth,Transport Policy,Private Contractors,Concessionary Fares,PH104,1/28/2015,329355,REDACTED COMMERCIALLY SENSITIVE,REVENUE,GY CLPS & DISTRICT DIAL A RIDE,100980
NORTH EAST LINCOLNSHIRE COUNCIL,http://statistics.data.gov.uk/id/local-authority/00FC,Chief Executive,Director Of Economy & Growth,Transport Policy,Private Contractors,Concessionary Fares,PH104,1/28/2015,329356,REDACTED COMMERCIALLY SENSITIVE,REVENUE,GY CLPS & DISTRICT DIAL A RIDE,100980
NORTH EAST LINCOLNSHIRE COUNCIL,http://statistics.data.gov.uk/id/local-authority/00FC,Chief Executive,Director Of Economy & Growth,Transport Policy,Private Contractors,Concessionary Fares,PH104,1/28/2015,329362,REDACTED COMMERCIALLY SENSITIVE,REVENUE,STAGECOACH SERVICES,101404
NORTH EAST LINCOLNSHIRE COUNCIL,http://statistics.data.gov.uk/id/local-authority/00FC,Chief Executive,Director Of Economy & Growth,Transport Policy,Private Contractors,Subsidies,PH102,1/21/2015,327905,REDACTED COMMERCIALLY SENSITIVE,REVENUE,STAGECOACH SERVICES,101404
NORTH EAST LINCOLNSHIRE COUNCIL,http://statistics.data.gov.uk/id/local-authority/00FC,Chief Executive,Director Of Economy & Growth,Transport Policy,Private Contractors,Subsidies,PH102,1/21/2015,327903,REDACTED COMMERCIALLY SENSITIVE,REVENUE,STAGECOACH SERVICES,101404
NORTH EAST LINCOLNSHIRE COUNCIL,http://statistics.data.gov.uk/id/local-authority/00FC,Chief Executive,Director Of Public Health,Director Public Health,Equip / Furniture / Materials,Promotions,LA124,1/19/2015,328008,4613.28,REVENUE,WEST MARSH DEVELOPMENT TRUST,105846
NORTH EAST LINCOLNSHIRE COUNCIL,http://statistics.data.gov.uk/id/local-authority/00FC,Chief Executive,Director Of Public Health,Director Public Health,Health Authorities,Third Pp - Health Auth,PD101,1/22/2015,328652,1053,REVENUE,NHS NORTH YORKSHIRE AND HUMBER CSU,121292
NORTH EAST LINCOLNSHIRE COUNCIL,http://statistics.data.gov.uk/id/local-authority/00FC,Chief Executive,Director Of Public Health,Drug / Alcohol Action Service,Private Contractors,Contract Payments,PH105,01/05/2015,324950,2151.43,REVENUE,RAPt,128325
NORTH EAST LINCOLNSHIRE COUNCIL,http://statistics.data.gov.uk/id/local-authority/00FC,Chief Executive,Director Of Public Health,Drug / Alcohol Action Service,Private Contractors,Contract Payments,PH105,1/29/2015,329905,35251.17,REVENUE,NHS BUSINESS SERVICES AUTHORITY,127751
NORTH EAST LINCOLNSHIRE COUNCIL,http://statistics.data.gov.uk/id/local-authority/00FC,Chief Executive,Director Of Public Health,Drug / Alcohol Action Service,Private Contractors,Contract Payments,PH105,1/16/2015,326673,187555.55,REVENUE,CARE PLUS GROUP,106467
NORTH EAST LINCOLNSHIRE COUNCIL,http://statistics.data.gov.uk/id/local-authority/00FC,Chief Executive,Director Of Public Health,Drug / Alcohol Action Service,Private Contractors,Contract Payments,PH105,1/26/2015,327685,12500,REVENUE,FREELANCE NEEDLE EXCHANGE LIMITED,119999
NORTH EAST LINCOLNSHIRE COUNCIL,http://statistics.data.gov.uk/id/local-authority/00FC,Chief Executive,Director Of Public Health,Drug / Alcohol Action Service,Private Contractors,Contract Payments,PH105,1/13/2015,326668,710.91,REVENUE,DR I D S CHALMERS & DR V O MEIER,104521
NORTH EAST LINCOLNSHIRE COUNCIL,http://statistics.data.gov.uk/id/local-authority/00FC,Chief Executive,Director Of Public Health,Drug / Alcohol Action Service,Private Contractors,Contract Payments,PH105,1/15/2015,327639,1479.84,REVENUE,PELHAM MEDICAL GROUP,104350
NORTH EAST LINCOLNSHIRE COUNCIL,http://statistics.data.gov.uk/id/local-authority/00FC,Chief Executive,Director Of Public Health,Drug / Alcohol Action Service,Private Contractors,Contract Payments,PH105,1/16/2015,327228,8324.1,REVENUE,BIRKWOOD MEDICAL CENTRE,120420
NORTH EAST LINCOLNSHIRE COUNCIL,http://statistics.data.gov.uk/id/local-authority/00FC,Chief Executive,Director Of Public Health,Drug / Alcohol Action Service,Private Contractors,Contract Payments,PH105,1/16/2015,327005,5611.06,REVENUE,DR SINHA & DR G DE,108111
NORTH EAST LINCOLNSHIRE COUNCIL,http://statistics.data.gov.uk/id/local-authority/00FC,Chief Executive,Director Of Public Health,Drug / Alcohol Action Service,Private Contractors,Contract Payments,PH105,1/16/2015,327774,1000,REVENUE,KHC CONSULTING LTD,128604
NORTH EAST LINCOLNSHIRE COUNCIL,http://statistics.data.gov.uk/id/local-authority/00FC,Chief Executive,Director Of Public Health,Drug / Alcohol Action Service,Private Contractors,Contract Payments,PH105,1/26/2015,327654,15833.33,REVENUE,FREELANCE NEEDLE EXCHANGE LIMITED,119999
NORTH EAST LINCOLNSHIRE COUNCIL,http://statistics.data.gov.uk/id/local-authority/00FC,Chief Executive,Director Of Public Health,Sexual Health,Contributions To Provisions,Contributions - Communities,LK101,1/22/2015,328655,3181.1,REVENUE,VIRGIN CARE SERVICES LTD,120538
NORTH EAST LINCOLNSHIRE COUNCIL,http://statistics.data.gov.uk/id/local-authority/00FC,Chief Executive,Director Of Public Health,Sexual Health,Voluntary Associations,Third Pp - Third Sector,PF101,01/07/2015,326088,2331.69,REVENUE,POSITIVE HEALTH,125235
NORTH EAST LINCOLNSHIRE COUNCIL,http://statistics.data.gov.uk/id/local-authority/00FC,Chief Executive,Director Of Public Health,Sexual Health,Private Contractors,Contract Payments,PH105,1/22/2015,328654,55401,REVENUE,VIRGIN CARE SERVICES LTD,120538
NORTH EAST LINCOLNSHIRE COUNCIL,http://statistics.data.gov.uk/id/local-authority/00FC,Chief Executive,Director Of Public Health,Sexual Health,Private Contractors,Third Party Prov - Private,PH101,01/07/2015,326086,255,REVENUE,ASDA PHARMACY,104011
NORTH EAST LINCOLNSHIRE COUNCIL,http://statistics.data.gov.uk/id/local-authority/00FC,Chief Executive,Director Of Public Health,Sexual Health,Other Agencies,Contract Plus,PJ135,1/28/2015,328983,348.8,REVENUE,PASANTE HEALTHCARE LTD,103011
NORTH EAST LINCOLNSHIRE COUNCIL,http://statistics.data.gov.uk/id/local-authority/00FC,Chief Executive,Director Of Public Health,Sexual Health,Other Agencies,Health Charges,PJ131,1/13/2015,326720,714,REVENUE,CITY HEALTH CARE PARTNERSHIP CIC,110889
NORTH EAST LINCOLNSHIRE COUNCIL,http://statistics.data.gov.uk/id/local-authority/00FC,Chief Executive,Director Of Public Health,Sexual Health,Other Agencies,Health Charges,PJ131,1/13/2015,326721,476,REVENUE,CITY HEALTH CARE PARTNERSHIP CIC,110889
NORTH EAST LINCOLNSHIRE COUNCIL,http://statistics.data.gov.uk/id/local-authority/00FC,Chief Executive,Director Of Public Health,Sexual Health,Other Agencies,Health Charges,PJ131,1/13/2015,326715,1064,REVENUE,CITY HEALTH CARE PARTNERSHIP CIC,110889
NORTH EAST LINCOLNSHIRE COUNCIL,http://statistics.data.gov.uk/id/local-authority/00FC,Chief Executive,Director Of Public Health,Sexual Health,Other Agencies,Health Charges,PJ131,1/21/2015,328264,281.26,REVENUE,YORK TEACHING HOSPITAL NHS FT,120670
NORTH EAST LINCOLNSHIRE COUNCIL,http://statistics.data.gov.uk/id/local-authority/00FC,Chief Executive,Director Of Public Health,Sexual Health,Other Agencies,Health Charges,PJ131,1/22/2015,328656,665,REVENUE,VIRGIN CARE SERVICES LTD,120538
NORTH EAST LINCOLNSHIRE COUNCIL,http://statistics.data.gov.uk/id/local-authority/00FC,Chief Executive,Director Of Public Health,Sexual Health,Other Agencies,Other,PJ121,1/26/2015,328682,3360,REVENUE,CLEE MEDICAL CENTRE,105319
NORTH EAST LINCOLNSHIRE COUNCIL,http://statistics.data.gov.uk/id/local-authority/00FC,Chief Executive,Director Of Public Health,Sexual Health,Other Agencies,Other,PJ121,1/16/2015,327000,10560,REVENUE,THE ROXTON PRACTICE,104395
NORTH EAST LINCOLNSHIRE COUNCIL,http://statistics.data.gov.uk/id/local-authority/00FC,Chief Executive,Director Of Public Health,Sexual Health,Other Agencies,Other,PJ121,1/15/2015,327620,9360,REVENUE,DR HOPPER & PARTNERS,103900
NORTH EAST LINCOLNSHIRE COUNCIL,http://statistics.data.gov.uk/id/local-authority/00FC,Chief Executive,Director Of Public Health,Sexual Health,Other Agencies,Other,PJ121,1/28/2015,329041,4560,REVENUE,RAJ MEDICAL CENTRE,121130
NORTH EAST LINCOLNSHIRE COUNCIL,http://statistics.data.gov.uk/id/local-authority/00FC,Chief Executive,Director Of Public Health,Sexual Health,Other Agencies,Other,PJ121,1/21/2015,327935,7360,REVENUE,WOODFORD MEDICAL CENTRE,107882
NORTH EAST LINCOLNSHIRE COUNCIL,http://statistics.data.gov.uk/id/local-authority/00FC,Chief Executive,Director Of Public Health,Sexual Health,Other Agencies,Other,PJ121,1/26/2015,327619,5680,REVENUE,LITTLEFIELDS HEALTH CENTRE,111683
NORTH EAST LINCOLNSHIRE COUNCIL,http://statistics.data.gov.uk/id/local-authority/00FC,Chief Executive,Director Of Public Health,Tobacco,Private Contractors,Third Party Prov - Private,PH101,01/12/2015,326811,-2.69,REVENUE,LYRECO UK LIMITED,101120
NORTH EAST LINCOLNSHIRE COUNCIL,http://statistics.data.gov.uk/id/local-authority/00FC,Chief Executive,Director Of Public Health,Tobacco,Private Contractors,Third Party Prov - Private,PH101,01/05/2015,326126,325,REVENUE,B W Y CANINE,127246
NORTH EAST LINCOLNSHIRE COUNCIL,http://statistics.data.gov.uk/id/local-authority/00FC,Chief Executive,Ad Joint Delivery,Local Taxation & Benefits,Communications And Computing,Computer S/Ware - Licences,LF103,1/28/2015,329745,12750,REVENUE,VICTORIA SOLUTIONS (T/A VICTORIA FORMS),129023
NORTH EAST LINCOLNSHIRE COUNCIL,http://statistics.data.gov.uk/id/local-authority/00FC,Chief Executive,Ad Joint Delivery,Local Taxation & Benefits,Communications And Computing,Computer S/Ware - Maintenance,LF102,1/22/2015,328946,873.63,REVENUE,NORTHGATE INFORMATION SOLUTIONS UK LTD,101841
NORTH EAST LINCOLNSHIRE COUNCIL,http://statistics.data.gov.uk/id/local-authority/00FC,Chief Executive,Ad Joint Delivery,Local Taxation & Benefits,Grants And Subscriptions,Subscriptions,LJ101,1/22/2015,328746,355,REVENUE,HBINFO LTD,102019
NORTH EAST LINCOLNSHIRE COUNCIL,http://statistics.data.gov.uk/id/local-authority/00FC,Chief Executive,Ad Joint Delivery,Local Taxation & Benefits,Miscellaneous Expenses,Other Expenses General,LL119,01/12/2015,326272,880,REVENUE,NORTHGATE INFORMATION SOLUTIONS UK LTD,101841
NORTH EAST LINCOLNSHIRE COUNCIL,http://statistics.data.gov.uk/id/local-authority/00FC,Chief Executive,Ad Joint Delivery,Local Taxation & Benefits,Miscellaneous Expenses,Other Expenses General,LL119,01/12/2015,326272,440,REVENUE,NORTHGATE INFORMATION SOLUTIONS UK LTD,101841
NORTH EAST LINCOLNSHIRE COUNCIL,http://statistics.data.gov.uk/id/local-authority/00FC,Chief Executive,Ad Joint Delivery,Local Taxation & Benefits,Miscellaneous Expenses,Other Supplies & Services,LL110,1/27/2015,328879,900,REVENUE,INFORM CPI,124803
NORTH EAST LINCOLNSHIRE COUNCIL,http://statistics.data.gov.uk/id/local-authority/00FC,Chief Executive,Ad Joint Delivery,Local Taxation & Benefits,Miscellaneous Expenses,Other Supplies & Services,LL110,01/08/2015,326368,400,REVENUE,INFORM CPI,124803
NORTH EAST LINCOLNSHIRE COUNCIL,http://statistics.data.gov.uk/id/local-authority/00FC,Chief Executive,Ad Joint Delivery,Local Taxation & Benefits,Communications And Computing,Computer S/Ware - Maintenance,LF102,1/22/2015,328946,268.69,REVENUE,NORTHGATE INFORMATION SOLUTIONS UK LTD,101841
NORTH EAST LINCOLNSHIRE COUNCIL,http://statistics.data.gov.uk/id/local-authority/00FC,Chief Executive,Ad Joint Delivery,Local Taxation & Benefits,Miscellaneous Expenses,Other Expenses General,LL119,01/12/2015,326272,880,REVENUE,NORTHGATE INFORMATION SOLUTIONS UK LTD,101841
NORTH EAST LINCOLNSHIRE COUNCIL,http://statistics.data.gov.uk/id/local-authority/00FC,Chief Executive,Ad Joint Delivery,Local Taxation & Benefits,Private Contractors,Third Party Prov - Private,PH101,1/27/2015,293201,450,REVENUE,REDACTED PERSONAL INFORMATION,REDACTED PERSONAL INFORMATION
NORTH EAST LINCOLNSHIRE COUNCIL,http://statistics.data.gov.uk/id/local-authority/00FC,Chief Executive,Ad Joint Delivery,Local Taxation & Benefits,Private Contractors,Third Party Prov - Private,PH101,01/12/2015,288574,350,REVENUE,REDACTED PERSONAL INFORMATION,REDACTED PERSONAL INFORMATION
NORTH EAST LINCOLNSHIRE COUNCIL,http://statistics.data.gov.uk/id/local-authority/00FC,Chief Executive,Ad Joint Delivery,Local Taxation & Benefits,Private Contractors,Third Party Prov - Private,PH101,01/08/2015,288092,310,REVENUE,REDACTED PERSONAL INFORMATION,REDACTED PERSONAL INFORMATION
NORTH EAST LINCOLNSHIRE COUNCIL,http://statistics.data.gov.uk/id/local-authority/00FC,Chief Executive,Ad Joint Delivery,Local Taxation & Benefits,Private Contractors,Third Party Prov - Private,PH101,1/15/2015,289535,450,REVENUE,REDACTED PERSONAL INFORMATION,REDACTED PERSONAL INFORMATION
NORTH EAST LINCOLNSHIRE COUNCIL,http://statistics.data.gov.uk/id/local-authority/00FC,Chief Executive,Ad Joint Delivery,Local Taxation & Benefits,Private Contractors,Third Party Prov - Private,PH101,1/15/2015,289536,425,REVENUE,REDACTED PERSONAL INFORMATION,REDACTED PERSONAL INFORMATION
NORTH EAST LINCOLNSHIRE COUNCIL,http://statistics.data.gov.uk/id/local-authority/00FC,Chief Executive,Ad Joint Delivery,Local Taxation & Benefits,Private Contractors,Third Party Prov - Private,PH101,1/22/2015,291405,625,REVENUE,REDACTED PERSONAL INFORMATION,REDACTED PERSONAL INFORMATION
NORTH EAST LINCOLNSHIRE COUNCIL,http://statistics.data.gov.uk/id/local-authority/00FC,Chief Executive,Ad Joint Delivery,Local Taxation & Benefits,Private Contractors,Third Party Prov - Private,PH101,01/08/2015,288225,475,REVENUE,REDACTED PERSONAL INFORMATION,REDACTED PERSONAL INFORMATION
NORTH EAST LINCOLNSHIRE COUNCIL,http://statistics.data.gov.uk/id/local-authority/00FC,Chief Executive,Ad Joint Delivery,Local Taxation & Benefits,Private Contractors,Third Party Prov - Private,PH101,1/22/2015,291375,400,REVENUE,REDACTED PERSONAL INFORMATION,REDACTED PERSONAL INFORMATION
NORTH EAST LINCOLNSHIRE COUNCIL,http://statistics.data.gov.uk/id/local-authority/00FC,Chief Executive,Ad Joint Delivery,Local Taxation & Benefits,Private Contractors,Third Party Prov - Private,PH101,1/26/2015,329498,250,REVENUE,PAYPOINT PLC,120455
NORTH EAST LINCOLNSHIRE COUNCIL,http://statistics.data.gov.uk/id/local-authority/00FC,Chief Executive,Ad Joint Delivery,Head Commission & Info Systems,Direct Employee Expenses,Agency Staff,EA105,01/12/2015,321597,4000,REVENUE,MECOS LTD,128199
NORTH EAST LINCOLNSHIRE COUNCIL,http://statistics.data.gov.uk/id/local-authority/00FC,Chief Executive,Ad Joint Delivery,Information Technology,Communications And Computing,Telephones,LF112,1/19/2015,326836,424.66,REVENUE,VIRGIN MEDIA,107612
NORTH EAST LINCOLNSHIRE COUNCIL,http://statistics.data.gov.uk/id/local-authority/00FC,Chief Executive,Ad Joint Delivery,Information Technology,Communications And Computing,Telephones,LF112,1/16/2015,327164,4334.26,REVENUE,VIRGIN MEDIA,107612
NORTH EAST LINCOLNSHIRE COUNCIL,http://statistics.data.gov.uk/id/local-authority/00FC,Chief Executive,Ad Joint Delivery,Information Technology,Communications And Computing,Telephones,LF112,1/16/2015,327164,319.2,REVENUE,VIRGIN MEDIA,107612
NORTH EAST LINCOLNSHIRE COUNCIL,http://statistics.data.gov.uk/id/local-authority/00FC,Chief Executive,Ad Joint Delivery,Information Technology,Communications And Computing,Telephones,LF112,1/16/2015,327164,835.81,REVENUE,VIRGIN MEDIA,107612
NORTH EAST LINCOLNSHIRE COUNCIL,http://statistics.data.gov.uk/id/local-authority/00FC,Chief Executive,Ad Joint Delivery,Information Technology,Communications And Computing,Telephones,LF112,1/19/2015,326837,261.55,REVENUE,VIRGIN MEDIA,107612
NORTH EAST LINCOLNSHIRE COUNCIL,http://statistics.data.gov.uk/id/local-authority/00FC,Chief Executive,Ad Joint Delivery,Information Technology,Communications And Computing,Telephones,LF112,1/22/2015,328768,11052.72,REVENUE,VODAFONE LIMITED,101324
NORTH EAST LINCOLNSHIRE COUNCIL,http://statistics.data.gov.uk/id/local-authority/00FC,Chief Executive,Ad Joint Delivery,Information Technology,Communications And Computing,Computer H/Ware - Purchases,LF105,1/15/2015,327467,803.06,REVENUE,VIRGIN MEDIA,107612
NORTH EAST LINCOLNSHIRE COUNCIL,http://statistics.data.gov.uk/id/local-authority/00FC,Chief Executive,Ad Joint Delivery,Information Technology,Communications And Computing,Computer H/Ware - Purchases,LF105,1/29/2015,330195,1038.5,REVENUE,GREENWORLD ELECTRONICS LTD,109085
NORTH EAST LINCOLNSHIRE COUNCIL,http://statistics.data.gov.uk/id/local-authority/00FC,Chief Executive,Ad Joint Delivery,Information Technology,Communications And Computing,Computer H/Ware - Purchases,LF105,1/29/2015,330196,-322.08,REVENUE,GREENWORLD ELECTRONICS LTD,109085
NORTH EAST LINCOLNSHIRE COUNCIL,http://statistics.data.gov.uk/id/local-authority/00FC,Chief Executive,Ad Joint Delivery,Information Technology,Communications And Computing,Computer H/Ware - Purchases,LF105,01/09/2015,327257,1147.5,REVENUE,GREENWORLD ELECTRONICS LTD,109085
NORTH EAST LINCOLNSHIRE COUNCIL,http://statistics.data.gov.uk/id/local-authority/00FC,Chief Executive,Ad Joint Delivery,Information Technology,Communications And Computing,Computer H/Ware - Purchases,LF105,01/09/2015,327258,-646.73,REVENUE,GREENWORLD ELECTRONICS LTD,109085
NORTH EAST LINCOLNSHIRE COUNCIL,http://statistics.data.gov.uk/id/local-authority/00FC,Chief Executive,Ad Joint Delivery,Information Technology,Communications And Computing,Computer H/Ware - Purchases,LF105,1/16/2015,327164,250,REVENUE,VIRGIN MEDIA,107612
NORTH EAST LINCOLNSHIRE COUNCIL,http://statistics.data.gov.uk/id/local-authority/00FC,Chief Executive,Ad Joint Delivery,Information Technology,Communications And Computing,Computer H/Ware - Purchases,LF105,1/16/2015,327164,1080,REVENUE,VIRGIN MEDIA,107612
NORTH EAST LINCOLNSHIRE COUNCIL,http://statistics.data.gov.uk/id/local-authority/00FC,Chief Executive,Ad Joint Delivery,Information Technology,Communications And Computing,Computer H/Ware - Purchases,LF105,1/16/2015,327164,540,REVENUE,VIRGIN MEDIA,107612
NORTH EAST LINCOLNSHIRE COUNCIL,http://statistics.data.gov.uk/id/local-authority/00FC,Chief Executive,Ad Joint Delivery,Information Technology,Communications And Computing,Computer H/Ware - Purchases,LF105,1/16/2015,327164,540,REVENUE,VIRGIN MEDIA,107612
NORTH EAST LINCOLNSHIRE COUNCIL,http://statistics.data.gov.uk/id/local-authority/00FC,Chief Executive,Ad Joint Delivery,Information Technology,Communications And Computing,Computer S/Ware - Maintenance,LF102,1/15/2015,327642,2500,REVENUE,FIRST MEDIA SOLUTIONS LTD,101489
NORTH EAST LINCOLNSHIRE COUNCIL,http://statistics.data.gov.uk/id/local-authority/00FC,Chief Executive,Ad Joint Delivery,Information Technology,Print Stationery / Gen Off Exp,Photocopier - Running Costs,LD102,1/13/2015,326690,300.47,REVENUE,UNITED CARLTON OFFICE SYSTEMS LTD,101652
NORTH EAST LINCOLNSHIRE COUNCIL,http://statistics.data.gov.uk/id/local-authority/00FC,Chief Executive,Ad Joint Delivery,Information Technology,Print Stationery / Gen Off Exp,Photocopier - Running Costs,LD102,1/13/2015,326707,307.03,REVENUE,UNITED CARLTON OFFICE SYSTEMS LTD,101652
NORTH EAST LINCOLNSHIRE COUNCIL,http://statistics.data.gov.uk/id/local-authority/00FC,Chief Executive,Ad Joint Delivery,Information Technology,Print Stationery / Gen Off Exp,Photocopier - Running Costs,LD102,1/13/2015,326699,307.02,REVENUE,UNITED CARLTON OFFICE SYSTEMS LTD,101652
NORTH EAST LINCOLNSHIRE COUNCIL,http://statistics.data.gov.uk/id/local-authority/00FC,Chief Executive,Ad Joint Delivery,Information Technology,Print Stationery / Gen Off Exp,Photocopier - Running Costs,LD102,1/13/2015,326708,307.02,REVENUE,UNITED CARLTON OFFICE SYSTEMS LTD,101652
NORTH EAST LINCOLNSHIRE COUNCIL,http://statistics.data.gov.uk/id/local-authority/00FC,Chief Executive,Ad Joint Delivery,Information Technology,Print Stationery / Gen Off Exp,Photocopier - Running Costs,LD102,1/13/2015,326706,307.02,REVENUE,UNITED CARLTON OFFICE SYSTEMS LTD,101652
NORTH EAST LINCOLNSHIRE COUNCIL,http://statistics.data.gov.uk/id/local-authority/00FC,Chief Executive,Ad Joint Delivery,Information Technology,Print Stationery / Gen Off Exp,Printing And Stationery,LD103,01/08/2015,326598,257.16,REVENUE,LYRECO UK LIMITED,101120
NORTH EAST LINCOLNSHIRE COUNCIL,http://statistics.data.gov.uk/id/local-authority/00FC,Chief Executive,Ad Joint Delivery,Information Technology,Print Stationery / Gen Off Exp,Printing And Stationery,LD103,1/13/2015,326705,625.04,REVENUE,UNITED CARLTON OFFICE SYSTEMS LTD,101652
NORTH EAST LINCOLNSHIRE COUNCIL,http://statistics.data.gov.uk/id/local-authority/00FC,Chief Executive,Ad Joint Delivery,Information Technology,Print Stationery / Gen Off Exp,Printing And Stationery,LD103,1/13/2015,326708,311.58,REVENUE,UNITED CARLTON OFFICE SYSTEMS LTD,101652
NORTH EAST LINCOLNSHIRE COUNCIL,http://statistics.data.gov.uk/id/local-authority/00FC,Chief Executive,Ad Joint Delivery,Information Technology,Print Stationery / Gen Off Exp,Printing And Stationery,LD103,1/13/2015,326707,385.08,REVENUE,UNITED CARLTON OFFICE SYSTEMS LTD,101652
NORTH EAST LINCOLNSHIRE COUNCIL,http://statistics.data.gov.uk/id/local-authority/00FC,Chief Executive,Ad Joint Delivery,Information Technology,Print Stationery / Gen Off Exp,Printing And Stationery,LD103,1/13/2015,326709,529.42,REVENUE,UNITED CARLTON OFFICE SYSTEMS LTD,101652
NORTH EAST LINCOLNSHIRE COUNCIL,http://statistics.data.gov.uk/id/local-authority/00FC,Chief Executive,Ad Joint Delivery,Information Technology,Print Stationery / Gen Off Exp,Printing And Stationery,LD103,1/13/2015,326706,427.15,REVENUE,UNITED CARLTON OFFICE SYSTEMS LTD,101652
NORTH EAST LINCOLNSHIRE COUNCIL,http://statistics.data.gov.uk/id/local-authority/00FC,Chief Executive,Ad Joint Delivery,Information Technology,Print Stationery / Gen Off Exp,Printing And Stationery,LD103,1/13/2015,326704,349.11,REVENUE,UNITED CARLTON OFFICE SYSTEMS LTD,101652
NORTH EAST LINCOLNSHIRE COUNCIL,http://statistics.data.gov.uk/id/local-authority/00FC,Chief Executive,Ad Joint Delivery,Information Technology,Print Stationery / Gen Off Exp,Printing And Stationery,LD103,1/13/2015,326702,377.95,REVENUE,UNITED CARLTON OFFICE SYSTEMS LTD,101652
NORTH EAST LINCOLNSHIRE COUNCIL,http://statistics.data.gov.uk/id/local-authority/00FC,Chief Executive,Ad Joint Delivery,Information Technology,Print Stationery / Gen Off Exp,Printing And Stationery,LD103,1/13/2015,326698,323.47,REVENUE,UNITED CARLTON OFFICE SYSTEMS LTD,101652
NORTH EAST LINCOLNSHIRE COUNCIL,http://statistics.data.gov.uk/id/local-authority/00FC,Chief Executive,Ad Joint Delivery,Information Technology,Print Stationery / Gen Off Exp,Printing And Stationery,LD103,1/13/2015,326697,322.31,REVENUE,UNITED CARLTON OFFICE SYSTEMS LTD,101652
NORTH EAST LINCOLNSHIRE COUNCIL,http://statistics.data.gov.uk/id/local-authority/00FC,Chief Executive,Ad Joint Delivery,Information Technology,Print Stationery / Gen Off Exp,Printing And Stationery,LD103,1/13/2015,326696,337.7,REVENUE,UNITED CARLTON OFFICE SYSTEMS LTD,101652
NORTH EAST LINCOLNSHIRE COUNCIL,http://statistics.data.gov.uk/id/local-authority/00FC,Chief Executive,Ad Joint Delivery,Information Technology,Print Stationery / Gen Off Exp,Printing And Stationery,LD103,1/13/2015,326703,681.18,REVENUE,UNITED CARLTON OFFICE SYSTEMS LTD,101652
NORTH EAST LINCOLNSHIRE COUNCIL,http://statistics.data.gov.uk/id/local-authority/00FC,Chief Executive,Ad Joint Delivery,Community Support Mgmt A/C,Miscellaneous Expenses,Contingency Reserve,LL123,1/22/2015,327924,964,REVENUE,W R CULLUM,100811
NORTH EAST LINCOLNSHIRE COUNCIL,http://statistics.data.gov.uk/id/local-authority/00FC,Chief Executive,Ad Joint Delivery,Community Support Mgmt A/C,Miscellaneous Expenses,Contingency Reserve,LL123,1/26/2015,323280,250,REVENUE,PSP ASSET PROTECTION LTD,103734
NORTH EAST LINCOLNSHIRE COUNCIL,http://statistics.data.gov.uk/id/local-authority/00FC,Chief Executive,Ad Joint Delivery,Community Support Mgmt A/C,Indirect Employee Expenses,Staff Training,EB122,1/21/2015,328758,2160,REVENUE,THE NATIONAL REBOUND THERAPY CONSULTANCY,108893
NORTH EAST LINCOLNSHIRE COUNCIL,http://statistics.data.gov.uk/id/local-authority/00FC,Chief Executive,Ad Joint Delivery,Community Support Mgmt A/C,Equip / Furniture / Materials,Equipment - Purchase,LA101,1/26/2015,321982,1529.1,REVENUE,PRISM MEDICAL UK,119507
NORTH EAST LINCOLNSHIRE COUNCIL,http://statistics.data.gov.uk/id/local-authority/00FC,Chief Executive,Ad Joint Delivery,Community Support Mgmt A/C,Equip / Furniture / Materials,Equipment - Purchase,LA101,1/28/2015,323567,500.86,REVENUE,PRISM MEDICAL UK,119507
NORTH EAST LINCOLNSHIRE COUNCIL,http://statistics.data.gov.uk/id/local-authority/00FC,Chief Executive,Ad Joint Delivery,Community Support Mgmt A/C,Equip / Furniture / Materials,Equipment - Purchase,LA101,1/26/2015,321587,19800,REVENUE,SHAPEMASTER GLOBAL LTD,127720
NORTH EAST LINCOLNSHIRE COUNCIL,http://statistics.data.gov.uk/id/local-authority/00FC,Chief Executive,Ad Joint Delivery,Customer Services,Equip / Furniture / Materials,Goods For Resale,LA123,1/26/2015,327780,936.05,REVENUE,NORTHGATE INFORMATION SOLUTIONS UK LTD,101841
NORTH EAST LINCOLNSHIRE COUNCIL,http://statistics.data.gov.uk/id/local-authority/00FC,Chief Executive,Ad Joint Delivery,Customer Services,Private Contractors,External Security Services,PH103,1/26/2015,328780,-51.99,REVENUE,G4S CASH SERVICES (UK) LIMITED,100952
NORTH EAST LINCOLNSHIRE COUNCIL,http://statistics.data.gov.uk/id/local-authority/00FC,Chief Executive,Ad Joint Delivery,Customer Services,Private Contractors,External Security Services,PH103,1/26/2015,328663,451.82,REVENUE,G4S CASH SERVICES (UK) LIMITED,100952
NORTH EAST LINCOLNSHIRE COUNCIL,http://statistics.data.gov.uk/id/local-authority/00FC,Chief Executive,Ad Joint Delivery,Customer Services,Private Contractors,External Security Services,PH103,1/21/2015,327992,3680.66,REVENUE,ALLPAY LIMITED,112919
NORTH EAST LINCOLNSHIRE COUNCIL,http://statistics.data.gov.uk/id/local-authority/00FC,Chief Executive,Ad Joint Delivery,Leisure Contracts,Rep Alterations Maint Building,Buildings - Repairs And Maint,GA102,1/15/2015,326782,1170,REVENUE,C & G ENGINEERING SERVICES,100637
NORTH EAST LINCOLNSHIRE COUNCIL,http://statistics.data.gov.uk/id/local-authority/00FC,Chief Executive,Ad Joint Delivery,Leisure Contracts,Rep Alterations Maint Building,Buildings - Repairs And Maint,GA102,1/15/2015,327914,5026.4,REVENUE,LEGEND CLUB MANAGMENT SYSTEMS (UK) LTD,119144
NORTH EAST LINCOLNSHIRE COUNCIL,http://statistics.data.gov.uk/id/local-authority/00FC,Chief Executive,Ad Joint Delivery,Leisure Contracts,Rep Alterations Maint Building,Buildings - Repairs And Maint,GA102,01/06/2015,325887,3075.11,REVENUE,COFELY WORKPLACE LIMITED,123983
NORTH EAST LINCOLNSHIRE COUNCIL,http://statistics.data.gov.uk/id/local-authority/00FC,Chief Executive,Ad Joint Delivery,Leisure Contracts,Energy Costs,Electricity,GB102,01/06/2015,325938,8288.78,REVENUE,NPOWER LIMITED,101414
NORTH EAST LINCOLNSHIRE COUNCIL,http://statistics.data.gov.uk/id/local-authority/00FC,Chief Executive,Ad Joint Delivery,Leisure Contracts,Energy Costs,Electricity,GB102,01/08/2015,326369,3135.57,REVENUE,NPOWER LIMITED,101414
NORTH EAST LINCOLNSHIRE COUNCIL,http://statistics.data.gov.uk/id/local-authority/00FC,Chief Executive,Ad Joint Delivery,Leisure Contracts,Energy Costs,Electricity,GB102,01/08/2015,326471,7220.25,REVENUE,NPOWER LIMITED,101414
NORTH EAST LINCOLNSHIRE COUNCIL,http://statistics.data.gov.uk/id/local-authority/00FC,Chief Executive,Ad Joint Delivery,Leisure Contracts,Energy Costs,Electricity,GB102,01/08/2015,325937,3701.59,REVENUE,NPOWER LIMITED,101414
NORTH EAST LINCOLNSHIRE COUNCIL,http://statistics.data.gov.uk/id/local-authority/00FC,Chief Executive,Ad Joint Delivery,Leisure Contracts,Energy Costs,Electricity,GB102,01/08/2015,325939,4338.2,REVENUE,NPOWER LIMITED,101414
NORTH EAST LINCOLNSHIRE COUNCIL,http://statistics.data.gov.uk/id/local-authority/00FC,Chief Executive,Ad Joint Delivery,Leisure Contracts,Water Services,Water,GE101,1/27/2015,328875,4308.7,REVENUE,ANGLIAN WATER,100508
NORTH EAST LINCOLNSHIRE COUNCIL,http://statistics.data.gov.uk/id/local-authority/00FC,Chief Executive,Ad Joint Delivery,Leisure Contracts,Water Services,Water,GE101,01/06/2015,325758,355.96,REVENUE,ANGLIAN WATER,100508
NORTH EAST LINCOLNSHIRE COUNCIL,http://statistics.data.gov.uk/id/local-authority/00FC,Chief Executive,Ad Joint Delivery,Leisure Contracts,Clothes Uniforms And Laundry,Uniforms,LC102,01/08/2015,326170,549.01,REVENUE,PRO-ACTIVE TEAMWEAR LTD,101069
NORTH EAST LINCOLNSHIRE COUNCIL,http://statistics.data.gov.uk/id/local-authority/00FC,Chief Executive,Ad Joint Delivery,Leisure Contracts,Private Contractors,Contract Payments,PH105,1/27/2015,328261,703255,REVENUE,LINCS INSPIRE LTD,120610
NORTH EAST LINCOLNSHIRE COUNCIL,http://statistics.data.gov.uk/id/local-authority/00FC,Chief Executive,Ad Joint Delivery,Leisure Contracts,Private Contractors,Third Party Prov - Private,PH101,01/12/2015,326136,2412.28,REVENUE,LEGEND LEISURE SERVICES LTD,121539
NORTH EAST LINCOLNSHIRE COUNCIL,http://statistics.data.gov.uk/id/local-authority/00FC,Chief Executive,Ad Joint Delivery,Leisure Contracts,Private Contractors,Third Party Prov - Private,PH101,1/22/2015,326144,2445.01,REVENUE,LEGEND CLUB MANAGMENT SYSTEMS (UK) LTD,119144
NORTH EAST LINCOLNSHIRE COUNCIL,http://statistics.data.gov.uk/id/local-authority/00FC,Chief Executive,Ad Joint Delivery,Leisure Contracts,Private Contractors,Third Party Prov - Private,PH101,1/22/2015,326658,2919.58,REVENUE,LEGEND CLUB MANAGMENT SYSTEMS (UK) LTD,119144
NORTH EAST LINCOLNSHIRE COUNCIL,http://statistics.data.gov.uk/id/local-authority/00FC,Chief Executive,Ad Joint Delivery,Library Service,Equip / Furniture / Materials,Library Books,LA120,1/22/2015,328861,457.54,REVENUE,BERTRAM LIBRARY SERVICES,101586
NORTH EAST LINCOLNSHIRE COUNCIL,http://statistics.data.gov.uk/id/local-authority/00FC,Chief Executive,Ad Joint Delivery,Library Service,Equip / Furniture / Materials,Library Books,LA120,1/27/2015,329280,272.89,REVENUE,MARTIN MCCOLL,101794
NORTH EAST LINCOLNSHIRE COUNCIL,http://statistics.data.gov.uk/id/local-authority/00FC,Chief Executive,Ad Joint Delivery,Library Service,Equip / Furniture / Materials,Library Books,LA120,1/27/2015,329266,-6,REVENUE,OCLC (UK) LTD,103256
NORTH EAST LINCOLNSHIRE COUNCIL,http://statistics.data.gov.uk/id/local-authority/00FC,Chief Executive,Ad Joint Delivery,Library Service,Equip / Furniture / Materials,Library Books,LA120,1/22/2015,328862,650,REVENUE,ULVERSCROFT LARGE PRINT BOOKS,100735
NORTH EAST LINCOLNSHIRE COUNCIL,http://statistics.data.gov.uk/id/local-authority/00FC,Chief Executive,Ad Joint Delivery,Library Service,Private Contractors,Third Party Prov - Private,PH101,1/16/2015,327932,3572.57,REVENUE,KINGSTON UPON HULL CITY COUNCIL,100541
NORTH EAST LINCOLNSHIRE COUNCIL,http://statistics.data.gov.uk/id/local-authority/00FC,Chief Executive,Ad Joint Delivery,Library Service,Equip / Furniture / Materials,Equipment - Purchase,LA101,01/05/2015,325407,1343.96,REVENUE,AXIELL ALM LTD,108597
NORTH EAST LINCOLNSHIRE COUNCIL,http://statistics.data.gov.uk/id/local-authority/00FC,Chief Executive,Ad Joint Delivery,Library Service,Other Local Authorities,Third Pp - Other Local Auth,PC101,1/29/2015,329807,4000,REVENUE,LINCOLNSHIRE COUNTY COUNCIL,100389
NORTH EAST LINCOLNSHIRE COUNCIL,http://statistics.data.gov.uk/id/local-authority/00FC,Chief Executive,Ad Joint Delivery,Library Service,Other Local Authorities,Third Pp - Other Local Auth,PC101,1/26/2015,328846,4000,REVENUE,LINCOLNSHIRE COUNTY COUNCIL,100389
NORTH EAST LINCOLNSHIRE COUNCIL,http://statistics.data.gov.uk/id/local-authority/00FC,Chief Executive,Ad Joint Delivery,Human Resources,Indirect Employee Expenses,Disclosure Checks,EB124,1/15/2015,327518,4224,REVENUE,DISCLOSURE & BARRING SERVICE,119180
NORTH EAST LINCOLNSHIRE COUNCIL,http://statistics.data.gov.uk/id/local-authority/00FC,Chief Executive,Ad Joint Delivery,Human Resources,Indirect Employee Expenses,Staff Training,EB122,1/26/2015,328057,608,REVENUE,THE COLOUR WORKS INTERNATIONAL LTD,109018
NORTH EAST LINCOLNSHIRE COUNCIL,http://statistics.data.gov.uk/id/local-authority/00FC,Chief Executive,Ad Joint Delivery,Human Resources,Indirect Employee Expenses,Staff Training,EB122,01/07/2015,323535,1500,REVENUE,SYD STRIKE,109745
NORTH EAST LINCOLNSHIRE COUNCIL,http://statistics.data.gov.uk/id/local-authority/00FC,Chief Executive,Ad Joint Delivery,Human Resources,Indirect Employee Expenses,Medical Expenses - Employees,EB112,1/26/2015,328803,450.66,REVENUE,EA BROADBURN DISPENSING CHEMIST,101135
NORTH EAST LINCOLNSHIRE COUNCIL,http://statistics.data.gov.uk/id/local-authority/00FC,Chief Executive,Ad Joint Delivery,Human Resources,Indirect Employee Expenses,Medical Expenses - Employees,EB112,1/28/2015,329733,312.26,REVENUE,N LINCS & GOOLE HOSPITALS NHS,111074
NORTH EAST LINCOLNSHIRE COUNCIL,http://statistics.data.gov.uk/id/local-authority/00FC,Chief Executive,Ad Joint Delivery,Human Resources,Indirect Employee Expenses,Medical Expenses - Employees,EB112,1/29/2015,330181,561,REVENUE,PUROSEARCH,127387
NORTH EAST LINCOLNSHIRE COUNCIL,http://statistics.data.gov.uk/id/local-authority/00FC,Chief Executive,Ad Joint Delivery,Human Resources,Indirect Employee Expenses,Medical Expenses - Employees,EB112,1/29/2015,330182,582.78,REVENUE,PUROSEARCH,127387
NORTH EAST LINCOLNSHIRE COUNCIL,http://statistics.data.gov.uk/id/local-authority/00FC,Chief Executive,Ad Joint Delivery,Human Resources,Indirect Employee Expenses,Medical Expenses - Employees,EB112,1/29/2015,330183,841.5,REVENUE,PUROSEARCH,127387
NORTH EAST LINCOLNSHIRE COUNCIL,http://statistics.data.gov.uk/id/local-authority/00FC,Chief Executive,Ad Joint Delivery,Human Resources,Indirect Employee Expenses,Medical Expenses - Employees,EB112,1/29/2015,330184,297,REVENUE,PUROSEARCH,127387
NORTH EAST LINCOLNSHIRE COUNCIL,http://statistics.data.gov.uk/id/local-authority/00FC,Chief Executive,Ad Joint Delivery,Human Resources,Indirect Employee Expenses,Medical Expenses - Employees,EB112,1/30/2015,330412,1075,REVENUE,NORTH LINCOLNSHIRE COUNCIL,101186
NORTH EAST LINCOLNSHIRE COUNCIL,http://statistics.data.gov.uk/id/local-authority/00FC,Chief Executive,Ad Joint Delivery,Human Resources,Indirect Employee Expenses,Staff Training,EB122,01/05/2015,323040,1132.4,REVENUE,INDEPENDENT FAMILY SERVICE,104410
NORTH EAST LINCOLNSHIRE COUNCIL,http://statistics.data.gov.uk/id/local-authority/00FC,Chief Executive,Ad Joint Delivery,Human Resources,Indirect Employee Expenses,Staff Training,EB122,1/16/2015,327159,3750,REVENUE,UNIVERSITY OF LINCOLN,101299
NORTH EAST LINCOLNSHIRE COUNCIL,http://statistics.data.gov.uk/id/local-authority/00FC,Chief Executive,Ad Joint Delivery,Human Resources,Indirect Employee Expenses,Staff Training,EB122,1/20/2015,290556,1416.65,REVENUE,REDACTED PERSONAL INFORMATION,REDACTED PERSONAL INFORMATION
NORTH EAST LINCOLNSHIRE COUNCIL,http://statistics.data.gov.uk/id/local-authority/00FC,Chief Executive,Ad Joint Delivery,Human Resources,Indirect Employee Expenses,Staff Training,EB122,1/20/2015,290555,1416.65,REVENUE,REDACTED PERSONAL INFORMATION,REDACTED PERSONAL INFORMATION
NORTH EAST LINCOLNSHIRE COUNCIL,http://statistics.data.gov.uk/id/local-authority/00FC,Chief Executive,Ad Joint Delivery,Human Resources,Clothes Uniforms And Laundry,Protective Clothing,LC101,01/07/2015,325531,-35.42,REVENUE,ARCO LTD,100509
NORTH EAST LINCOLNSHIRE COUNCIL,http://statistics.data.gov.uk/id/local-authority/00FC,Chief Executive,Ad Joint Delivery,Central Commissioning & Delive,Catering,Provisions,LB101,1/28/2015,329332,9908.78,REVENUE,DAIRY CREST LTD,101743
NORTH EAST LINCOLNSHIRE COUNCIL,http://statistics.data.gov.uk/id/local-authority/00FC,Chief Executive,Ad Joint Delivery,Central Commissioning & Delive,Catering,Purchase School Meals,LB103,01/12/2015,327269,11184,REVENUE,CYGNET CATERING,108880
NORTH EAST LINCOLNSHIRE COUNCIL,http://statistics.data.gov.uk/id/local-authority/00FC,Chief Executive,Ad Joint Delivery,Central Commissioning & Delive,Catering,Purchase School Meals,LB103,01/12/2015,327270,152661.2,REVENUE,CYGNET CATERING,108880
NORTH EAST LINCOLNSHIRE COUNCIL,http://statistics.data.gov.uk/id/local-authority/00FC,Chief Executive,Ad Joint Delivery,Central Commissioning & Delive,Catering,Purchase School Meals,LB103,01/12/2015,327271,36521.1,REVENUE,CYGNET CATERING,108880
NORTH EAST LINCOLNSHIRE COUNCIL,http://statistics.data.gov.uk/id/local-authority/00FC,Chief Executive,Ad Joint Delivery,Central Commissioning & Delive,Private Contractors,Contract Payments,PH105,1/20/2015,323122,8773.77,REVENUE,MATRIX SCM LTD,108117
NORTH EAST LINCOLNSHIRE COUNCIL,http://statistics.data.gov.uk/id/local-authority/00FC,Chief Executive,Ad Joint Delivery,Central Commissioning & Delive,Private Contractors,Contract Payments,PH105,01/05/2015,320039,4619.68,REVENUE,MATRIX SCM LTD,108117
NORTH EAST LINCOLNSHIRE COUNCIL,http://statistics.data.gov.uk/id/local-authority/00FC,Chief Executive,Ad Joint Delivery,Central Commissioning & Delive,Private Contractors,Contract Payments,PH105,1/21/2015,325645,3256.96,REVENUE,MATRIX SCM LTD,108117
NORTH EAST LINCOLNSHIRE COUNCIL,http://statistics.data.gov.uk/id/local-authority/00FC,Chief Executive,Ad Joint Delivery,Central Commissioning & Delive,Private Contractors,Contract Payments,PH105,1/21/2015,326761,6407.74,REVENUE,MATRIX SCM LTD,108117
NORTH EAST LINCOLNSHIRE COUNCIL,http://statistics.data.gov.uk/id/local-authority/00FC,Chief Executive,Ad Joint Delivery,Business & Admin Supp Clusters,Communications And Computing,Postage,LF111,1/21/2015,327878,1177.58,REVENUE,ROYAL MAIL GROUP PLC,101082
NORTH EAST LINCOLNSHIRE COUNCIL,http://statistics.data.gov.uk/id/local-authority/00FC,Chief Executive,Ad Joint Delivery,Business & Admin Supp Clusters,Communications And Computing,Postage,LF111,1/16/2015,327158,1767.51,REVENUE,ROYAL MAIL GROUP PLC,101082
NORTH EAST LINCOLNSHIRE COUNCIL,http://statistics.data.gov.uk/id/local-authority/00FC,Chief Executive,Ad Joint Delivery,Business & Admin Supp Clusters,Communications And Computing,Postage,LF111,1/29/2015,329263,1939.39,REVENUE,ROYAL MAIL GROUP PLC,101082
NORTH EAST LINCOLNSHIRE COUNCIL,http://statistics.data.gov.uk/id/local-authority/00FC,Chief Executive,Ad Joint Delivery,Business & Admin Supp Clusters,Communications And Computing,Postage,LF111,01/07/2015,325927,1116.57,REVENUE,ROYAL MAIL GROUP PLC,101082
NORTH EAST LINCOLNSHIRE COUNCIL,http://statistics.data.gov.uk/id/local-authority/00FC,Chief Executive,Ad Joint Delivery,Business & Admin Supp Clusters,Communications And Computing,Postage,LF111,1/21/2015,327879,1774.91,REVENUE,ROYAL MAIL GROUP PLC,101082
NORTH EAST LINCOLNSHIRE COUNCIL,http://statistics.data.gov.uk/id/local-authority/00FC,Chief Executive,Ad Joint Delivery,Business & Admin Supp Clusters,Communications And Computing,Postage,LF111,01/07/2015,325924,291.25,REVENUE,ROYAL MAIL GROUP PLC,101082
NORTH EAST LINCOLNSHIRE COUNCIL,http://statistics.data.gov.uk/id/local-authority/00FC,Chief Executive,Ad Joint Delivery,Business & Admin Supp Clusters,Indirect Employee Expenses,Redundancy,EB109,1/28/2015,329728,REDACTED PERSONAL INFORMATION,REVENUE,EAST RIDING OF YORKSHIRE,100377
NORTH EAST LINCOLNSHIRE COUNCIL,http://statistics.data.gov.uk/id/local-authority/00FC,Chief Executive,Ad Governance And Democracy,Democratic Services,Indirect Employee Expenses,Staff Training,EB122,1/22/2015,328712,520,REVENUE,HALAROSE LIMITED,101974
NORTH EAST LINCOLNSHIRE COUNCIL,http://statistics.data.gov.uk/id/local-authority/00FC,Chief Executive,Ad Governance And Democracy,Democratic Services,Communications And Computing,Postage,LF111,1/13/2015,326760,281.05,REVENUE,ROYAL MAIL GROUP PLC,101082
NORTH EAST LINCOLNSHIRE COUNCIL,http://statistics.data.gov.uk/id/local-authority/00FC,Chief Executive,Ad Governance And Democracy,Democratic Services,Car Allowances,Travel - Members,JF102,01/12/2015,327127,-86.5,REVENUE,CLICK TRAVEL,127476
NORTH EAST LINCOLNSHIRE COUNCIL,http://statistics.data.gov.uk/id/local-authority/00FC,Chief Executive,Ad Governance And Democracy,Democratic Services,Grants And Subscriptions,Subscriptions,LJ101,01/12/2015,326767,420,REVENUE,THE INFORMATION COMMISSIONER,103593
NORTH EAST LINCOLNSHIRE COUNCIL,http://statistics.data.gov.uk/id/local-authority/00FC,Chief Executive,Ad Governance And Democracy,Town Hall,Miscellaneous Expenses,Civic Regalia And Events,LL117,1/28/2015,330104,-15,REVENUE,GAINSBOROUGH TOWN COUNCIL,128873
NORTH EAST LINCOLNSHIRE COUNCIL,http://statistics.data.gov.uk/id/local-authority/00FC,Chief Executive,Ad Governance And Democracy,Communications And Marketing,Equip / Furniture / Materials,Equipment - Purchase,LA101,1/15/2015,326210,648,REVENUE,FREELANCE OFFSET SERVICES,100689
NORTH EAST LINCOLNSHIRE COUNCIL,http://statistics.data.gov.uk/id/local-authority/00FC,Chief Executive,Ad Governance And Democracy,Communications And Marketing,Equip / Furniture / Materials,Equipment - Purchase,LA101,01/12/2015,324944,395.85,REVENUE,ANTALIS LTD,124930
NORTH EAST LINCOLNSHIRE COUNCIL,http://statistics.data.gov.uk/id/local-authority/00FC,Chief Executive,Ad Governance And Democracy,Communications And Marketing,Private Contractors,Third Party Prov - Private,PH101,01/05/2015,325831,721,REVENUE,PITNEY BOWES LIMITED,101236
NORTH EAST LINCOLNSHIRE COUNCIL,http://statistics.data.gov.uk/id/local-authority/00FC,Chief Executive,Ad Governance And Democracy,Communications And Marketing,Private Contractors,Third Party Prov - Private,PH101,1/16/2015,327942,1140,REVENUE,GSB PRINT & DESIGN LTD,101553
NORTH EAST LINCOLNSHIRE COUNCIL,http://statistics.data.gov.uk/id/local-authority/00FC,Chief Executive,Ad Governance And Democracy,Communications And Marketing,Private Contractors,Third Party Prov - Private,PH101,1/26/2015,328714,620,REVENUE,AR PRINTING LTD,100596
NORTH EAST LINCOLNSHIRE COUNCIL,http://statistics.data.gov.uk/id/local-authority/00FC,Chief Executive,Ad Governance And Democracy,Communications And Marketing,Private Contractors,Third Party Prov - Private,PH101,1/16/2015,327941,445,REVENUE,AR PRINTING LTD,100596
NORTH EAST LINCOLNSHIRE COUNCIL,http://statistics.data.gov.uk/id/local-authority/00FC,Chief Executive,Ad Governance And Democracy,Communications And Marketing,Direct Employee Expenses,Agency Staff,EA105,1/21/2015,327953,2400,REVENUE,WALTON MEDIA LTD,126989
NORTH EAST LINCOLNSHIRE COUNCIL,http://statistics.data.gov.uk/id/local-authority/00FC,Chief Executive,Ad Governance And Democracy,Strategy Change & Improvement,Contributions To Provisions,Contributions - Third Sector,LK102,1/29/2015,330185,639.93,REVENUE,THE SEWING CLUB,122720
NORTH EAST LINCOLNSHIRE COUNCIL,http://statistics.data.gov.uk/id/local-authority/00FC,Chief Executive,Ad Governance And Democracy,Strategy Change & Improvement,Private Contractors,Third Party Prov - Private,PH101,1/13/2015,326674,57500,REVENUE,GY/CLEE & DIST CITIZENS,101013
NORTH EAST LINCOLNSHIRE COUNCIL,http://statistics.data.gov.uk/id/local-authority/00FC,Chief Executive,Ad Governance And Democracy,Strategy Change & Improvement,Private Contractors,Third Party Prov - Private,PH101,01/05/2015,326092,6250,REVENUE,VOLUNTARY ACTION NORTH EAST LINCOLNSHIRE,103631
NORTH EAST LINCOLNSHIRE COUNCIL,http://statistics.data.gov.uk/id/local-authority/00FC,Chief Executive,Ad Law,Coroners,Miscellaneous Expenses,Other Expenses General,LL119,1/26/2015,328555,544,REVENUE,LG OFFICE SYSTEMS,102875
NORTH EAST LINCOLNSHIRE COUNCIL,http://statistics.data.gov.uk/id/local-authority/00FC,Chief Executive,Ad Law,Coroners,Other Agencies,Conveyance Bodies,PJ149,1/26/2015,328837,267.5,REVENUE,J NAYLOR (FUNERAL DIRECTORS) LTD,100731
NORTH EAST LINCOLNSHIRE COUNCIL,http://statistics.data.gov.uk/id/local-authority/00FC,Chief Executive,Ad Law,Coroners,Other Agencies,Mortuary Storage Charges,PJ156,1/22/2015,328711,5757,REVENUE,N LINCS & GOOLE HOSPITALS NHS,111074
NORTH EAST LINCOLNSHIRE COUNCIL,http://statistics.data.gov.uk/id/local-authority/00FC,Chief Executive,Ad Law,Coroners,Other Agencies,Mortuary Storage Charges,PJ156,01/05/2015,326094,5265,REVENUE,N LINCS & GOOLE HOSPITALS NHS,111074
NORTH EAST LINCOLNSHIRE COUNCIL,http://statistics.data.gov.uk/id/local-authority/00FC,Chief Executive,Ad Law,Coroners,Other Agencies,Post Mortems,PJ148,01/07/2015,326099,276.9,REVENUE,REDACTED PERSONAL INFORMATION,REDACTED PERSONAL INFORMATION
NORTH EAST LINCOLNSHIRE COUNCIL,http://statistics.data.gov.uk/id/local-authority/00FC,Chief Executive,Ad Law,Coroners,Other Agencies,Post Mortems,PJ148,1/26/2015,329020,556.9,REVENUE,REDACTED PERSONAL INFORMATION,REDACTED PERSONAL INFORMATION
NORTH EAST LINCOLNSHIRE COUNCIL,http://statistics.data.gov.uk/id/local-authority/00FC,Chief Executive,Ad Law,Coroners,Other Agencies,Post Mortems,PJ148,1/28/2015,329014,591.9,REVENUE,REDACTED PERSONAL INFORMATION,REDACTED PERSONAL INFORMATION
NORTH EAST LINCOLNSHIRE COUNCIL,http://statistics.data.gov.uk/id/local-authority/00FC,Chief Executive,Ad Law,Coroners,Other Agencies,Post Mortems,PJ148,01/05/2015,325785,597.2,REVENUE,REDACTED PERSONAL INFORMATION,REDACTED PERSONAL INFORMATION
NORTH EAST LINCOLNSHIRE COUNCIL,http://statistics.data.gov.uk/id/local-authority/00FC,Chief Executive,Ad Law,Coroners,Other Agencies,Post Mortems,PJ148,1/21/2015,327904,1043.8,REVENUE,REDACTED PERSONAL INFORMATION,REDACTED PERSONAL INFORMATION
NORTH EAST LINCOLNSHIRE COUNCIL,http://statistics.data.gov.uk/id/local-authority/00FC,Chief Executive,Ad Law,Coroners,Other Agencies,Post Mortems,PJ148,1/26/2015,328838,1153.3,REVENUE,REDACTED PERSONAL INFORMATION,REDACTED PERSONAL INFORMATION
NORTH EAST LINCOLNSHIRE COUNCIL,http://statistics.data.gov.uk/id/local-authority/00FC,Chief Executive,Ad Law,Coroners,Other Agencies,Post Mortems,PJ148,1/15/2015,327675,2834.5,REVENUE,UNIVERSITY HOSPITALS OF LEICESTER NHS TRUST,107238
NORTH EAST LINCOLNSHIRE COUNCIL,http://statistics.data.gov.uk/id/local-authority/00FC,Chief Executive,Ad Law,Legal Services,Miscellaneous Expenses,Other Supplies & Services,LL110,1/23/2015,291676,-66.2,REVENUE,REDACTED PERSONAL INFORMATION,REDACTED PERSONAL INFORMATION
NORTH EAST LINCOLNSHIRE COUNCIL,http://statistics.data.gov.uk/id/local-authority/00FC,Chief Executive,Ad Law,Legal Services,Miscellaneous Expenses,Other Supplies & Services,LL110,1/23/2015,291677,-40,REVENUE,REDACTED PERSONAL INFORMATION,REDACTED PERSONAL INFORMATION
NORTH EAST LINCOLNSHIRE COUNCIL,http://statistics.data.gov.uk/id/local-authority/00FC,Chief Executive,Ad Law,Legal Services,Consultancy,Consultancy,PL101,01/12/2015,326239,4694,REVENUE,BOND DICKINSON LLP,121775
NORTH EAST LINCOLNSHIRE COUNCIL,http://statistics.data.gov.uk/id/local-authority/00FC,Deputy Chief Executive,Ad Environment,Safer Communities P/Ship,Communications And Computing,Computer S/Ware - Maintenance,LF102,1/16/2015,327004,2150,REVENUE,PALOMA SYSTEMS LTD,108781
NORTH EAST LINCOLNSHIRE COUNCIL,http://statistics.data.gov.uk/id/local-authority/00FC,Deputy Chief Executive,Ad Environment,Safer Communities P/Ship,Voluntary Associations,Third Pp - Third Sector,PF101,1/16/2015,326726,50000,REVENUE,EMPOWER EMPLOYABILITY MENTORING PROGRAMME,118831
NORTH EAST LINCOLNSHIRE COUNCIL,http://statistics.data.gov.uk/id/local-authority/00FC,Deputy Chief Executive,Ad Environment,Cemeteries & Crematorium,Indirect Employee Expenses,Staff Training,EB122,1/28/2015,328972,500,REVENUE,RISEHOLME COLLEGE,111373
NORTH EAST LINCOLNSHIRE COUNCIL,http://statistics.data.gov.uk/id/local-authority/00FC,Deputy Chief Executive,Ad Environment,Cemeteries & Crematorium,Grounds Maintenance Costs,Grounds Maintenance,GJ101,1/29/2015,329350,810,REVENUE,COFELY WORKPLACE LIMITED,123983
NORTH EAST LINCOLNSHIRE COUNCIL,http://statistics.data.gov.uk/id/local-authority/00FC,Deputy Chief Executive,Ad Environment,Cemeteries & Crematorium,Indirect Employee Expenses,Staff Training,EB122,1/28/2015,328972,500,REVENUE,RISEHOLME COLLEGE,111373
NORTH EAST LINCOLNSHIRE COUNCIL,http://statistics.data.gov.uk/id/local-authority/00FC,Deputy Chief Executive,Ad Environment,Cemeteries & Crematorium,Grounds Maintenance Costs,Grounds Maintenance,GJ101,1/29/2015,329350,1650,REVENUE,COFELY WORKPLACE LIMITED,123983
NORTH EAST LINCOLNSHIRE COUNCIL,http://statistics.data.gov.uk/id/local-authority/00FC,Deputy Chief Executive,Ad Environment,Cemeteries & Crematorium,Equip / Furniture / Materials,Equipment - Purchase,LA101,1/28/2015,329311,-20.91,REVENUE,ARCO LTD,100509
NORTH EAST LINCOLNSHIRE COUNCIL,http://statistics.data.gov.uk/id/local-authority/00FC,Deputy Chief Executive,Ad Environment,Cemeteries & Crematorium,Customer And Client Receipts,Fees/Chrgs-O/Side Scope Vat 4,VC125,1/27/2015,291535,349,REVENUE,REDACTED PERSONAL INFORMATION,REDACTED PERSONAL INFORMATION
NORTH EAST LINCOLNSHIRE COUNCIL,http://statistics.data.gov.uk/id/local-authority/00FC,Deputy Chief Executive,Ad Environment,Cemeteries & Crematorium,Equip / Furniture / Materials,Equipment - Purchase,LA101,01/12/2015,326270,520,REVENUE,GRANART LTD,124002
NORTH EAST LINCOLNSHIRE COUNCIL,http://statistics.data.gov.uk/id/local-authority/00FC,Deputy Chief Executive,Ad Environment,Cemeteries & Crematorium,Equip / Furniture / Materials,Equipment - Purchase,LA101,1/28/2015,328988,336.89,REVENUE,F G MARSHALL LTD,100549
NORTH EAST LINCOLNSHIRE COUNCIL,http://statistics.data.gov.uk/id/local-authority/00FC,Deputy Chief Executive,Ad Environment,Cemeteries & Crematorium,Equip / Furniture / Materials,Equipment - Purchase,LA101,01/12/2015,326270,460,REVENUE,GRANART LTD,124002
NORTH EAST LINCOLNSHIRE COUNCIL,http://statistics.data.gov.uk/id/local-authority/00FC,Deputy Chief Executive,Ad Environment,Cemeteries & Crematorium,Equip / Furniture / Materials,Equipment - Purchase,LA101,01/12/2015,326281,480.6,REVENUE,GRANART LTD,124002
NORTH EAST LINCOLNSHIRE COUNCIL,http://statistics.data.gov.uk/id/local-authority/00FC,Deputy Chief Executive,Ad Environment,Garage & Fleet Strategy,Indirect Employee Expenses,Staff Training,EB122,1/15/2015,327544,468,REVENUE,APSE,101174
NORTH EAST LINCOLNSHIRE COUNCIL,http://statistics.data.gov.uk/id/local-authority/00FC,Deputy Chief Executive,Ad Environment,Garage & Fleet Strategy,Direct Transport Costs,Vehicles - Repairs And Maint,JA105,1/15/2015,327561,552.58,REVENUE,B A BUSH & SON LTD,101828
NORTH EAST LINCOLNSHIRE COUNCIL,http://statistics.data.gov.uk/id/local-authority/00FC,Deputy Chief Executive,Ad Environment,Garage & Fleet Strategy,Direct Transport Costs,Vehicles - Repairs And Maint,JA105,1/15/2015,327531,302.5,REVENUE,E BACON & CO LTD,104090
NORTH EAST LINCOLNSHIRE COUNCIL,http://statistics.data.gov.uk/id/local-authority/00FC,Deputy Chief Executive,Ad Environment,Garage & Fleet Strategy,Direct Transport Costs,Vehicles - Repairs And Maint,JA105,01/05/2015,325901,471.06,REVENUE,B A BUSH & SON LTD,101828
NORTH EAST LINCOLNSHIRE COUNCIL,http://statistics.data.gov.uk/id/local-authority/00FC,Deputy Chief Executive,Ad Environment,Garage & Fleet Strategy,Direct Transport Costs,Vehicles - Repairs And Maint,JA105,01/05/2015,325886,435.5,REVENUE,B A BUSH & SON LTD,101828
NORTH EAST LINCOLNSHIRE COUNCIL,http://statistics.data.gov.uk/id/local-authority/00FC,Deputy Chief Executive,Ad Environment,Garage & Fleet Strategy,Direct Transport Costs,Vehicles - Repairs And Maint,JA105,01/05/2015,325917,250,REVENUE,B A BUSH & SON LTD,101828
NORTH EAST LINCOLNSHIRE COUNCIL,http://statistics.data.gov.uk/id/local-authority/00FC,Deputy Chief Executive,Ad Environment,Garage & Fleet Strategy,Direct Transport Costs,Vehicles - Repairs And Maint,JA105,01/05/2015,325914,366.6,REVENUE,B A BUSH & SON LTD,101828
NORTH EAST LINCOLNSHIRE COUNCIL,http://statistics.data.gov.uk/id/local-authority/00FC,Deputy Chief Executive,Ad Environment,Garage & Fleet Strategy,Direct Transport Costs,Vehicles - Repairs And Maint,JA105,1/15/2015,327529,251.04,REVENUE,B A BUSH & SON LTD,101828
NORTH EAST LINCOLNSHIRE COUNCIL,http://statistics.data.gov.uk/id/local-authority/00FC,Deputy Chief Executive,Ad Environment,Garage & Fleet Strategy,Direct Transport Costs,Vehicles - Repairs And Maint,JA105,1/15/2015,327559,552.06,REVENUE,B A BUSH & SON LTD,101828
NORTH EAST LINCOLNSHIRE COUNCIL,http://statistics.data.gov.uk/id/local-authority/00FC,Deputy Chief Executive,Ad Environment,Garage & Fleet Strategy,Direct Transport Costs,Vehicles - Repairs And Maint,JA105,1/15/2015,327527,276.03,REVENUE,B A BUSH & SON LTD,101828
NORTH EAST LINCOLNSHIRE COUNCIL,http://statistics.data.gov.uk/id/local-authority/00FC,Deputy Chief Executive,Ad Environment,Garage & Fleet Strategy,Direct Transport Costs,Vehicles - Repairs And Maint,JA105,1/15/2015,327558,430.52,REVENUE,B A BUSH & SON LTD,101828
NORTH EAST LINCOLNSHIRE COUNCIL,http://statistics.data.gov.uk/id/local-authority/00FC,Deputy Chief Executive,Ad Environment,Garage & Fleet Strategy,Direct Transport Costs,Vehicles - Repairs And Maint,JA105,1/15/2015,327560,552.06,REVENUE,B A BUSH & SON LTD,101828
NORTH EAST LINCOLNSHIRE COUNCIL,http://statistics.data.gov.uk/id/local-authority/00FC,Deputy Chief Executive,Ad Environment,Garage & Fleet Strategy,Direct Transport Costs,Vehicles - Repairs And Maint,JA105,1/15/2015,327562,617.74,REVENUE,B A BUSH & SON LTD,101828
NORTH EAST LINCOLNSHIRE COUNCIL,http://statistics.data.gov.uk/id/local-authority/00FC,Deputy Chief Executive,Ad Environment,Garage & Fleet Strategy,Direct Transport Costs,Vehicles - Repairs And Maint,JA105,1/15/2015,327563,430,REVENUE,B A BUSH & SON LTD,101828
NORTH EAST LINCOLNSHIRE COUNCIL,http://statistics.data.gov.uk/id/local-authority/00FC,Deputy Chief Executive,Ad Environment,Garage & Fleet Strategy,Direct Transport Costs,Vehicles - Repairs And Maint,JA105,1/22/2015,328913,595.26,REVENUE,B A BUSH & SON LTD,101828
NORTH EAST LINCOLNSHIRE COUNCIL,http://statistics.data.gov.uk/id/local-authority/00FC,Deputy Chief Executive,Ad Environment,Garage & Fleet Strategy,Direct Transport Costs,Vehicles - Repairs And Maint,JA105,1/15/2015,327706,835.49,REVENUE,C F PARKINSON LIMITED,100553
NORTH EAST LINCOLNSHIRE COUNCIL,http://statistics.data.gov.uk/id/local-authority/00FC,Deputy Chief Executive,Ad Environment,Garage & Fleet Strategy,Direct Transport Costs,Vehicles - Repairs And Maint,JA105,1/15/2015,327519,647.44,REVENUE,C F PARKINSON LIMITED,100553
NORTH EAST LINCOLNSHIRE COUNCIL,http://statistics.data.gov.uk/id/local-authority/00FC,Deputy Chief Executive,Ad Environment,Garage & Fleet Strategy,Direct Transport Costs,Vehicles - Repairs And Maint,JA105,1/15/2015,327676,5610.62,REVENUE,FLEET FACTORS LTD,100886
NORTH EAST LINCOLNSHIRE COUNCIL,http://statistics.data.gov.uk/id/local-authority/00FC,Deputy Chief Executive,Ad Environment,Garage & Fleet Strategy,Direct Transport Costs,Vehicles - Repairs And Maint,JA105,1/15/2015,327677,1904.77,REVENUE,FLEET FACTORS LTD,100886
NORTH EAST LINCOLNSHIRE COUNCIL,http://statistics.data.gov.uk/id/local-authority/00FC,Deputy Chief Executive,Ad Environment,Garage & Fleet Strategy,Direct Transport Costs,Vehicles - Repairs And Maint,JA105,1/15/2015,327678,1972.35,REVENUE,FLEET FACTORS LTD,100886
NORTH EAST LINCOLNSHIRE COUNCIL,http://statistics.data.gov.uk/id/local-authority/00FC,Deputy Chief Executive,Ad Environment,Garage & Fleet Strategy,Direct Transport Costs,Vehicles - Repairs And Maint,JA105,1/15/2015,327679,867.65,REVENUE,FLEET FACTORS LTD,100886
NORTH EAST LINCOLNSHIRE COUNCIL,http://statistics.data.gov.uk/id/local-authority/00FC,Deputy Chief Executive,Ad Environment,Garage & Fleet Strategy,Direct Transport Costs,Vehicles - Repairs And Maint,JA105,1/15/2015,327680,1325.01,REVENUE,FLEET FACTORS LTD,100886
NORTH EAST LINCOLNSHIRE COUNCIL,http://statistics.data.gov.uk/id/local-authority/00FC,Deputy Chief Executive,Ad Environment,Garage & Fleet Strategy,Direct Transport Costs,Vehicles - Repairs And Maint,JA105,1/26/2015,328843,2151.39,REVENUE,FLEET FACTORS LTD,100886
NORTH EAST LINCOLNSHIRE COUNCIL,http://statistics.data.gov.uk/id/local-authority/00FC,Deputy Chief Executive,Ad Environment,Garage & Fleet Strategy,Direct Transport Costs,Vehicles - Repairs And Maint,JA105,1/26/2015,328844,6232.47,REVENUE,FLEET FACTORS LTD,100886
NORTH EAST LINCOLNSHIRE COUNCIL,http://statistics.data.gov.uk/id/local-authority/00FC,Deputy Chief Executive,Ad Environment,Garage & Fleet Strategy,Direct Transport Costs,Vehicles - Repairs And Maint,JA105,01/06/2015,325888,2984.99,REVENUE,FLEET FACTORS LTD,100886
NORTH EAST LINCOLNSHIRE COUNCIL,http://statistics.data.gov.uk/id/local-authority/00FC,Deputy Chief Executive,Ad Environment,Garage & Fleet Strategy,Direct Transport Costs,Vehicles - Repairs And Maint,JA105,01/06/2015,325889,4033,REVENUE,FLEET FACTORS LTD,100886
NORTH EAST LINCOLNSHIRE COUNCIL,http://statistics.data.gov.uk/id/local-authority/00FC,Deputy Chief Executive,Ad Environment,Garage & Fleet Strategy,Direct Transport Costs,Vehicles - Repairs And Maint,JA105,1/15/2015,327591,726.73,REVENUE,WR MATERIAL HANDLING LTD,101388
NORTH EAST LINCOLNSHIRE COUNCIL,http://statistics.data.gov.uk/id/local-authority/00FC,Deputy Chief Executive,Ad Environment,Garage & Fleet Strategy,Direct Transport Costs,Vehicles - Repairs And Maint,JA105,1/15/2015,327572,278.7,REVENUE,WR MATERIAL HANDLING LTD,101388
NORTH EAST LINCOLNSHIRE COUNCIL,http://statistics.data.gov.uk/id/local-authority/00FC,Deputy Chief Executive,Ad Environment,Garage & Fleet Strategy,Equip / Furniture / Materials,Equipment - Maintenance,LA104,01/05/2015,325883,1950,REVENUE,WEIGHTRON BILANCIAI LTD,108729
NORTH EAST LINCOLNSHIRE COUNCIL,http://statistics.data.gov.uk/id/local-authority/00FC,Deputy Chief Executive,Ad Environment,Garage & Fleet Strategy,Clothes Uniforms And Laundry,Laundry,LC103,1/20/2015,328067,349.72,REVENUE,JOHNSONS APPARELMASTER,100810
NORTH EAST LINCOLNSHIRE COUNCIL,http://statistics.data.gov.uk/id/local-authority/00FC,Deputy Chief Executive,Ad Environment,Garage & Fleet Strategy,Communications And Computing,Telephones,LF112,01/08/2015,326175,384,REVENUE,RADPHONE LTD,101671
NORTH EAST LINCOLNSHIRE COUNCIL,http://statistics.data.gov.uk/id/local-authority/00FC,Deputy Chief Executive,Ad Environment,Garage & Fleet Strategy,Communications And Computing,Telephones,LF112,01/08/2015,326173,492,REVENUE,RADPHONE LTD,101671
NORTH EAST LINCOLNSHIRE COUNCIL,http://statistics.data.gov.uk/id/local-authority/00FC,Deputy Chief Executive,Ad Environment,Garage & Fleet Strategy,Communications And Computing,Telephones,LF112,1/15/2015,327765,492,REVENUE,RADPHONE LTD,101671
NORTH EAST LINCOLNSHIRE COUNCIL,http://statistics.data.gov.uk/id/local-authority/00FC,Deputy Chief Executive,Ad Environment,Garage & Fleet Strategy,Communications And Computing,Telephones,LF112,01/08/2015,326173,264,REVENUE,RADPHONE LTD,101671
NORTH EAST LINCOLNSHIRE COUNCIL,http://statistics.data.gov.uk/id/local-authority/00FC,Deputy Chief Executive,Ad Environment,Garage & Fleet Strategy,Communications And Computing,Telephones,LF112,1/15/2015,327765,264,REVENUE,RADPHONE LTD,101671
NORTH EAST LINCOLNSHIRE COUNCIL,http://statistics.data.gov.uk/id/local-authority/00FC,Deputy Chief Executive,Ad Environment,Grounds And Street Cleansing,Rep Alterations Maint Building,Buildings - Repairs And Maint,GA102,1/21/2015,328237,424,REVENUE,BCJ CONSTRUCTION LTD,112224
NORTH EAST LINCOLNSHIRE COUNCIL,http://statistics.data.gov.uk/id/local-authority/00FC,Deputy Chief Executive,Ad Environment,Grounds And Street Cleansing,Direct Transport Costs,Vehicles - Running Costs,JA104,01/05/2015,326283,270.22,REVENUE,ALLSTAR BUSINESS SOLUTIONS LTD,108278
NORTH EAST LINCOLNSHIRE COUNCIL,http://statistics.data.gov.uk/id/local-authority/00FC,Deputy Chief Executive,Ad Environment,Grounds And Street Cleansing,Equip / Furniture / Materials,Equipment - Purchase,LA101,01/05/2015,326184,-60,REVENUE,JAMES COLES & SONS LTD,100758
NORTH EAST LINCOLNSHIRE COUNCIL,http://statistics.data.gov.uk/id/local-authority/00FC,Deputy Chief Executive,Ad Environment,Grounds And Street Cleansing,Equip / Furniture / Materials,Equipment - Purchase,LA101,1/26/2015,323560,963.7,REVENUE,GLASDON UK LTD,100531
NORTH EAST LINCOLNSHIRE COUNCIL,http://statistics.data.gov.uk/id/local-authority/00FC,Deputy Chief Executive,Ad Environment,Grounds And Street Cleansing,Communications And Computing,Telephones,LF112,01/08/2015,326175,492,REVENUE,RADPHONE LTD,101671
NORTH EAST LINCOLNSHIRE COUNCIL,http://statistics.data.gov.uk/id/local-authority/00FC,Deputy Chief Executive,Ad Environment,Grounds And Street Cleansing,Private Contractors,Contract Payments,PH105,1/29/2015,329766,13750,REVENUE,IMMINGHAM TOWN COUNCIL,101597
NORTH EAST LINCOLNSHIRE COUNCIL,http://statistics.data.gov.uk/id/local-authority/00FC,Deputy Chief Executive,Ad Environment,Grounds And Street Cleansing,Private Contractors,Third Party Prov - Private,PH101,1/15/2015,327841,401.53,REVENUE,NATIONAL GRID GAS PLC,111291
NORTH EAST LINCOLNSHIRE COUNCIL,http://statistics.data.gov.uk/id/local-authority/00FC,Deputy Chief Executive,Ad Environment,Grounds And Street Cleansing,Equip / Furniture / Materials,Equipment - Purchase,LA101,01/08/2015,326263,2257.2,REVENUE,INITIAL MEDICAL SERVICES LTD,102141
NORTH EAST LINCOLNSHIRE COUNCIL,http://statistics.data.gov.uk/id/local-authority/00FC,Deputy Chief Executive,Ad Environment,Grounds And Street Cleansing,Clothes Uniforms And Laundry,Protective Clothing,LC101,01/08/2015,325816,264.6,REVENUE,WESTBURY INDUSTRIAL SUPPLIES LTD,102378
NORTH EAST LINCOLNSHIRE COUNCIL,http://statistics.data.gov.uk/id/local-authority/00FC,Deputy Chief Executive,Ad Environment,Grounds And Street Cleansing,Communications And Computing,Telephones,LF112,01/08/2015,326175,264,REVENUE,RADPHONE LTD,101671
NORTH EAST LINCOLNSHIRE COUNCIL,http://statistics.data.gov.uk/id/local-authority/00FC,Deputy Chief Executive,Ad Environment,Grounds And Street Cleansing,Private Contractors,Contract Payments,PH105,1/29/2015,329766,7500,REVENUE,IMMINGHAM TOWN COUNCIL,101597
NORTH EAST LINCOLNSHIRE COUNCIL,http://statistics.data.gov.uk/id/local-authority/00FC,Deputy Chief Executive,Ad Environment,Grounds And Street Cleansing,Private Contractors,Third Party Prov - Private,PH101,1/29/2015,329898,375,REVENUE,RIVER SWAN VETERINARY CENTRE,104349
NORTH EAST LINCOLNSHIRE COUNCIL,http://statistics.data.gov.uk/id/local-authority/00FC,Deputy Chief Executive,Ad Environment,Grounds And Street Cleansing,Rents,Rent,GC101,01/08/2015,326829,736.5,REVENUE,ASSOCIATED BRITISH PORTS,100834
NORTH EAST LINCOLNSHIRE COUNCIL,http://statistics.data.gov.uk/id/local-authority/00FC,Deputy Chief Executive,Ad Environment,Neighbourhood Serv Mgmt A/C,Indirect Employee Expenses,Staff Training,EB122,01/12/2015,325414,495,REVENUE,PENNA PLC,122954
NORTH EAST LINCOLNSHIRE COUNCIL,http://statistics.data.gov.uk/id/local-authority/00FC,Deputy Chief Executive,Ad Environment,Neighbourhood Serv Mgmt A/C,Consultancy,Consultancy,PL101,1/29/2015,329775,772.55,REVENUE,EMPOWER EMPLOYABILITY MENTORING PROGRAMME,118831
NORTH EAST LINCOLNSHIRE COUNCIL,http://statistics.data.gov.uk/id/local-authority/00FC,Deputy Chief Executive,Ad Environment,Neighbourhood Serv Mgmt A/C,Consultancy,Consultancy,PL101,1/29/2015,329775,2000,REVENUE,EMPOWER EMPLOYABILITY MENTORING PROGRAMME,118831
NORTH EAST LINCOLNSHIRE COUNCIL,http://statistics.data.gov.uk/id/local-authority/00FC,Deputy Chief Executive,Ad Environment,Neighbourhood Serv Mgmt A/C,Consultancy,Consultancy,PL101,1/16/2015,326997,2900,REVENUE,THE TAS PARTNERSHIP LIMITED,128717
NORTH EAST LINCOLNSHIRE COUNCIL,http://statistics.data.gov.uk/id/local-authority/00FC,Deputy Chief Executive,Ad Environment,Waste Services,Indirect Employee Expenses,Staff Training,EB122,01/07/2015,326151,360,REVENUE,MAL TRAINING LTD,105979
NORTH EAST LINCOLNSHIRE COUNCIL,http://statistics.data.gov.uk/id/local-authority/00FC,Deputy Chief Executive,Ad Environment,Waste Services,Rep Alterations Maint Building,Buildings - Repairs And Maint,GA102,1/26/2015,323887,1090,REVENUE,MGB,101544
NORTH EAST LINCOLNSHIRE COUNCIL,http://statistics.data.gov.uk/id/local-authority/00FC,Deputy Chief Executive,Ad Environment,Waste Services,Rep Alterations Maint Building,Buildings - Repairs And Maint,GA102,1/27/2015,325746,1090,REVENUE,MGB,101544
NORTH EAST LINCOLNSHIRE COUNCIL,http://statistics.data.gov.uk/id/local-authority/00FC,Deputy Chief Executive,Ad Environment,Waste Services,Rep Alterations Maint Building,Buildings - Repairs And Maint,GA102,1/26/2015,326298,380,REVENUE,SIGN OF THE TIMES,100575
NORTH EAST LINCOLNSHIRE COUNCIL,http://statistics.data.gov.uk/id/local-authority/00FC,Deputy Chief Executive,Ad Environment,Waste Services,Rep Alterations Maint Building,Buildings - Repairs And Maint,GA102,1/26/2015,326298,380,REVENUE,SIGN OF THE TIMES,100575
NORTH EAST LINCOLNSHIRE COUNCIL,http://statistics.data.gov.uk/id/local-authority/00FC,Deputy Chief Executive,Ad Environment,Waste Services,Equip / Furniture / Materials,Equipment - Purchase,LA101,1/26/2015,322862,263,REVENUE,ARCO LTD,100509
NORTH EAST LINCOLNSHIRE COUNCIL,http://statistics.data.gov.uk/id/local-authority/00FC,Deputy Chief Executive,Ad Environment,Waste Services,Clothes Uniforms And Laundry,Protective Clothing,LC101,1/28/2015,329019,444,REVENUE,ARCO LTD,100509
NORTH EAST LINCOLNSHIRE COUNCIL,http://statistics.data.gov.uk/id/local-authority/00FC,Deputy Chief Executive,Ad Environment,Waste Services,Clothes Uniforms And Laundry,Protective Clothing,LC101,01/08/2015,325444,730,REVENUE,ARDEN WINCH & CO lTD,122948
NORTH EAST LINCOLNSHIRE COUNCIL,http://statistics.data.gov.uk/id/local-authority/00FC,Deputy Chief Executive,Ad Environment,Waste Disposal And Strategy,Private Contractors,Contract Payments,PH105,01/12/2015,326158,REDACTED COMMERCIALLY SENSITIVE,REVENUE,NEWLINCS DEVELOPMENT LTD,101125
NORTH EAST LINCOLNSHIRE COUNCIL,http://statistics.data.gov.uk/id/local-authority/00FC,Deputy Chief Executive,Ad Environment,Waste Disposal And Strategy,Private Contractors,Contract Payments,PH105,1/19/2015,328492,REDACTED COMMERCIALLY SENSITIVE,REVENUE,NEWLINCS DEVELOPMENT LTD,101125
NORTH EAST LINCOLNSHIRE COUNCIL,http://statistics.data.gov.uk/id/local-authority/00FC,Deputy Chief Executive,Ad Environment,Waste Disposal And Strategy,Private Contractors,Contract Payments Landfill Tax,PH106,1/19/2015,328492,REDACTED COMMERCIALLY SENSITIVE,REVENUE,NEWLINCS DEVELOPMENT LTD,101125
NORTH EAST LINCOLNSHIRE COUNCIL,http://statistics.data.gov.uk/id/local-authority/00FC,Deputy Chief Executive,Ad Environment,Safer Communities - Nelc,Equip / Furniture / Materials,Equipment - Purchase,LA101,1/16/2015,327923,1012.5,REVENUE,RED SECURITY & HARDWARE,121705
NORTH EAST LINCOLNSHIRE COUNCIL,http://statistics.data.gov.uk/id/local-authority/00FC,Deputy Chief Executive,Ad Environment,Community Protection,Indirect Employee Expenses,Staff Training,EB122,01/07/2015,323395,354.4,REVENUE,CIVICA UK LIMITED,103029
NORTH EAST LINCOLNSHIRE COUNCIL,http://statistics.data.gov.uk/id/local-authority/00FC,Deputy Chief Executive,Ad Environment,Community Protection,Print Stationery / Gen Off Exp,Publicity,LD105,01/05/2015,326128,353,REVENUE,LOCAL WORLD LIMITED,118774
NORTH EAST LINCOLNSHIRE COUNCIL,http://statistics.data.gov.uk/id/local-authority/00FC,Deputy Chief Executive,Ad Environment,Community Protection,Print Stationery / Gen Off Exp,Publicity,LD105,01/07/2015,326132,353,REVENUE,LOCAL WORLD LIMITED,118774
NORTH EAST LINCOLNSHIRE COUNCIL,http://statistics.data.gov.uk/id/local-authority/00FC,Deputy Chief Executive,Ad Environment,Community Protection,Other Local Authorities,Third Pp - Other Local Auth,PC101,1/16/2015,327261,12500,REVENUE,THE HUMBERSIDE LINCOLNSHIRE AND,106148
NORTH EAST LINCOLNSHIRE COUNCIL,http://statistics.data.gov.uk/id/local-authority/00FC,Deputy Chief Executive,Ad Environment,Community Protection,Private Contractors,Third Party Prov - Private,PH101,1/19/2015,328281,333.33,REVENUE,EMPOWER EMPLOYABILITY MENTORING PROGRAMME,118831
NORTH EAST LINCOLNSHIRE COUNCIL,http://statistics.data.gov.uk/id/local-authority/00FC,Deputy Chief Executive,Ad Environment,Community Protection,Private Contractors,Third Party Prov - Private,PH101,01/12/2015,326137,250,REVENUE,EMPOWER EMPLOYABILITY MENTORING PROGRAMME,118831
NORTH EAST LINCOLNSHIRE COUNCIL,http://statistics.data.gov.uk/id/local-authority/00FC,Deputy Chief Executive,Ad Environment,Community Protection,Private Contractors,Third Party Prov - Private,PH101,1/15/2015,327700,4424.36,REVENUE,SANGREAT KENNELS,103270
NORTH EAST LINCOLNSHIRE COUNCIL,http://statistics.data.gov.uk/id/local-authority/00FC,Deputy Chief Executive,Ad Environment,Community Protection,Private Contractors,Third Party Prov - Private,PH101,01/12/2015,326157,359.92,REVENUE,OLD COURTS VETERINARY CENTRE,103433
NORTH EAST LINCOLNSHIRE COUNCIL,http://statistics.data.gov.uk/id/local-authority/00FC,Deputy Chief Executive,Ad Environment,Community Protection,Grants And Subscriptions,Subscriptions,LJ101,1/29/2015,329901,709,REVENUE,THOMSON REUTERS,110059
NORTH EAST LINCOLNSHIRE COUNCIL,http://statistics.data.gov.uk/id/local-authority/00FC,Deputy Chief Executive,Ad Environment,Community Protection,Grants And Subscriptions,Subscriptions,LJ101,1/28/2015,329011,931.7,REVENUE,WOLTERS KLUWER (UK) LTD,101454
NORTH EAST LINCOLNSHIRE COUNCIL,http://statistics.data.gov.uk/id/local-authority/00FC,Deputy Chief Executive,Ad Environment,Community Protection,Miscellaneous Expenses,Other Supplies & Services,LL110,01/08/2015,326168,1016.4,REVENUE,MRS PROTHERM LTD,128654
NORTH EAST LINCOLNSHIRE COUNCIL,http://statistics.data.gov.uk/id/local-authority/00FC,Deputy Chief Executive,Ad Environment,Community Protection,Private Contractors,Third Party Prov - Private,PH101,01/12/2015,326123,489.18,REVENUE,ARK VETS,109037
NORTH EAST LINCOLNSHIRE COUNCIL,http://statistics.data.gov.uk/id/local-authority/00FC,Deputy Chief Executive,Ad Environment,Community Protection,Equip / Furniture / Materials,Goods For Resale,LA123,01/07/2015,324835,432.08,REVENUE,VIP SYSTEM LTD,101697
NORTH EAST LINCOLNSHIRE COUNCIL,http://statistics.data.gov.uk/id/local-authority/00FC,Deputy Chief Executive,Ad Environment,Community Protection,Equip / Furniture / Materials,Goods For Resale,LA123,01/07/2015,324835,273.36,REVENUE,VIP SYSTEM LTD,101697
NORTH EAST LINCOLNSHIRE COUNCIL,http://statistics.data.gov.uk/id/local-authority/00FC,Deputy Chief Executive,Ad Environment,Community Protection,Equip / Furniture / Materials,Goods For Resale,LA123,01/07/2015,324835,440.6,REVENUE,VIP SYSTEM LTD,101697
NORTH EAST LINCOLNSHIRE COUNCIL,http://statistics.data.gov.uk/id/local-authority/00FC,Deputy Chief Executive,Ad Environment,Community Protection,Direct Employee Expenses,Agency Staff,EA105,01/12/2015,326162,1074.44,REVENUE,KENYON BLOCK CONSULTANTS,101878
NORTH EAST LINCOLNSHIRE COUNCIL,http://statistics.data.gov.uk/id/local-authority/00FC,Deputy Chief Executive,Ad Environment,Community Protection,Indirect Employee Expenses,Staff Training,EB122,1/13/2015,327721,720,REVENUE,RICARDO-AEA LTD,129004
NORTH EAST LINCOLNSHIRE COUNCIL,http://statistics.data.gov.uk/id/local-authority/00FC,Deputy Chief Executive,Ad Environment,Community Protection,Miscellaneous Expenses,Environmental/Health Analysis,LL120,1/19/2015,321327,1264.8,REVENUE,ESG,102685
NORTH EAST LINCOLNSHIRE COUNCIL,http://statistics.data.gov.uk/id/local-authority/00FC,Deputy Chief Executive,Ad Early Intervention,Integrated Youth Services,Equip / Furniture / Materials,Equipment - Purchase,LA101,1/26/2015,328832,545.6,REVENUE,PRO-ACTIVE TEAMWEAR LTD,101069
NORTH EAST LINCOLNSHIRE COUNCIL,http://statistics.data.gov.uk/id/local-authority/00FC,Deputy Chief Executive,Ad Early Intervention,Integrated Youth Services,Miscellaneous Expenses,Licences,LL116,01/08/2015,325781,650,REVENUE,CASMACO LTD,109787
NORTH EAST LINCOLNSHIRE COUNCIL,http://statistics.data.gov.uk/id/local-authority/00FC,Deputy Chief Executive,Ad Early Intervention,Integrated Youth Services,Miscellaneous Expenses,Activities - Service Users,LL114,1/29/2015,329856,448.34,REVENUE,WELHOLME ACADEMY,127227
NORTH EAST LINCOLNSHIRE COUNCIL,http://statistics.data.gov.uk/id/local-authority/00FC,Deputy Chief Executive,Ad Early Intervention,Integrated Youth Services,Indirect Employee Expenses,Staff Training,EB122,01/05/2015,325784,260,REVENUE,THE AIM PROJECT,105257
NORTH EAST LINCOLNSHIRE COUNCIL,http://statistics.data.gov.uk/id/local-authority/00FC,Deputy Chief Executive,Ad Early Intervention,Integrated Youth Services,Indirect Employee Expenses,Staff Training,EB122,1/28/2015,329360,350,REVENUE,CO-ORDINATED ACTION AGAINST DOMESTIC ABUSE,128715
NORTH EAST LINCOLNSHIRE COUNCIL,http://statistics.data.gov.uk/id/local-authority/00FC,Deputy Chief Executive,Ad Early Intervention,Integrated Youth Services,Communications And Computing,Computer S/Ware - Purchases,LF101,1/16/2015,327659,1434,REVENUE,FIRST MEDIA SOLUTIONS LTD,101489
NORTH EAST LINCOLNSHIRE COUNCIL,http://statistics.data.gov.uk/id/local-authority/00FC,Deputy Chief Executive,Ad Early Intervention,Integrated Youth Services,Communications And Computing,Computer S/Ware - Purchases,LF101,1/16/2015,327648,721.7,REVENUE,FIRST MEDIA SOLUTIONS LTD,101489
NORTH EAST LINCOLNSHIRE COUNCIL,http://statistics.data.gov.uk/id/local-authority/00FC,Deputy Chief Executive,Ad Early Intervention,Family Hubs,Rep Alterations Maint Building,Buildings - Repairs And Maint,GA102,01/05/2015,325371,298,REVENUE,DORMA UK LIMITED,107806
NORTH EAST LINCOLNSHIRE COUNCIL,http://statistics.data.gov.uk/id/local-authority/00FC,Deputy Chief Executive,Ad Early Intervention,Family Hubs,Energy Costs,Electricity,GB102,01/12/2015,327223,2283.97,REVENUE,NPOWER LIMITED,101414
NORTH EAST LINCOLNSHIRE COUNCIL,http://statistics.data.gov.uk/id/local-authority/00FC,Deputy Chief Executive,Ad Early Intervention,Family Hubs,Energy Costs,Gas,GB101,1/16/2015,327717,1182.7,REVENUE,BRITISH GAS TRADING LTD,101507
NORTH EAST LINCOLNSHIRE COUNCIL,http://statistics.data.gov.uk/id/local-authority/00FC,Deputy Chief Executive,Ad Early Intervention,Family Hubs,Cleaning And Domestic Supplies,Cleaning - Services,GH102,1/30/2015,329327,544.87,REVENUE,FUTURE CLEANING SERVICES LTD,102557
NORTH EAST LINCOLNSHIRE COUNCIL,http://statistics.data.gov.uk/id/local-authority/00FC,Deputy Chief Executive,Ad Early Intervention,Family Hubs,Other Agencies,Child Care Payments,PJ104,1/30/2015,329325,473.58,REVENUE,PRE SCHOOL LEARNING ALLIANCE,101437
NORTH EAST LINCOLNSHIRE COUNCIL,http://statistics.data.gov.uk/id/local-authority/00FC,Deputy Chief Executive,Ad Early Intervention,Family Hubs,Other Agencies,Educational Visits,PJ152,1/28/2015,329319,815.42,REVENUE,SUNDOWN ADVENTURE LAND,107630
NORTH EAST LINCOLNSHIRE COUNCIL,http://statistics.data.gov.uk/id/local-authority/00FC,Deputy Chief Executive,Ad Early Intervention,Family Hubs,Other Agencies,Educational Visits,PJ152,1/16/2015,326656,520,REVENUE,GOLDWING COACHES,112678
NORTH EAST LINCOLNSHIRE COUNCIL,http://statistics.data.gov.uk/id/local-authority/00FC,Deputy Chief Executive,Ad Early Intervention,Family Hubs,Cleaning And Domestic Supplies,Cleaning - Services,GH102,1/29/2015,329755,524,REVENUE,FIRST STEPS GRIMSBY LIMITED,101411
NORTH EAST LINCOLNSHIRE COUNCIL,http://statistics.data.gov.uk/id/local-authority/00FC,Deputy Chief Executive,Ad Early Intervention,Family Hubs,Cleaning And Domestic Supplies,Cleaning - Services,GH102,1/28/2015,329749,637.1,REVENUE,FIRST STEPS GRIMSBY LIMITED,101411
NORTH EAST LINCOLNSHIRE COUNCIL,http://statistics.data.gov.uk/id/local-authority/00FC,Deputy Chief Executive,Ad Early Intervention,Family Hubs,Catering,Provisions,LB101,1/29/2015,329865,500,REVENUE,TESCO STORES LIMITED,102576
NORTH EAST LINCOLNSHIRE COUNCIL,http://statistics.data.gov.uk/id/local-authority/00FC,Deputy Chief Executive,Ad Early Intervention,Family Hubs,Other Agencies,Child Care Payments,PJ104,1/29/2015,329806,644,REVENUE,FOR UNDER FIVES LTD,100647
NORTH EAST LINCOLNSHIRE COUNCIL,http://statistics.data.gov.uk/id/local-authority/00FC,Deputy Chief Executive,Ad Early Intervention,Family Hubs,Rep Alterations Maint Building,Buildings - Repairs And Maint,GA102,1/26/2015,328822,2473.33,REVENUE,CARPET EXPRESS,111738
NORTH EAST LINCOLNSHIRE COUNCIL,http://statistics.data.gov.uk/id/local-authority/00FC,Deputy Chief Executive,Ad Early Intervention,Family Hubs,Rep Alterations Maint Building,Buildings - Repairs And Maint,GA102,1/29/2015,329906,338.28,REVENUE,DAVID BURY LTD,103135
NORTH EAST LINCOLNSHIRE COUNCIL,http://statistics.data.gov.uk/id/local-authority/00FC,Deputy Chief Executive,Ad Early Intervention,Family Hubs,Rep Alterations Maint Building,Buildings - Repairs And Maint,GA102,1/27/2015,329767,920,REVENUE,MR ASH BUCKTHORP,105399
NORTH EAST LINCOLNSHIRE COUNCIL,http://statistics.data.gov.uk/id/local-authority/00FC,Deputy Chief Executive,Ad Early Intervention,Family Hubs,Rep Alterations Maint Building,Buildings - Repairs And Maint,GA102,1/27/2015,329768,270,REVENUE,MR ASH BUCKTHORP,105399
NORTH EAST LINCOLNSHIRE COUNCIL,http://statistics.data.gov.uk/id/local-authority/00FC,Deputy Chief Executive,Ad Early Intervention,Family Hubs,Rep Alterations Maint Building,Buildings - Repairs And Maint,GA102,1/26/2015,328821,250,REVENUE,CARPET EXPRESS,111738
NORTH EAST LINCOLNSHIRE COUNCIL,http://statistics.data.gov.uk/id/local-authority/00FC,Deputy Chief Executive,Ad Early Intervention,Family Hubs,Communications And Computing,Internet Connection,LF110,1/20/2015,316058,360.15,REVENUE,SAFE CONTROL LTD,100989
NORTH EAST LINCOLNSHIRE COUNCIL,http://statistics.data.gov.uk/id/local-authority/00FC,Deputy Chief Executive,Ad Early Intervention,Family Hubs,Expenses,Course/Conf Accom - Employees,LH102,1/19/2015,328480,-36,REVENUE,CLICK TRAVEL,127476
NORTH EAST LINCOLNSHIRE COUNCIL,http://statistics.data.gov.uk/id/local-authority/00FC,Deputy Chief Executive,Ad Early Intervention,Family Hubs,Expenses,Course/Conf Accom - Employees,LH102,1/19/2015,328481,-36,REVENUE,CLICK TRAVEL,127476
NORTH EAST LINCOLNSHIRE COUNCIL,http://statistics.data.gov.uk/id/local-authority/00FC,Deputy Chief Executive,Ad Early Intervention,Family Hubs,Expenses,Course/Conf Accom - Employees,LH102,1/19/2015,328482,-36,REVENUE,CLICK TRAVEL,127476
NORTH EAST LINCOLNSHIRE COUNCIL,http://statistics.data.gov.uk/id/local-authority/00FC,Deputy Chief Executive,Ad Early Intervention,Family Hubs,Expenses,Course/Conf Accom - Employees,LH102,1/19/2015,328483,-36,REVENUE,CLICK TRAVEL,127476
NORTH EAST LINCOLNSHIRE COUNCIL,http://statistics.data.gov.uk/id/local-authority/00FC,Deputy Chief Executive,Ad Early Intervention,Family Hubs,Expenses,Course/Conf Accom - Employees,LH102,1/19/2015,328484,-36,REVENUE,CLICK TRAVEL,127476
NORTH EAST LINCOLNSHIRE COUNCIL,http://statistics.data.gov.uk/id/local-authority/00FC,Deputy Chief Executive,Ad Early Intervention,Family Hubs,Expenses,Course/Conf Accom - Employees,LH102,1/19/2015,328485,-36,REVENUE,CLICK TRAVEL,127476
NORTH EAST LINCOLNSHIRE COUNCIL,http://statistics.data.gov.uk/id/local-authority/00FC,Deputy Chief Executive,Ad Early Intervention,Family Hubs,Expenses,Course/Conf Accom - Employees,LH102,1/19/2015,328486,-36,REVENUE,CLICK TRAVEL,127476
NORTH EAST LINCOLNSHIRE COUNCIL,http://statistics.data.gov.uk/id/local-authority/00FC,Deputy Chief Executive,Ad Early Intervention,Family Hubs,Expenses,Course/Conf Accom - Employees,LH102,1/19/2015,328487,-36,REVENUE,CLICK TRAVEL,127476
NORTH EAST LINCOLNSHIRE COUNCIL,http://statistics.data.gov.uk/id/local-authority/00FC,Deputy Chief Executive,Ad Early Intervention,Family Hubs,Expenses,Course/Conf Accom - Employees,LH102,01/12/2015,327031,533.45,REVENUE,CLICK TRAVEL,127476
NORTH EAST LINCOLNSHIRE COUNCIL,http://statistics.data.gov.uk/id/local-authority/00FC,Deputy Chief Executive,Ad Early Intervention,Family Hubs,Expenses,Course/Conf Accom - Employees,LH102,1/19/2015,328474,-88.91,REVENUE,CLICK TRAVEL,127476
NORTH EAST LINCOLNSHIRE COUNCIL,http://statistics.data.gov.uk/id/local-authority/00FC,Deputy Chief Executive,Ad Early Intervention,Family Hubs,Private Contractors,Third Party Prov - Private,PH101,1/21/2015,327947,1684,REVENUE,N LINCS & GOOLE HOSPITALS NHS,111074
NORTH EAST LINCOLNSHIRE COUNCIL,http://statistics.data.gov.uk/id/local-authority/00FC,Deputy Chief Executive,Ad Early Intervention,Family Hubs,Private Contractors,Third Party Prov - Private,PH101,1/21/2015,327972,8421,REVENUE,N LINCS & GOOLE HOSPITALS NHS,111074
NORTH EAST LINCOLNSHIRE COUNCIL,http://statistics.data.gov.uk/id/local-authority/00FC,Deputy Chief Executive,Ad Early Intervention,Family Hubs,Other Agencies,Child Care Payments,PJ104,1/29/2015,329882,253.04,REVENUE,PRE SCHOOL LEARNING ALLIANCE,101437
NORTH EAST LINCOLNSHIRE COUNCIL,http://statistics.data.gov.uk/id/local-authority/00FC,Deputy Chief Executive,Ad Early Intervention,Family Hubs,Other Agencies,Child Care Payments,PJ104,1/29/2015,329882,259.04,REVENUE,PRE SCHOOL LEARNING ALLIANCE,101437
NORTH EAST LINCOLNSHIRE COUNCIL,http://statistics.data.gov.uk/id/local-authority/00FC,Deputy Chief Executive,Ad Early Intervention,Family Hubs,Cleaning And Domestic Supplies,Cleaning - Services,GH102,1/15/2015,327466,642,REVENUE,FOR UNDER FIVES,101931
NORTH EAST LINCOLNSHIRE COUNCIL,http://statistics.data.gov.uk/id/local-authority/00FC,Deputy Chief Executive,Ad Early Intervention,Family Hubs,Cleaning And Domestic Supplies,Refuse Collection,GH104,01/08/2015,326478,394.94,REVENUE,BELL WASTE CONTROL,101433
NORTH EAST LINCOLNSHIRE COUNCIL,http://statistics.data.gov.uk/id/local-authority/00FC,Deputy Chief Executive,Ad Early Intervention,Family Hubs,Equip / Furniture / Materials,Non-Teaching Resources,LA118,1/22/2015,327956,580,REVENUE,MILLMAN COACHES,100700
NORTH EAST LINCOLNSHIRE COUNCIL,http://statistics.data.gov.uk/id/local-authority/00FC,Deputy Chief Executive,Ad Early Intervention,Family Hubs,Equip / Furniture / Materials,Non-Teaching Resources,LA118,01/07/2015,318160,421.13,REVENUE,W BOYES & CO LTD,100581
NORTH EAST LINCOLNSHIRE COUNCIL,http://statistics.data.gov.uk/id/local-authority/00FC,Deputy Chief Executive,Ad Early Intervention,Family Hubs,Other Agencies,Child Care Payments,PJ104,1/28/2015,329324,441.9,REVENUE,FOR UNDER FIVES,101931
NORTH EAST LINCOLNSHIRE COUNCIL,http://statistics.data.gov.uk/id/local-authority/00FC,Deputy Chief Executive,Ad Early Intervention,Family Hubs,Water Services,Water,GE101,1/26/2015,329371,404.13,REVENUE,ANGLIAN WATER,100508
NORTH EAST LINCOLNSHIRE COUNCIL,http://statistics.data.gov.uk/id/local-authority/00FC,Deputy Chief Executive,Ad Early Intervention,Family Hubs,Cleaning And Domestic Supplies,Cleaning - Window Cleaning,GH101,1/26/2015,328713,400,REVENUE,SIMON KING WINDOW CLEANING,106706
NORTH EAST LINCOLNSHIRE COUNCIL,http://statistics.data.gov.uk/id/local-authority/00FC,Deputy Chief Executive,Ad Early Intervention,Family Hubs,Cleaning And Domestic Supplies,Refuse Collection,GH104,1/26/2015,328681,320.32,REVENUE,BELL WASTE CONTROL,101433
NORTH EAST LINCOLNSHIRE COUNCIL,http://statistics.data.gov.uk/id/local-authority/00FC,Deputy Chief Executive,Ad Early Intervention,Family Hubs,Other Agencies,Child Care Payments,PJ104,1/26/2015,328678,973,REVENUE,FOR UNDER FIVES LTD,100647
NORTH EAST LINCOLNSHIRE COUNCIL,http://statistics.data.gov.uk/id/local-authority/00FC,Deputy Chief Executive,Ad Early Intervention,Family Hubs,Rep Alterations Maint Building,Buildings - Repairs And Maint,GA102,1/19/2015,328276,2995,REVENUE,FABRIQUE SPECIALIST GLAZING SYSTEMS LTD,101314
NORTH EAST LINCOLNSHIRE COUNCIL,http://statistics.data.gov.uk/id/local-authority/00FC,Deputy Chief Executive,Ad Early Intervention,Family Hubs,Rep Alterations Maint Building,Buildings - Repairs And Maint,GA102,1/15/2015,327167,-547,REVENUE,HEMSWELL SURFACING LTD,100615
NORTH EAST LINCOLNSHIRE COUNCIL,http://statistics.data.gov.uk/id/local-authority/00FC,Deputy Chief Executive,Ad Early Intervention,Family Hubs,Rep Alterations Maint Building,Buildings - Repairs And Maint,GA102,01/08/2015,326314,8262.5,REVENUE,HEMSWELL SURFACING LTD,100615
NORTH EAST LINCOLNSHIRE COUNCIL,http://statistics.data.gov.uk/id/local-authority/00FC,Deputy Chief Executive,Ad Early Intervention,Family Hubs,Energy Costs,Heating Fuel,GB103,01/05/2015,326267,1058.53,REVENUE,EASTFIELD PRIMARY ACADEMY,121907
NORTH EAST LINCOLNSHIRE COUNCIL,http://statistics.data.gov.uk/id/local-authority/00FC,Deputy Chief Executive,Ad Early Intervention,Family Hubs,Other Agencies,Educational Visits,PJ152,1/29/2015,329870,450,REVENUE,YOUNG FUN,123302
NORTH EAST LINCOLNSHIRE COUNCIL,http://statistics.data.gov.uk/id/local-authority/00FC,Deputy Chief Executive,Ad Early Intervention,Family Hubs,Rep Alterations Maint Building,Buildings - Repairs And Maint,GA102,01/07/2015,323516,273,REVENUE,THRUNSCOE PRIMARY AND NURSERY ACADEMY,118749
NORTH EAST LINCOLNSHIRE COUNCIL,http://statistics.data.gov.uk/id/local-authority/00FC,Deputy Chief Executive,Ad Early Intervention,Family Hubs,Rep Alterations Maint Building,Buildings - Repairs And Maint,GA102,1/28/2015,329746,273,REVENUE,THRUNSCOE PRIMARY AND NURSERY ACADEMY,118749
NORTH EAST LINCOLNSHIRE COUNCIL,http://statistics.data.gov.uk/id/local-authority/00FC,Deputy Chief Executive,Ad Early Intervention,Family Hubs,Rep Alterations Maint Building,Buildings - Repairs And Maint,GA102,01/05/2015,325871,290.77,REVENUE,HAITHS HEATING LTD,101342
NORTH EAST LINCOLNSHIRE COUNCIL,http://statistics.data.gov.uk/id/local-authority/00FC,Deputy Chief Executive,Ad Early Intervention,Family Hubs,Energy Costs,Electricity,GB102,1/28/2015,329746,2959.45,REVENUE,THRUNSCOE PRIMARY AND NURSERY ACADEMY,118749
NORTH EAST LINCOLNSHIRE COUNCIL,http://statistics.data.gov.uk/id/local-authority/00FC,Deputy Chief Executive,Ad Early Intervention,Family Hubs,Energy Costs,Gas,GB101,1/28/2015,329746,287.96,REVENUE,THRUNSCOE PRIMARY AND NURSERY ACADEMY,118749
NORTH EAST LINCOLNSHIRE COUNCIL,http://statistics.data.gov.uk/id/local-authority/00FC,Deputy Chief Executive,Ad Early Intervention,Family Hubs,Cleaning And Domestic Supplies,Cleaning - Services,GH102,01/07/2015,323516,344.31,REVENUE,THRUNSCOE PRIMARY AND NURSERY ACADEMY,118749
NORTH EAST LINCOLNSHIRE COUNCIL,http://statistics.data.gov.uk/id/local-authority/00FC,Deputy Chief Executive,Ad Early Intervention,Family Hubs,Cleaning And Domestic Supplies,Cleaning - Services,GH102,01/07/2015,323516,545.78,REVENUE,THRUNSCOE PRIMARY AND NURSERY ACADEMY,118749
NORTH EAST LINCOLNSHIRE COUNCIL,http://statistics.data.gov.uk/id/local-authority/00FC,Deputy Chief Executive,Ad Early Intervention,Family Hubs,Cleaning And Domestic Supplies,Cleaning - Services,GH102,1/28/2015,329746,550.75,REVENUE,THRUNSCOE PRIMARY AND NURSERY ACADEMY,118749
NORTH EAST LINCOLNSHIRE COUNCIL,http://statistics.data.gov.uk/id/local-authority/00FC,Deputy Chief Executive,Ad Early Intervention,Family Hubs,Premises Insurance,Premises Insurance - Premiums,GK101,01/07/2015,323516,1373.35,REVENUE,THRUNSCOE PRIMARY AND NURSERY ACADEMY,118749
NORTH EAST LINCOLNSHIRE COUNCIL,http://statistics.data.gov.uk/id/local-authority/00FC,Deputy Chief Executive,Ad Early Intervention,Family Hubs,Premises Insurance,Premises Insurance - Premiums,GK101,01/07/2015,324443,-256.26,REVENUE,THRUNSCOE PRIMARY AND NURSERY ACADEMY,118749
NORTH EAST LINCOLNSHIRE COUNCIL,http://statistics.data.gov.uk/id/local-authority/00FC,Deputy Chief Executive,Ad Early Intervention,Family Hubs,Other Agencies,Child Care Payments,PJ104,1/21/2015,328058,1039.53,REVENUE,CLEETHORPES CHILDCARE,101591
NORTH EAST LINCOLNSHIRE COUNCIL,http://statistics.data.gov.uk/id/local-authority/00FC,Deputy Chief Executive,Ad Early Intervention,Family Hubs,Rep Alterations Maint Building,Buildings - Repairs And Maint,GA102,1/15/2015,326800,261.4,REVENUE,FRED MARGARSON LTD,100592
NORTH EAST LINCOLNSHIRE COUNCIL,http://statistics.data.gov.uk/id/local-authority/00FC,Deputy Chief Executive,Ad Early Intervention,Family Hubs,Cleaning And Domestic Supplies,Cleaning - Services,GH102,1/28/2015,329773,710.78,REVENUE,FUTURE CLEANING SERVICES LTD,102557
NORTH EAST LINCOLNSHIRE COUNCIL,http://statistics.data.gov.uk/id/local-authority/00FC,Deputy Chief Executive,Ad Early Intervention,Family Hubs,Cleaning And Domestic Supplies,Cleaning - Services,GH102,1/29/2015,329774,885,REVENUE,FUTURE CLEANING SERVICES LTD,102557
NORTH EAST LINCOLNSHIRE COUNCIL,http://statistics.data.gov.uk/id/local-authority/00FC,Deputy Chief Executive,Ad Early Intervention,Family Hubs,Cleaning And Domestic Supplies,Cleaning - Services,GH102,1/26/2015,328716,505.09,REVENUE,FUTURE CLEANING SERVICES LTD,102557
NORTH EAST LINCOLNSHIRE COUNCIL,http://statistics.data.gov.uk/id/local-authority/00FC,Deputy Chief Executive,Ad Early Intervention,Family Hubs,Cleaning And Domestic Supplies,Cleaning - Services,GH102,1/26/2015,328715,505.09,REVENUE,FUTURE CLEANING SERVICES LTD,102557
NORTH EAST LINCOLNSHIRE COUNCIL,http://statistics.data.gov.uk/id/local-authority/00FC,Deputy Chief Executive,Ad Early Intervention,Family Hubs,Indirect Employee Expenses,Staff Training,EB122,1/28/2015,328785,250,REVENUE,OASIS ACADEMY WINTRINGHAM,101939
NORTH EAST LINCOLNSHIRE COUNCIL,http://statistics.data.gov.uk/id/local-authority/00FC,Deputy Chief Executive,Ad Early Intervention,Family Hubs,Car Allowances,Travel - Employees,JF101,1/28/2015,328990,316.41,REVENUE,LINCS COMMUNITY HEALTH SERVICES NHST,124099
NORTH EAST LINCOLNSHIRE COUNCIL,http://statistics.data.gov.uk/id/local-authority/00FC,Deputy Chief Executive,Ad Early Intervention,Family Hubs,Public Transport,Public Transport - Employees,JD101,1/19/2015,328491,-27.8,REVENUE,CLICK TRAVEL,127476
NORTH EAST LINCOLNSHIRE COUNCIL,http://statistics.data.gov.uk/id/local-authority/00FC,Deputy Chief Executive,Ad Early Intervention,Family Hubs,Public Transport,Public Transport - Employees,JD101,1/19/2015,328490,-27.8,REVENUE,CLICK TRAVEL,127476
NORTH EAST LINCOLNSHIRE COUNCIL,http://statistics.data.gov.uk/id/local-authority/00FC,Deputy Chief Executive,Ad Early Intervention,Family Hubs,Equip / Furniture / Materials,Furniture - Purchase,LA105,1/16/2015,327260,950,REVENUE,C M INTERIORS (CLPS) LTD,104224
NORTH EAST LINCOLNSHIRE COUNCIL,http://statistics.data.gov.uk/id/local-authority/00FC,Deputy Chief Executive,Ad Early Intervention,Community Learning Services,Miscellaneous Expenses,Activities - Service Users,LL114,1/26/2015,327615,2000,REVENUE,CARE PLUS GROUP,106467
NORTH EAST LINCOLNSHIRE COUNCIL,http://statistics.data.gov.uk/id/local-authority/00FC,Deputy Chief Executive,Ad Early Intervention,Community Learning Services,Miscellaneous Expenses,Exam Fees,LL115,1/28/2015,329729,320.4,REVENUE,OCR,101048
NORTH EAST LINCOLNSHIRE COUNCIL,http://statistics.data.gov.uk/id/local-authority/00FC,Deputy Chief Executive,Ad Early Intervention,Community Learning Services,Miscellaneous Expenses,Other Expenses General,LL119,1/15/2015,327901,892.85,REVENUE,COMMUNITY LEARNING SERVICES,110690
NORTH EAST LINCOLNSHIRE COUNCIL,http://statistics.data.gov.uk/id/local-authority/00FC,Deputy Chief Executive,Ad Early Intervention,Community Learning Services,Other Agencies,Further Ed Emp & Training,PJ130,1/28/2015,328786,1200,REVENUE,CENTRE4 LIMITED,126893
NORTH EAST LINCOLNSHIRE COUNCIL,http://statistics.data.gov.uk/id/local-authority/00FC,Deputy Chief Executive,Ad Early Intervention,Community Learning Services,Miscellaneous Expenses,Exam Fees,LL115,1/29/2015,329750,756.6,REVENUE,OCR,101048
NORTH EAST LINCOLNSHIRE COUNCIL,http://statistics.data.gov.uk/id/local-authority/00FC,Deputy Chief Executive,Ad Early Intervention,Child Protection / Safeguardin,Direct Employee Expenses,Agency Staff,EA105,01/05/2015,325779,2528.8,REVENUE,ESP LTD,101231
NORTH EAST LINCOLNSHIRE COUNCIL,http://statistics.data.gov.uk/id/local-authority/00FC,Deputy Chief Executive,Ad Early Intervention,Child Protection / Safeguardin,Direct Employee Expenses,Agency Staff,EA105,01/05/2015,325815,2779.86,REVENUE,ESP LTD,101231
NORTH EAST LINCOLNSHIRE COUNCIL,http://statistics.data.gov.uk/id/local-authority/00FC,Deputy Chief Executive,Ad Early Intervention,Child Protection / Safeguardin,Direct Employee Expenses,Agency Staff,EA105,1/15/2015,327459,286.72,REVENUE,ESP LTD,101231
NORTH EAST LINCOLNSHIRE COUNCIL,http://statistics.data.gov.uk/id/local-authority/00FC,Deputy Chief Executive,Ad Early Intervention,Child Protection / Safeguardin,Direct Employee Expenses,Agency Staff,EA105,1/15/2015,327463,561.15,REVENUE,ESP LTD,101231
NORTH EAST LINCOLNSHIRE COUNCIL,http://statistics.data.gov.uk/id/local-authority/00FC,Deputy Chief Executive,Ad Early Intervention,Child Protection / Safeguardin,Direct Employee Expenses,Agency Staff,EA105,1/15/2015,327464,339,REVENUE,ESP LTD,101231
NORTH EAST LINCOLNSHIRE COUNCIL,http://statistics.data.gov.uk/id/local-authority/00FC,Deputy Chief Executive,Ad Early Intervention,Child Protection / Safeguardin,Direct Employee Expenses,Agency Staff,EA105,1/15/2015,327465,1358.54,REVENUE,ESP LTD,101231
NORTH EAST LINCOLNSHIRE COUNCIL,http://statistics.data.gov.uk/id/local-authority/00FC,Deputy Chief Executive,Ad Early Intervention,Child Protection / Safeguardin,Direct Employee Expenses,Agency Staff,EA105,01/05/2015,325820,2883.63,REVENUE,ESP LTD,101231
NORTH EAST LINCOLNSHIRE COUNCIL,http://statistics.data.gov.uk/id/local-authority/00FC,Deputy Chief Executive,Ad Early Intervention,Child Protection / Safeguardin,Direct Employee Expenses,Agency Staff,EA105,1/26/2015,328804,2243.31,REVENUE,ESP LTD,101231
NORTH EAST LINCOLNSHIRE COUNCIL,http://statistics.data.gov.uk/id/local-authority/00FC,Deputy Chief Executive,Ad Early Intervention,Child Protection / Safeguardin,Rents,Rent,GC101,1/15/2015,327468,300,REVENUE,GRIMSBY CENTRAL HALL TRUST,100882
